Workbook

Sheet Briza Net Zero
B2: Подбор | G2: Taal/Language/Sprache/Язык/Jazyk | H2: 0 | I2: 0 | J2: 0 | K2: Русский
B3: Briza Net Zero
G4: =IF(cal!$S$7=1,"Uitvoering",IF(cal!$S$7=2,"Version",IF(cal!$S$7=3,"Ausführung",IF(cal!$S$7=4,"Version",IF(cal!$S$7=5,"Modell",IF(cal!$S$7=6,"Montaje",IF(cal!$S$7=7,"Version",IF(cal!$S$7=8,"Verze",IF(cal!$S$7=9,"Модель",IF(cal!$S$7=10,"ExtraTaal2",IF(cal!$S$7=11,"ExtraTaal3",))))))))))) -> Модель | K4: Briza Net Zero M H42 2P | N4: Настенный
B6: =cal!B7 -> Температура | M6: =cal!M7 -> h_atm | N6: 0
B7: =cal!B8 -> Обогрев: | G7: =cal!G8 -> Охлаждение: | M7: 0 | N7: 0 | O7: =IF(UnitsNo=1,"m",IF(UnitsNo=2,"ft")) -> m
B8: =cal!B9 -> Темп.подачи | C8: =cal!C9 -> 0 | D8: =cal!D9 -> 0 | E8: 95 | F8: =cal!F9 -> °C | G8: =cal!G9 -> Темп.подачи | H8: =cal!H9 -> 0 | I8: =cal!I9 -> 0 | J8: =cal!J9 -> 0 | K8: 7 | L8: =cal!L9 -> °C | M8: =cal!M9 -> 0
B9: =cal!B10 -> Темп.обратная | C9: =cal!C10 -> 0 | D9: =cal!D10 -> 0 | E9: 70 | F9: =cal!F10 -> °C | G9: =cal!G10 -> Темп.обратная | H9: =cal!H10 -> 0 | I9: =cal!I10 -> 0 | J9: =cal!J10 -> 0 | K9: 12 | L9: =cal!L10 -> °C
B10: =cal!B11 -> Темп.воздуха | C10: =cal!C11 -> 0 | D10: =cal!D11 -> 0 | E10: 20 | F10: =cal!F11 -> °C | G10: =cal!G11 -> Темп.воздуха | H10: =cal!H11 -> 0 | I10: =cal!I11 -> 0 | J10: =cal!J11 -> 0 | K10: 20 | L10: =cal!L11 -> °C
G11: =cal!G12 -> Влажность | K11: 50%
D13: =cal!D14 -> 1.0000 | E13: =cal!E14 -> 1.0000 | F13: =cal!F14 -> 1.0000 | G13: =cal!G14 -> 1.0000 | H13: =cal!H14 -> 1.0000 | I13: =cal!I14 -> 1.0000 | J13: =cal!J14 -> 1.0000 | K13: =cal!K14 -> 0.0003344444444 | L13: =cal!L14 -> 0 | M13: =cal!M14 -> 1 | N13: =cal!N14 -> 1.0000
B14: =cal!B15 -> Скорость вентилятора | C14: =cal!C15 -> Управляющий сигнал [V] | D14: =cal!D15 -> Мощность отпление 95/70/20 [W] | E14: =cal!E15 -> Расход теплоносителя, отопление [l/h] | F14: =cal!F15 -> Потери давления жидкости [kPa] | G14: =cal!G15 -> Ощущ. мощность, охлаждение 7/12/20 [W] | H14: =cal!H15 -> Общая мощность , охлаждение 7/12/20 [W] | I14: =cal!I15 -> Расход теплоносителя, охлаждение [l/h] | J14: =cal!J15 -> Потери давления жидкости [kPa] | K14: =cal!K15 -> Звуковое давление ** [dB(A)] | L14: =cal!L15 -> Звуковая мощность * [dB(A)] | M14: =cal!M15 -> Потребляемая мощность [W] | N14: =cal!N15 -> Расход воздуха [m³/h] | O14: =cal!O15 -> Темп. воздуха на выходе. отопление [°C] | P14: =cal!P15 -> Темп.воздуха на выходе. охлаждение [°C]
B15: =cal!B16 -> Briza Net Zero M H42 2P Высота 42 cm Ширина 14 cm Длина 75 cm (Тип 1)
B16: =cal!B17 -> 20% | C16: =cal!C17 -> 2 | D16: =IF($E$8<=$E$9,cal!$Z$3,cal!D17) -> 1117 | E16: =IF($E$8<=$E$9,"",cal!E17) -> 38 | F16: =IF($E$8<=$E$9,"",cal!F17) -> 0.05 | G16: =IF($K$8>=$K$9,cal!$Z$3,cal!G17) -> 119 | H16: =IF($K$8>=$K$9,"",cal!H17) -> 119 | I16: =IF($K$8>=$K$9,"",cal!I17) -> 21 | J16: =IF($K$8>=$K$9,"",cal!J17) -> 0.02 | K16: =cal!K17 -> <20 | L16: =cal!L17 -> 26.5 | M16: =cal!M17 -> 1.6 | N16: =cal!N17 -> 64 | O16: =IF($K$8>=$K$9,"",cal!O17) -> 71.9 | P16: =IF($K$8>=$K$9,"",cal!P17) -> 14.5
B17: =cal!B18 -> 40% | C17: =cal!C18 -> 4 | D17: =IF($E$8<=$E$9,cal!$Z$4,cal!D18) -> 1280 | E17: =IF($E$8<=$E$9,"",cal!E18) -> 44 | F17: =IF($E$8<=$E$9,"",cal!F18) -> 0.06 | G17: =IF($K$8>=$K$9,cal!$Z$5,cal!G18) -> 139 | H17: =IF($K$8>=$K$9,"",cal!H18) -> 139 | I17: =IF($K$8>=$K$9,"",cal!I18) -> 24 | J17: =IF($K$8>=$K$9,"",cal!J18) -> 0.02 | K17: =cal!K18 -> 29.4 | L17: =cal!L18 -> 37.4 | M17: =cal!M18 -> 2.6 | N17: =cal!N18 -> 101 | O17: =IF($K$8>=$K$9,"",cal!O18) -> 57.7 | P17: =IF($K$8>=$K$9,"",cal!P18) -> 15.9
B18: =cal!B19 -> 60% | C18: =cal!C19 -> 6 | D18: =IF($E$8<=$E$9,"",cal!D19) -> 1478 | E18: =IF($E$8<=$E$9,"",cal!E19) -> 51 | F18: =IF($E$8<=$E$9,"",cal!F19) -> 0.08 | G18: =IF($K$8>=$K$9,"",cal!G19) -> 164 | H18: =IF($K$8>=$K$9,"",cal!H19) -> 164 | I18: =IF($K$8>=$K$9,"",cal!I19) -> 28 | J18: =IF($K$8>=$K$9,"",cal!J19) -> 0.03 | K18: =cal!K19 -> 31.3 | L18: =cal!L19 -> 39.3 | M18: =cal!M19 -> 4.3 | N18: =cal!N19 -> 141 | O18: =IF($K$8>=$K$9,"",cal!O19) -> 51.1 | P18: =IF($K$8>=$K$9,"",cal!P19) -> 16.5
B19: =cal!B20 -> 80% | C19: =cal!C20 -> 8 | D19: =IF($E$8<=$E$9,"",cal!D20) -> 1731 | E19: =IF($E$8<=$E$9,"",cal!E20) -> 60 | F19: =IF($E$8<=$E$9,"",cal!F20) -> 0.11 | G19: =IF($K$8>=$K$9,"",cal!G20) -> 192 | H19: =IF($K$8>=$K$9,"",cal!H20) -> 192 | I19: =IF($K$8>=$K$9,"",cal!I20) -> 33 | J19: =IF($K$8>=$K$9,"",cal!J20) -> 0.04 | K19: =cal!K20 -> 37.3 | L19: =cal!L20 -> 45.3 | M19: =cal!M20 -> 7.2 | N19: =cal!N20 -> 178 | O19: =IF($K$8>=$K$9,"",cal!O20) -> 48.9 | P19: =IF($K$8>=$K$9,"",cal!P20) -> 16.8
B20: =cal!B21 -> 100% | C20: =cal!C21 -> 10 | D20: =IF($E$8<=$E$9,"",cal!D21) -> 2065 | E20: =IF($E$8<=$E$9,"",cal!E21) -> 71 | F20: =IF($E$8<=$E$9,"",cal!F21) -> 0.16 | G20: =IF($K$8>=$K$9,"",cal!G21) -> 221 | H20: =IF($K$8>=$K$9,"",cal!H21) -> 221 | I20: =IF($K$8>=$K$9,"",cal!I21) -> 38 | J20: =IF($K$8>=$K$9,"",cal!J21) -> 0.05 | K20: =cal!K21 -> 42.5 | L20: =cal!L21 -> 50.5 | M20: =cal!M21 -> 13.0 | N20: =cal!N21 -> 214 | O20: =IF($K$8>=$K$9,"",cal!O21) -> 48.7 | P20: =IF($K$8>=$K$9,"",cal!P21) -> 16.9
B21: =cal!B22 -> Briza Net Zero M H42 2P Высота 42 cm Ширина 14 cm Длина 95 cm (Тип 2)
B22: =cal!B23 -> 20% | C22: =cal!C23 -> 2 | D22: =IF($E$8<=$E$9,cal!$Z$3,cal!D23) -> 1912 | E22: =IF($E$8<=$E$9,"",cal!E23) -> 66 | F22: =IF($E$8<=$E$9,"",cal!F23) -> 0.18 | G22: =IF($K$8>=$K$9,cal!$Z$3,cal!G23) -> 198 | H22: =IF($K$8>=$K$9,"",cal!H23) -> 198 | I22: =IF($K$8>=$K$9,"",cal!I23) -> 34 | J22: =IF($K$8>=$K$9,"",cal!J23) -> 0.05 | K22: =cal!K23 -> 24.0 | L22: =cal!L23 -> 32.0 | M22: =cal!M23 -> 2.5 | N22: =cal!N23 -> 108 | O22: =IF($K$8>=$K$9,"",cal!O23) -> 72.6 | P22: =IF($K$8>=$K$9,"",cal!P23) -> 14.6
B23: =cal!B24 -> 40% | C23: =cal!C24 -> 4 | D23: =IF($E$8<=$E$9,cal!$Z$4,cal!D24) -> 2103 | E23: =IF($E$8<=$E$9,"",cal!E24) -> 72 | F23: =IF($E$8<=$E$9,"",cal!F24) -> 0.21 | G23: =IF($K$8>=$K$9,cal!$Z$5,cal!G24) -> 225 | H23: =IF($K$8>=$K$9,"",cal!H24) -> 225 | I23: =IF($K$8>=$K$9,"",cal!I24) -> 39 | J23: =IF($K$8>=$K$9,"",cal!J24) -> 0.07 | K23: =cal!K24 -> 30.0 | L23: =cal!L24 -> 38.0 | M23: =cal!M24 -> 4.3 | N23: =cal!N24 -> 172 | O23: =IF($K$8>=$K$9,"",cal!O24) -> 56.3 | P23: =IF($K$8>=$K$9,"",cal!P24) -> 16.1
B24: =cal!B25 -> 60% | C24: =cal!C25 -> 6 | D24: =IF($E$8<=$E$9,"",cal!D25) -> 2224 | E24: =IF($E$8<=$E$9,"",cal!E25) -> 76 | F24: =IF($E$8<=$E$9,"",cal!F25) -> 0.23 | G24: =IF($K$8>=$K$9,"",cal!G25) -> 261 | H24: =IF($K$8>=$K$9,"",cal!H25) -> 261 | I24: =IF($K$8>=$K$9,"",cal!I25) -> 45 | J24: =IF($K$8>=$K$9,"",cal!J25) -> 0.09 | K24: =cal!K25 -> 36.8 | L24: =cal!L25 -> 44.8 | M24: =cal!M25 -> 7.2 | N24: =cal!N25 -> 223 | O24: =IF($K$8>=$K$9,"",cal!O25) -> 49.6 | P24: =IF($K$8>=$K$9,"",cal!P25) -> 16.5
B25: =cal!B26 -> 80% | C25: =cal!C26 -> 8 | D25: =IF($E$8<=$E$9,"",cal!D26) -> 2775 | E25: =IF($E$8<=$E$9,"",cal!E26) -> 95 | F25: =IF($E$8<=$E$9,"",cal!F26) -> 0.35 | G25: =IF($K$8>=$K$9,"",cal!G26) -> 307 | H25: =IF($K$8>=$K$9,"",cal!H26) -> 307 | I25: =IF($K$8>=$K$9,"",cal!I26) -> 53 | J25: =IF($K$8>=$K$9,"",cal!J26) -> 0.12 | K25: =cal!K26 -> 41.5 | L25: =cal!L26 -> 49.5 | M25: =cal!M26 -> 11.5 | N25: =cal!N26 -> 287 | O25: =IF($K$8>=$K$9,"",cal!O26) -> 48.7 | P25: =IF($K$8>=$K$9,"",cal!P26) -> 16.8
B26: =cal!B27 -> 100% | C26: =cal!C27 -> 10 | D26: =IF($E$8<=$E$9,"",cal!D27) -> 3402 | E26: =IF($E$8<=$E$9,"",cal!E27) -> 117 | F26: =IF($E$8<=$E$9,"",cal!F27) -> 0.51 | G26: =IF($K$8>=$K$9,"",cal!G27) -> 364 | H26: =IF($K$8>=$K$9,"",cal!H27) -> 364 | I26: =IF($K$8>=$K$9,"",cal!I27) -> 63 | J26: =IF($K$8>=$K$9,"",cal!J27) -> 0.16 | K26: =cal!K27 -> 44.5 | L26: =cal!L27 -> 52.5 | M26: =cal!M27 -> 18.0 | N26: =cal!N27 -> 346 | O26: =IF($K$8>=$K$9,"",cal!O27) -> 49.2 | P26: =IF($K$8>=$K$9,"",cal!P27) -> 16.9
B27: =cal!B28 -> Briza Net Zero M H42 2P Высота 42 cm Ширина 14 cm Длина 125 cm (Тип 3)
B28: =cal!B29 -> 20% | C28: =cal!C29 -> 2 | D28: =IF($E$8<=$E$9,cal!$Z$3,cal!D29) -> 3008 | E28: =IF($E$8<=$E$9,"",cal!E29) -> 103 | F28: =IF($E$8<=$E$9,"",cal!F29) -> 0.54 | G28: =IF($K$8>=$K$9,cal!$Z$3,cal!G29) -> 324 | H28: =IF($K$8>=$K$9,"",cal!H29) -> 324 | I28: =IF($K$8>=$K$9,"",cal!I29) -> 56 | J28: =IF($K$8>=$K$9,"",cal!J29) -> 0.18 | K28: =cal!K29 -> 24.6 | L28: =cal!L29 -> 32.6 | M28: =cal!M29 -> 2.6 | N28: =cal!N29 -> 146 | O28: =IF($K$8>=$K$9,"",cal!O29) -> 81.2 | P28: =IF($K$8>=$K$9,"",cal!P29) -> 13.4
B29: =cal!B30 -> 40% | C29: =cal!C30 -> 4 | D29: =IF($E$8<=$E$9,cal!$Z$4,cal!D30) -> 3362 | E29: =IF($E$8<=$E$9,"",cal!E30) -> 116 | F29: =IF($E$8<=$E$9,"",cal!F30) -> 0.67 | G29: =IF($K$8>=$K$9,cal!$Z$5,cal!G30) -> 359 | H29: =IF($K$8>=$K$9,"",cal!H30) -> 359 | I29: =IF($K$8>=$K$9,"",cal!I30) -> 62 | J29: =IF($K$8>=$K$9,"",cal!J30) -> 0.22 | K29: =cal!K30 -> 30.2 | L29: =cal!L30 -> 38.2 | M29: =cal!M30 -> 4.8 | N29: =cal!N30 -> 221 | O29: =IF($K$8>=$K$9,"",cal!O30) -> 65.2 | P29: =IF($K$8>=$K$9,"",cal!P30) -> 15.2
B30: =cal!B31 -> 60% | C30: =cal!C31 -> 6 | D30: =IF($E$8<=$E$9,"",cal!D31) -> 3823 | E30: =IF($E$8<=$E$9,"",cal!E31) -> 131 | F30: =IF($E$8<=$E$9,"",cal!F31) -> 0.84 | G30: =IF($K$8>=$K$9,"",cal!G31) -> 409 | H30: =IF($K$8>=$K$9,"",cal!H31) -> 409 | I30: =IF($K$8>=$K$9,"",cal!I31) -> 70 | J30: =IF($K$8>=$K$9,"",cal!J31) -> 0.27 | K30: =cal!K31 -> 37.0 | L30: =cal!L31 -> 45.0 | M30: =cal!M31 -> 8.0 | N30: =cal!N31 -> 298 | O30: =IF($K$8>=$K$9,"",cal!O31) -> 58.1 | P30: =IF($K$8>=$K$9,"",cal!P31) -> 15.9
B31: =cal!B32 -> 80% | C31: =cal!C32 -> 8 | D31: =IF($E$8<=$E$9,"",cal!D32) -> 4475 | E31: =IF($E$8<=$E$9,"",cal!E32) -> 154 | F31: =IF($E$8<=$E$9,"",cal!F32) -> 1.12 | G31: =IF($K$8>=$K$9,"",cal!G32) -> 481 | H31: =IF($K$8>=$K$9,"",cal!H32) -> 481 | I31: =IF($K$8>=$K$9,"",cal!I32) -> 83 | J31: =IF($K$8>=$K$9,"",cal!J32) -> 0.37 | K31: =cal!K32 -> 42.5 | L31: =cal!L32 -> 50.5 | M31: =cal!M32 -> 14.0 | N31: =cal!N32 -> 381 | O31: =IF($K$8>=$K$9,"",cal!O32) -> 54.9 | P31: =IF($K$8>=$K$9,"",cal!P32) -> 16.3
B32: =cal!B33 -> 100% | C32: =cal!C33 -> 10 | D32: =IF($E$8<=$E$9,"",cal!D33) -> 5403 | E32: =IF($E$8<=$E$9,"",cal!E33) -> 186 | F32: =IF($E$8<=$E$9,"",cal!F33) -> 1.58 | G32: =IF($K$8>=$K$9,"",cal!G33) -> 577 | H32: =IF($K$8>=$K$9,"",cal!H33) -> 577 | I32: =IF($K$8>=$K$9,"",cal!I33) -> 99 | J32: =IF($K$8>=$K$9,"",cal!J33) -> 0.50 | K32: =cal!K33 -> 47.0 | L32: =cal!L33 -> 55.0 | M32: =cal!M33 -> 24.0 | N32: =cal!N33 -> 448 | O32: =IF($K$8>=$K$9,"",cal!O33) -> 55.8 | P32: =IF($K$8>=$K$9,"",cal!P33) -> 16.2
B33: =cal!B34 -> Briza Net Zero M H42 2P Высота 42 cm Ширина 14 cm Длина 145 cm (Тип 4)
B34: =cal!B35 -> 20% | C34: =cal!C35 -> 2 | D34: =IF($E$8<=$E$9,cal!$Z$3,cal!D35) -> 3710 | E34: =IF($E$8<=$E$9,"",cal!E35) -> 128 | F34: =IF($E$8<=$E$9,"",cal!F35) -> 0.93 | G34: =IF($K$8>=$K$9,cal!$Z$3,cal!G35) -> 425 | H34: =IF($K$8>=$K$9,"",cal!H35) -> 425 | I34: =IF($K$8>=$K$9,"",cal!I35) -> 73 | J34: =IF($K$8>=$K$9,"",cal!J35) -> 0.33 | K34: =cal!K35 -> 25.7 | L34: =cal!L35 -> 33.7 | M34: =cal!M35 -> 2.8 | N34: =cal!N35 -> 173 | O34: =IF($K$8>=$K$9,"",cal!O35) -> 83.7 | P34: =IF($K$8>=$K$9,"",cal!P35) -> 12.7
B35: =cal!B36 -> 40% | C35: =cal!C36 -> 4 | D35: =IF($E$8<=$E$9,cal!$Z$4,cal!D36) -> 4208 | E35: =IF($E$8<=$E$9,"",cal!E36) -> 145 | F35: =IF($E$8<=$E$9,"",cal!F36) -> 1.16 | G35: =IF($K$8>=$K$9,cal!$Z$5,cal!G36) -> 465 | H35: =IF($K$8>=$K$9,"",cal!H36) -> 465 | I35: =IF($K$8>=$K$9,"",cal!I36) -> 80 | J35: =IF($K$8>=$K$9,"",cal!J36) -> 0.00 | K35: =cal!K36 -> 30.5 | L35: =cal!L36 -> 38.5 | M35: =cal!M36 -> 5.5 | N35: =cal!N36 -> 268 | O35: =IF($K$8>=$K$9,"",cal!O36) -> 66.7 | P35: =IF($K$8>=$K$9,"",cal!P36) -> 14.8
B36: =cal!B37 -> 60% | C36: =cal!C37 -> 6 | D36: =IF($E$8<=$E$9,"",cal!D37) -> 4818 | E36: =IF($E$8<=$E$9,"",cal!E37) -> 166 | F36: =IF($E$8<=$E$9,"",cal!F37) -> 1.49 | G36: =IF($K$8>=$K$9,"",cal!G37) -> 522 | H36: =IF($K$8>=$K$9,"",cal!H37) -> 522 | I36: =IF($K$8>=$K$9,"",cal!I37) -> 90 | J36: =IF($K$8>=$K$9,"",cal!J37) -> 0.00 | K36: =cal!K37 -> 37.3 | L36: =cal!L37 -> 45.3 | M36: =cal!M37 -> 10.3 | N36: =cal!N37 -> 373 | O36: =IF($K$8>=$K$9,"",cal!O37) -> 58.4 | P36: =IF($K$8>=$K$9,"",cal!P37) -> 15.8
B37: =cal!B38 -> 80% | C37: =cal!C38 -> 8 | D37: =IF($E$8<=$E$9,"",cal!D38) -> 5631 | E37: =IF($E$8<=$E$9,"",cal!E38) -> 194 | F37: =IF($E$8<=$E$9,"",cal!F38) -> 1.98 | G37: =IF($K$8>=$K$9,"",cal!G38) -> 604 | H37: =IF($K$8>=$K$9,"",cal!H38) -> 604 | I37: =IF($K$8>=$K$9,"",cal!I38) -> 104 | J37: =IF($K$8>=$K$9,"",cal!J38) -> 0.00 | K37: =cal!K38 -> 43.0 | L37: =cal!L38 -> 51.0 | M37: =cal!M38 -> 18.5 | N37: =cal!N38 -> 466 | O37: =IF($K$8>=$K$9,"",cal!O38) -> 55.9 | P37: =IF($K$8>=$K$9,"",cal!P38) -> 16.1
B38: =cal!B39 -> 100% | C38: =cal!C39 -> 10 | D38: =IF($E$8<=$E$9,"",cal!D39) -> 6735 | E38: =IF($E$8<=$E$9,"",cal!E39) -> 232 | F38: =IF($E$8<=$E$9,"",cal!F39) -> 2.75 | G38: =IF($K$8>=$K$9,"",cal!G39) -> 721 | H38: =IF($K$8>=$K$9,"",cal!H39) -> 721 | I38: =IF($K$8>=$K$9,"",cal!I39) -> 124 | J38: =IF($K$8>=$K$9,"",cal!J39) -> 0.00 | K38: =cal!K39 -> 47.0 | L38: =cal!L39 -> 55.0 | M38: =cal!M39 -> 28.8 | N38: =cal!N39 -> 510 | O38: =IF($K$8>=$K$9,"",cal!O39) -> 59.3 | P38: =IF($K$8>=$K$9,"",cal!P39) -> 15.8
B39: =cal!B46 -> *Звуковая мощность определена по ISO 3741:2010 | P39: v2024-09-25
B40: =cal!B47 -> ***Уровень звукового давления (при постоянной помещения 8 дБ(A))

Sheet cal (hidden)
E1: Nederlands | F1: English | G1: Deutsch | H1: Français | I1: Norsk | J1: Español | K1: Svenska | L1: Čeština | M1: Русский | N1: ExtraTaal2 | O1: ExtraTaal3 | X1: ='Briza Net Zero'!K4:M4 -> Briza Net Zero M H42 2P | Y1: 0 | Z1: 0 | AA1: =IF('Briza Net Zero'!$K$4=cal!$X2,1,IF('Briza Net Zero'!$K$4=cal!$X3,1,IF('Briza Net Zero'!$K$4=cal!$X4,2,IF('Briza Net Zero'!$K$4=cal!$X5,2,IF('Briza Net Zero'!$K$4=cal!$X6,2,IF('Briza Net Zero'!$K$4=cal!$X7,2,IF('Briza Net Zero'!$K$4=cal!$X8,7,IF('Briza Net Zero'!$K$4=cal!$X9,8,)))))))) -> 2 | AH1: ='Briza Net Zero'!K2 -> Русский | AI1: ='Briza Net Zero'!N4 -> Настенный | AL1: Briza xs | AN1: Briza s | AP1: Briza M 42 | AR1: Briza M 56
X2: Briza Net Zero XS | AH2: =IF(AH$1="English","Wall",IF(AH$1="Nederlands","Wand",IF(AH$1="Deutch","Wand",IF(AH$1="Français","Mur",IF(AH$1="Español","Muro",IF(AH$1="Svenska","Vägg",IF(AH$1="Русский","Настенный",IF(AH$1="Čeština","Stěna","Error")))))))) -> Настенный | AL2: wall | AM2: ceiling | AN2: wall | AO2: ceiling | AP2: wall | AQ2: ceiling | AR2: wall | AS2: ceiling
B3: =IF($S$7=1,NL!B3,IF(cal!$S$7=2,EN!B3,IF(cal!$S$7=3,DE!B3,IF(cal!$S$7=4,FR!B3,IF(cal!$S$7=5,NR!B3,IF(cal!$S$7=6,SP!B3,IF(cal!$S$7=7,SW!B3,IF(cal!$S$7=8,TS!B3,IF(cal!$S$7=9,RU!B3,IF(cal!$S$7=10,ExtraTaal2!B3,IF(cal!$S$7=11,ExtraTaal3!B3,))))))))))) -> Formulary | X3: Briza Net Zero S | Z3: =IF($S$7=1,NL!R16,IF(cal!$S$7=2,EN!R16,IF(cal!$S$7=3,DE!R16,IF(cal!$S$7=4,FR!R16,IF(cal!$S$7=5,NR!R16,IF(cal!$S$7=6,SP!R16,IF(cal!$S$7=7,SW!R16,IF(cal!$S$7=8,TS!R16,IF(cal!$S$7=9,RU!R16,IF(cal!$S$7=10,ExtraTaal2!R16,IF(cal!$S$7=11,ExtraTaal3!R16,))))))))))) -> Темп. | AA3: =IF($S$7=1,NL!Q7,IF(cal!$S$7=2,EN!Q7,IF(cal!$S$7=3,DE!Q7,IF(cal!$S$7=4,FR!Q7,IF(cal!$S$7=5,NR!Q7,IF(cal!$S$7=6,SP!Q7,IF(cal!$S$7=7,SW!Q7,IF(cal!$S$7=8,TS!Q7,IF(cal!$S$7=9,RU!Q7,IF(cal!$S$7=10,ExtraTaal2!Q7,IF(cal!$S$7=11,ExtraTaal3!Q7,))))))))))) -> Скопировать подбор | AH3: =IF(AH$1="English","Ceiling",IF(AH$1="Nederlands","Plafond",IF(AH$1="Deutch","Decke",IF(AH$1="Français","Plafond",IF(AH$1="Norsk","Tak",IF(AH$1="Español","Techo",IF(AH$1="Svenska","Tak",IF(AH$1="Русский","Потолочный",IF(AH$1="Čeština","Strop","Error"))))))))) -> Потолочный | AK3: dikte | AL3: 8.5 | AM3: 8.5 | AN3: 11 | AO3: 11.5 | AP3: 14 | AQ3: 16 | AR3: 14 | AS3: 16
W4: 1 | X4: Briza Net Zero M H42 2P | Z4: =IF($S$7=1,NL!R17,IF(cal!$S$7=2,EN!R17,IF(cal!$S$7=3,DE!R17,IF(cal!$S$7=4,FR!R17,IF(cal!$S$7=5,NR!R17,IF(cal!$S$7=6,SP!R17,IF(cal!$S$7=7,SW!R17,IF(cal!$S$7=8,TS!R17,IF(cal!$S$7=9,RU!R17,IF(cal!$S$7=10,ExtraTaal2!R17,IF(cal!$S$7=11,ExtraTaal3!R17,))))))))))) -> Обогрев! | AA4: =IF($S$7=1,NL!Q8,IF(cal!$S$7=2,EN!Q8,IF(cal!$S$7=3,DE!Q8,IF(cal!$S$7=4,FR!Q8,IF(cal!$S$7=5,NR!Q8,IF(cal!$S$7=6,SP!Q8,IF(cal!$S$7=7,SW!Q8,IF(cal!$S$7=8,TS!Q8,IF(cal!$S$7=9,RU!Q8,IF(cal!$S$7=10,ExtraTaal2!Q8,IF(cal!$S$7=11,ExtraTaal3!Q8,))))))))))) -> Система СИ | AK4: hoogte | AL4: 52.1 | AM4: 53.4 | AN4: 55.8 | AO4: 58.9 | AP4: 42 | AQ4: 42 | AR4: 56 | AS4: 56
B5: =IF($S$7=1,NL!B5,IF(cal!$S$7=2,EN!B5,IF(cal!$S$7=3,DE!B5,IF(cal!$S$7=4,FR!B5,IF(cal!$S$7=5,NR!B5,IF(cal!$S$7=6,SP!B5,IF(cal!$S$7=7,SW!B5,IF(cal!$S$7=8,TS!B5,IF(cal!$S$7=9,RU!B5,IF(cal!$S$7=10,ExtraTaal2!B5,IF(cal!$S$7=11,ExtraTaal3!B5,))))))))))) -> Conditions | X5: Briza Net Zero M H42 4P | Z5: =IF($S$7=1,NL!R18,IF(cal!$S$7=2,EN!R18,IF(cal!$S$7=3,DE!R18,IF(cal!$S$7=4,FR!R18,IF(cal!$S$7=5,NR!R18,IF(cal!$S$7=6,SP!R18,IF(cal!$S$7=7,SW!R18,IF(cal!$S$7=8,TS!R18,IF(cal!$S$7=9,RU!R18,IF(cal!$S$7=10,ExtraTaal2!R18,IF(cal!$S$7=11,ExtraTaal3!R18,))))))))))) -> Охлаждение! | AA5: =IF($S$7=1,NL!Q9,IF(cal!$S$7=2,EN!Q9,IF(cal!$S$7=3,DE!Q9,IF(cal!$S$7=4,FR!Q9,IF(cal!$S$7=5,NR!Q9,IF(cal!$S$7=6,SP!Q9,IF(cal!$S$7=7,SW!Q9,IF(cal!$S$7=8,TS!Q9,IF(cal!$S$7=9,RU!Q9,IF(cal!$S$7=10,ExtraTaal2!Q9,IF(cal!$S$7=11,ExtraTaal3!Q9,))))))))))) -> Английская система мер | AJ5: lengte | AK5: T1 | AL5: 86 | AM5: 86 | AN5: 75 | AO5: 90 | AP5: 75 | AQ5: 75 | AR5: 75 | AS5: 75
X6: Briza Net Zero M H56 2P | AK6: T2 | AL6: 122 | AM6: 122 | AN6: 110 | AO6: 125 | AP6: 95 | AQ6: 95 | AR6: 95 | AS6: 95
B7: =IF($S$7=1,NL!B7,IF(cal!$S$7=2,EN!B7,IF(cal!$S$7=3,DE!B7,IF(cal!$S$7=4,FR!B7,IF(cal!$S$7=5,NR!B7,IF(cal!$S$7=6,SP!B7,IF(cal!$S$7=7,SW!B7,IF(cal!$S$7=8,TS!B7,IF(cal!$S$7=9,RU!B7,IF(cal!$S$7=10,ExtraTaal2!B7,IF(cal!$S$7=11,ExtraTaal3!B7,))))))))))) -> Температура | M7: =IF($S$7=8,"Výška umístění","h_atm") -> h_atm | S7: =IF('Briza Net Zero'!$K$2=cal!$E$1,1,IF('Briza Net Zero'!$K$2=cal!$F$1,2,IF('Briza Net Zero'!$K$2=cal!G1,3,IF('Briza Net Zero'!$K$2=cal!H1,4,IF('Briza Net Zero'!$K$2=cal!I1,5,IF('Briza Net Zero'!$K$2=cal!J1,6,IF('Briza Net Zero'!$K$2=cal!K1,7,IF('Briza Net Zero'!$K$2=cal!L1,8,IF('Briza Net Zero'!$K$2=cal!M1,9,IF('Briza Net Zero'!$K$2=cal!N1,10,IF('Briza Net Zero'!$K$2=cal!O1,11,))))))))))) -> 9 | X7: Briza Net Zero M H56 4P | AK7: T3 | AL7: 163 | AM7: 163 | AN7: 155 | AO7: 170 | AP7: 125 | AQ7: 125 | AR7: 125 | AS7: 125
B8: =IF($S$7=1,NL!B8,IF(cal!$S$7=2,EN!B8,IF(cal!$S$7=3,DE!B8,IF(cal!$S$7=4,FR!B8,IF(cal!$S$7=5,NR!B8,IF(cal!$S$7=6,SP!B8,IF(cal!$S$7=7,SW!B8,IF(cal!$S$7=8,TS!B8,IF(cal!$S$7=9,RU!B8,IF(cal!$S$7=10,ExtraTaal2!B8,IF(cal!$S$7=11,ExtraTaal3!B8,))))))))))) -> Обогрев: | G8: =IF($S$7=1,NL!G8,IF(cal!$S$7=2,EN!G8,IF(cal!$S$7=3,DE!G8,IF(cal!$S$7=4,FR!G8,IF(cal!$S$7=5,NR!G8,IF(cal!$S$7=6,SP!G8,IF(cal!$S$7=7,SW!G8,IF(cal!$S$7=8,TS!G8,IF(cal!$S$7=9,RU!G8,IF(cal!$S$7=10,ExtraTaal2!G8,IF(cal!$S$7=11,ExtraTaal3!G8,))))))))))) -> Охлаждение: | M8: ='Briza Net Zero'!M7 -> 0.00 | N8: ='Briza Net Zero'!N7 -> 0.00 | S8: Temp | W8: Temp | X8: Briza 12 H55 2P casing | AK8: T4 | AL8: 199 | AM8: 199 | AN8: 190 | AO8: 205 | AP8: 145 | AQ8: 145 | AR8: 145 | AS8: 145
B9: =IF($S$7=1,NL!B9,IF(cal!$S$7=2,EN!B9,IF(cal!$S$7=3,DE!B9,IF(cal!$S$7=4,FR!B9,IF(cal!$S$7=5,NR!B9,IF(cal!$S$7=6,SP!B9,IF(cal!$S$7=7,SW!B9,IF(cal!$S$7=8,TS!B9,IF(cal!$S$7=9,RU!B9,IF(cal!$S$7=10,ExtraTaal2!B9,IF(cal!$S$7=11,ExtraTaal3!B9,))))))))))) -> Темп.подачи | C9: =IF($S$7=1,NL!C9,IF(cal!$S$7=2,EN!C9,IF(cal!$S$7=3,DE!C9,IF(cal!$S$7=4,FR!C9,IF(cal!$S$7=5,NR!C9,IF(cal!$S$7=6,SP!C9,IF(cal!$S$7=7,SW!C9,IF(cal!$S$7=8,TS!C9,IF(cal!$S$7=9,RU!C9,IF(cal!$S$7=10,ExtraTaal2!C9,IF(cal!$S$7=11,ExtraTaal3!C9,))))))))))) -> 0 | D9: =IF($S$7=1,NL!D9,IF(cal!$S$7=2,EN!D9,IF(cal!$S$7=3,DE!D9,IF(cal!$S$7=4,FR!D9,IF(cal!$S$7=5,NR!D9,IF(cal!$S$7=6,SP!D9,IF(cal!$S$7=7,SW!D9,IF(cal!$S$7=8,TS!D9,IF(cal!$S$7=9,RU!D9,IF(cal!$S$7=10,ExtraTaal2!D9,IF(cal!$S$7=11,ExtraTaal3!D9,))))))))))) -> 0 | E9: ='Briza Net Zero'!E8 -> 95 | F9: =IF($W$4=1,"°C",IF($W$4=2,"°F",)) -> °C | G9: =B9 -> Темп.подачи | H9: =IF($S$7=1,NL!H9,IF(cal!$S$7=2,EN!H9,IF(cal!$S$7=3,DE!H9,IF(cal!$S$7=4,FR!H9,)))) -> 0 | I9: =IF($S$7=1,NL!I9,IF(cal!$S$7=2,EN!I9,IF(cal!$S$7=3,DE!I9,IF(cal!$S$7=4,FR!I9,)))) -> 0 | J9: =IF($S$7=1,NL!J9,IF(cal!$S$7=2,EN!J9,IF(cal!$S$7=3,DE!J9,IF(cal!$S$7=4,FR!J9,)))) -> 0 | K9: ='Briza Net Zero'!K8 -> 7 | L9: =F9 -> °C | M9: =IF($S$7=1,NL!M9,IF(cal!$S$7=2,EN!M9,IF(cal!$S$7=3,DE!M9,IF(cal!$S$7=4,FR!M9,IF(cal!$S$7=5,NR!M9,IF(cal!$S$7=6,SP!M9,)))))) -> 0 | N9: =IF($S$7=1,NL!N9,IF(cal!$S$7=2,EN!N9,IF(cal!$S$7=3,DE!N9,IF(cal!$S$7=4,FR!N9,IF(cal!$S$7=5,#REF!,))))) -> 0 | S9: =IF($W$4=1,E9,IF($W$4=2,(E9-32)/1.8)) -> 95.0 | W9: =IF($W$4=1,K9,IF($W$4=2,(K9-32)/1.8)) -> 7.0 | X9: Briza 12 H55 4P casing
B10: =IF($S$7=1,NL!B10,IF(cal!$S$7=2,EN!B10,IF(cal!$S$7=3,DE!B10,IF(cal!$S$7=4,FR!B10,IF(cal!$S$7=5,NR!B10,IF(cal!$S$7=6,SP!B10,IF(cal!$S$7=7,SW!B10,IF(cal!$S$7=8,TS!B10,IF(cal!$S$7=9,RU!B10,IF(cal!$S$7=10,ExtraTaal2!B10,IF(cal!$S$7=11,ExtraTaal3!B10,))))))))))) -> Темп.обратная | C10: =IF($S$7=1,NL!C10,IF(cal!$S$7=2,EN!C10,IF(cal!$S$7=3,DE!C10,IF(cal!$S$7=4,FR!C10,IF(cal!$S$7=5,NR!C10,IF(cal!$S$7=6,SP!C10,IF(cal!$S$7=7,SW!C10,IF(cal!$S$7=8,TS!C10,IF(cal!$S$7=9,RU!C10,IF(cal!$S$7=10,ExtraTaal2!C10,IF(cal!$S$7=11,ExtraTaal3!C10,))))))))))) -> 0 | D10: =IF($S$7=1,NL!D10,IF(cal!$S$7=2,EN!D10,IF(cal!$S$7=3,DE!D10,IF(cal!$S$7=4,FR!D10,IF(cal!$S$7=5,NR!D10,IF(cal!$S$7=6,SP!D10,IF(cal!$S$7=7,SW!D10,IF(cal!$S$7=8,TS!D10,IF(cal!$S$7=9,RU!D10,IF(cal!$S$7=10,ExtraTaal2!D10,IF(cal!$S$7=11,ExtraTaal3!D10,))))))))))) -> 0 | E10: ='Briza Net Zero'!E9 -> 70 | F10: =F9 -> °C | G10: =B10 -> Темп.обратная | H10: =IF($S$7=1,NL!H10,IF(cal!$S$7=2,EN!H10,IF(cal!$S$7=3,DE!H10,IF(cal!$S$7=4,FR!H10,)))) -> 0 | I10: =IF($S$7=1,NL!I10,IF(cal!$S$7=2,EN!I10,IF(cal!$S$7=3,DE!I10,IF(cal!$S$7=4,FR!I10,)))) -> 0 | J10: =IF($S$7=1,NL!J10,IF(cal!$S$7=2,EN!J10,IF(cal!$S$7=3,DE!J10,IF(cal!$S$7=4,FR!J10,)))) -> 0 | K10: ='Briza Net Zero'!K9 -> 12 | L10: =F9 -> °C | S10: =IF($W$4=1,E10,IF($W$4=2,(E10-32)/1.8)) -> 70.0 | W10: =IF($W$4=1,K10,IF($W$4=2,(K10-32)/1.8)) -> 12.0 | Y10: p_atm | Z10: h[mm] | AA10: cf_h
B11: =IF($S$7=1,NL!B11,IF(cal!$S$7=2,EN!B11,IF(cal!$S$7=3,DE!B11,IF(cal!$S$7=4,FR!B11,IF(cal!$S$7=5,NR!B11,IF(cal!$S$7=6,SP!B11,IF(cal!$S$7=7,SW!B11,IF(cal!$S$7=8,TS!B11,IF(cal!$S$7=9,RU!B11,IF(cal!$S$7=10,ExtraTaal2!B11,IF(cal!$S$7=11,ExtraTaal3!B11,))))))))))) -> Темп.воздуха | C11: =IF($S$7=1,NL!C11,IF(cal!$S$7=2,EN!C11,IF(cal!$S$7=3,DE!C11,IF(cal!$S$7=4,FR!C11,IF(cal!$S$7=5,NR!C11,IF(cal!$S$7=6,SP!C11,IF(cal!$S$7=7,SW!C11,IF(cal!$S$7=8,TS!C11,IF(cal!$S$7=9,RU!C11,IF(cal!$S$7=10,ExtraTaal2!C11,IF(cal!$S$7=11,ExtraTaal3!C11,))))))))))) -> 0 | D11: =IF($S$7=1,NL!D11,IF(cal!$S$7=2,EN!D11,IF(cal!$S$7=3,DE!D11,IF(cal!$S$7=4,FR!D11,IF(cal!$S$7=5,NR!D11,IF(cal!$S$7=6,SP!D11,IF(cal!$S$7=7,SW!D11,IF(cal!$S$7=8,TS!D11,IF(cal!$S$7=9,RU!D11,IF(cal!$S$7=10,ExtraTaal2!D11,IF(cal!$S$7=11,ExtraTaal3!D11,))))))))))) -> 0 | E11: ='Briza Net Zero'!E10 -> 20 | F11: =F9 -> °C | G11: =B11 -> Темп.воздуха | H11: =IF($S$7=1,NL!H11,IF(cal!$S$7=2,EN!H11,IF(cal!$S$7=3,DE!H11,IF(cal!$S$7=4,FR!H11,)))) -> 0 | K11: ='Briza Net Zero'!K10 -> 20 | L11: =F9 -> °C | S11: 20.0 | W11: 20.0 | Y11: =IF($W$4=1,(101325*(1-((0.0065*M8)/(288.15)))^((9.81*0.028964)/(8.31447*0.0065))),IF($W$4=2,(101325*(1-((0.0065*(M8*0.3048))/(288.15)))^((9.81*0.028964)/(8.31447*0.0065))))) -> 101325 | Z11: =IF($W$4=1,M8/1000,IF($W$4=2,M8*0.0003048)) -> 0 | AA11: =-(0.000265264729874266*Z11^6)+(0.000957582908802335*Z11^5)+(0.00470250661483425*Z11^4)-(0.0298716926548353*Z11^3)+(0.0557086806557086*Z11^2)-(0.0484008125693582*Z11)+1 -> 1
G12: =IF($S$7=1,NL!G12,IF(cal!$S$7=2,EN!G12,IF(cal!$S$7=3,DE!G12,IF(cal!$S$7=4,FR!G12,IF(cal!$S$7=5,NR!G12,IF(cal!$S$7=6,SP!G12,IF(cal!$S$7=7,SW!G12,IF(cal!$S$7=8,TS!G12,IF(cal!$S$7=9,RU!G12,IF(cal!$S$7=10,ExtraTaal2!G12,IF(cal!$S$7=11,ExtraTaal3!G12,))))))))))) -> Влажность | K12: ='Briza Net Zero'!K11 -> 50%
D14: =IF($W$4=1,1,IF($W$4=2,3.412141633)) -> 1.0000 | E14: =IF($W$4=1,1,IF($W$4=2,0.004403)) -> 1.0000 | F14: =IF($W$4=1,1,IF($W$4=2,4.0147)) -> 1.0000 | G14: =IF($W$4=1,1,IF($W$4=2,3.412141633)) -> 1.0000 | H14: 1.0000 | I14: =IF($W$4=1,1,IF($W$4=2,0.004403)) -> 1.0000 | J14: =IF($W$4=1,1,IF($W$4=2,4.0147)) -> 1.0000 | K14: =IF($W$4=1,0.000334444444444444,IF($W$4=2,0.000568224721372)) -> 0.0003344444444 | M14: =IF($W$4=1,1,IF($W$4=2,1.8)) -> 1 | N14: =IF($W$4=1,1,IF($W$4=2,0.588575)) -> 1.0000 | O14: =IF($W$4=1,0,IF($W$4=2,32)) -> 0.0000
B15: =IF($S$7=1,NL!B15,IF(cal!$S$7=2,EN!B15,IF(cal!$S$7=3,DE!B15,IF(cal!$S$7=4,FR!B15,IF(cal!$S$7=5,NR!B15,IF(cal!$S$7=6,SP!B15,IF(cal!$S$7=7,SW!B15,IF(cal!$S$7=8,TS!B15,IF(cal!$S$7=9,RU!B15,IF(cal!$S$7=10,ExtraTaal2!B15,IF(cal!$S$7=11,ExtraTaal3!B15,))))))))))) -> Скорость вентилятора | C15: =IF($S$7=1,NL!C15,IF(cal!$S$7=2,EN!C15,IF(cal!$S$7=3,DE!C15,IF(cal!$S$7=4,FR!C15,IF(cal!$S$7=5,NR!C15,IF(cal!$S$7=6,SP!C15,IF(cal!$S$7=7,SW!C15,IF(cal!$S$7=8,TS!C15,IF(cal!$S$7=9,RU!C15,IF(cal!$S$7=10,ExtraTaal2!C15,IF(cal!$S$7=11,ExtraTaal3!C15,))))))))))) -> Управляющий сигнал [V] | D15: =IF($S$7=1,NL!D15,IF(cal!$S$7=2,EN!D15,IF(cal!$S$7=3,DE!D15,IF(cal!$S$7=4,FR!D15,IF(cal!$S$7=5,NR!D15,IF(cal!$S$7=6,SP!D15,IF(cal!$S$7=7,SW!D15,IF(cal!$S$7=8,TS!D15,IF(cal!$S$7=9,RU!D15,IF(cal!$S$7=10,ExtraTaal2!D15,IF(cal!$S$7=11,ExtraTaal3!D15,))))))))))) -> Мощность отпление 95/70/20 [W] | E15: =IF($S$7=1,NL!E15,IF(cal!$S$7=2,EN!E15,IF(cal!$S$7=3,DE!E15,IF(cal!$S$7=4,FR!E15,IF(cal!$S$7=5,NR!E15,IF(cal!$S$7=6,SP!E15,IF(cal!$S$7=7,SW!E15,IF(cal!$S$7=8,TS!E15,IF(cal!$S$7=9,RU!E15,IF(cal!$S$7=10,ExtraTaal2!E15,IF(cal!$S$7=11,ExtraTaal3!E15,))))))))))) -> Расход теплоносителя, отопление [l/h] | F15: =IF($S$7=1,NL!F15,IF(cal!$S$7=2,EN!F15,IF(cal!$S$7=3,DE!F15,IF(cal!$S$7=4,FR!F15,IF(cal!$S$7=5,NR!F15,IF(cal!$S$7=6,SP!F15,IF(cal!$S$7=7,SW!F15,IF(cal!$S$7=8,TS!F15,IF(cal!$S$7=9,RU!F15,IF(cal!$S$7=10,ExtraTaal2!F15,IF(cal!$S$7=11,ExtraTaal3!F15,))))))))))) -> Потери давления жидкости [kPa] | G15: =IF($S$7=1,NL!G15,IF(cal!$S$7=2,EN!G15,IF(cal!$S$7=3,DE!G15,IF(cal!$S$7=4,FR!G15,IF(cal!$S$7=5,NR!G15,IF(cal!$S$7=6,SP!G15,IF(cal!$S$7=7,SW!G15,IF(cal!$S$7=8,TS!G15,IF(cal!$S$7=9,RU!G15,IF(cal!$S$7=10,ExtraTaal2!G15,IF(cal!$S$7=11,ExtraTaal3!G15,))))))))))) -> Ощущ. мощность, охлаждение 7/12/20 [W] | H15: =IF($S$7=1,NL!H15,IF(cal!$S$7=2,EN!H15,IF(cal!$S$7=3,DE!H15,IF(cal!$S$7=4,FR!H15,IF(cal!$S$7=5,NR!H15,IF(cal!$S$7=6,SP!H15,IF(cal!$S$7=7,SW!H15,IF(cal!$S$7=8,TS!H15,IF(cal!$S$7=9,RU!H15,IF(cal!$S$7=10,ExtraTaal2!H15,IF(cal!$S$7=11,ExtraTaal3!H15,))))))))))) -> Общая мощность , охлаждение 7/12/20 [W] | I15: =IF($S$7=1,NL!I15,IF(cal!$S$7=2,EN!I15,IF(cal!$S$7=3,DE!I15,IF(cal!$S$7=4,FR!I15,IF(cal!$S$7=5,NR!I15,IF(cal!$S$7=6,SP!I15,IF(cal!$S$7=7,SW!I15,IF(cal!$S$7=8,TS!I15,IF(cal!$S$7=9,RU!I15,IF(cal!$S$7=10,ExtraTaal2!I15,IF(cal!$S$7=11,ExtraTaal3!I15,))))))))))) -> Расход теплоносителя, охлаждение [l/h] | J15: =IF($S$7=1,NL!J15,IF(cal!$S$7=2,EN!J15,IF(cal!$S$7=3,DE!J15,IF(cal!$S$7=4,FR!J15,IF(cal!$S$7=5,NR!J15,IF(cal!$S$7=6,SP!J15,IF(cal!$S$7=7,SW!J15,IF(cal!$S$7=8,TS!J15,IF(cal!$S$7=9,RU!J15,IF(cal!$S$7=10,ExtraTaal2!J15,IF(cal!$S$7=11,ExtraTaal3!J15,))))))))))) -> Потери давления жидкости [kPa] | K15: =IF($S$7=1,NL!K15,IF(cal!$S$7=2,EN!K15,IF(cal!$S$7=3,DE!K15,IF(cal!$S$7=4,FR!K15,IF(cal!$S$7=5,NR!K15,IF(cal!$S$7=6,SP!K15,IF(cal!$S$7=7,SW!K15,IF(cal!$S$7=8,TS!K15,IF(cal!$S$7=9,RU!K15,IF(cal!$S$7=10,ExtraTaal2!K15,IF(cal!$S$7=11,ExtraTaal3!K15,))))))))))) -> Звуковое давление ** [dB(A)] | L15: =IF($S$7=1,NL!L15,IF(cal!$S$7=2,EN!L15,IF(cal!$S$7=3,DE!L15,IF(cal!$S$7=4,FR!L15,IF(cal!$S$7=5,NR!L15,IF(cal!$S$7=6,SP!L15,IF(cal!$S$7=7,SW!L15,IF(cal!$S$7=8,TS!L15,IF(cal!$S$7=9,RU!L15,IF(cal!$S$7=10,ExtraTaal2!L15,IF(cal!$S$7=11,ExtraTaal3!L15,))))))))))) -> Звуковая мощность * [dB(A)] | M15: =IF($S$7=1,NL!M15,IF(cal!$S$7=2,EN!M15,IF(cal!$S$7=3,DE!M15,IF(cal!$S$7=4,FR!M15,IF(cal!$S$7=5,NR!M15,IF(cal!$S$7=6,SP!M15,IF(cal!$S$7=7,SW!M15,IF(cal!$S$7=8,TS!M15,IF(cal!$S$7=9,RU!M15,IF(cal!$S$7=10,ExtraTaal2!M15,IF(cal!$S$7=11,ExtraTaal3!M15,))))))))))) -> Потребляемая мощность [W] | N15: =IF($S$7=1,NL!N15,IF(cal!$S$7=2,EN!N15,IF(cal!$S$7=3,DE!N15,IF(cal!$S$7=4,FR!N15,IF(cal!$S$7=5,NR!N15,IF(cal!$S$7=6,SP!N15,IF(cal!$S$7=7,SW!N15,IF(cal!$S$7=8,TS!N15,IF(cal!$S$7=9,RU!N15,IF(cal!$S$7=10,ExtraTaal2!N15,IF(cal!$S$7=11,ExtraTaal3!N15,))))))))))) -> Расход воздуха [m³/h] | O15: =IF($S$7=1,NL!O15,IF(cal!$S$7=2,EN!O15,IF(cal!$S$7=3,DE!O15,IF(cal!$S$7=4,FR!O15,IF(cal!$S$7=5,NR!O15,IF(cal!$S$7=6,SP!O15,IF(cal!$S$7=7,SW!O15,IF(cal!$S$7=8,TS!O15,IF(cal!$S$7=9,RU!O15,IF(cal!$S$7=10,ExtraTaal2!O15,IF(cal!$S$7=11,ExtraTaal3!O15,))))))))))) -> Темп. воздуха на выходе. отопление [°C] | P15: =IF($S$7=1,NL!P15,IF(cal!$S$7=2,EN!P15,IF(cal!$S$7=3,DE!P15,IF(cal!$S$7=4,FR!P15,IF(cal!$S$7=5,NR!P15,IF(cal!$S$7=6,SP!P15,IF(cal!$S$7=7,SW!P15,IF(cal!$S$7=8,TS!P15,IF(cal!$S$7=9,RU!P15,IF(cal!$S$7=10,ExtraTaal2!P15,IF(cal!$S$7=11,ExtraTaal3!P15,))))))))))) -> Темп.воздуха на выходе. охлаждение [°C] | W15: Q_verw | X15: KV | Y15: Q_voelb_c | Z15: dP_cool | AA15: Geluid_P | AB15: P_elek | AC15: V_air | AE15: Q_verw | AF15: KV | AG15: Q_voelb_c | AH15: kV | AI15: Geluid_P | AJ15: P_elek | AK15: V_air | AL15: Q_verw | AM15: KV | AN15: Q_voelb_c | AO15: KV | AP15: Geluid_P | AQ15: P_elek | AR15: V_air | AS15: Q_verw | AT15: KV | AU15: Q_voelb_c | AV15: KV | AW15: Geluid_P | AX15: P_elek | AY15: V_air | AZ15: Q_verw | BA15: KV | BB15: Q_voelb_c | BC15: KV | BD15: Geluid_P | BE15: P_elek | BF15: V_air | BG15: Q_verw | BH15: dP_verw | BI15: Q_voelb_c | BJ15: dP_cool | BK15: Geluid_P | BL15: P_elek | BM15: V_air | BN15: Q_verw | BO15: dP_verw | BP15: Q_voelb_c | BQ15: dP_cool | BR15: Geluid_P | BS15: P_elek | BT15: V_air | BU15: Q_verw | BV15: dP_verw | BW15: Q_voelb_c | BX15: dP_cool | BY15: Geluid_P | BZ15: P_elek | CA15: V_air | CB15: Q_verw | CC15: dP_verw | CD15: Q_voelb_c | CE15: dP_cool | CF15: Geluid_P | CG15: P_elek | CH15: V_air
B16: =IF($S$7=1,NL!B16,IF(cal!$S$7=2,EN!B16,IF(cal!$S$7=3,DE!B16,IF(cal!$S$7=4,FR!B16,IF(cal!$S$7=5,NR!B16,IF(cal!$S$7=6,SP!B16,IF(cal!$S$7=7,SW!B16,IF(cal!$S$7=8,TS!B16,IF(cal!$S$7=9,RU!B16,IF(cal!$S$7=10,ExtraTaal2!B16,IF(cal!$S$7=11,ExtraTaal3!B16,))))))))))) -> Briza Net Zero M H42 2P Высота 42 cm Ширина 14 cm Длина 75 cm (Тип 1) | S16: n-value | W16: =IF('Briza Net Zero'!$K$4=cal!$X2,1,IF('Briza Net Zero'!$K$4=cal!$X3,2,IF('Briza Net Zero'!$K$4=cal!$X4,3,IF('Briza Net Zero'!$K$4=cal!$X5,4,IF('Briza Net Zero'!$K$4=cal!$X6,5,IF('Briza Net Zero'!$K$4=cal!$X7,6,IF('Briza Net Zero'!$K$4=cal!$X8,7,IF('Briza Net Zero'!$K$4=cal!$X9,8,)))))))) -> 3 | AE16: Briza Net Zero XS | AL16: Briza Net Zero S | AS16: Briza Net Zero M H41 2P | AZ16: Briza Net Zero M H41 4P | BG16: Briza Net Zero M H55 2P | BN16: Briza Net Zero M H55 4P | BU16: unused | CB16: unused
B17: 20% | C17: 2 | D17: =(($W$17*$C17^4+$W$18*$C17^3+$W$19*$C17^2+$W$20*$C17+$W$21)*((((Tv_heat-Tr_heat)/LN((Tv_heat-Tl_heat)/(Tr_heat-Tl_heat)))/((75-65)/LN((75-20)/(65-20))))^$S17))*$D$14*$AA$11 -> 1117 | E17: =ROUND(((D17/$D$14)/((Tv_heat-Tr_heat)*1.163))*$E$14,IF($W$4=1,0,IF($W$4=2,2))) -> 38 | F17: =IF($AA$1=1,IF((POWER(((E17/$I$14)/1000)/$X$18,2)*100)*$J$14<0.01,0.01,(POWER(((E17/$I$14)/1000)/$X$18,2)*100)*$J$14),($X$18*(E17/$E$14)^$X$20)*$F$14) -> 0.05 | G17: =(($Y$17*$C17^4+$Y$18*$C17^3+$Y$19*$C17^2+$Y$20*$C17+$Y$21)*((((Tv_cool-Tr_cool)/LN((Tv_cool-Tl_cool)/(Tr_cool-Tl_cool)))/((16-18)/LN((16-27)/(18-27))))^S17))*$G$14*$AA$11 -> 119 | H17: =((G17/$G$14)/(IF((237.3*LN((RH*EXP(17.27*(Tl_cool/(Tl_cool+237.3))))))/(17.27-LN((RH*EXP(17.27*(Tl_cool/(Tl_cool+237.3))))))<((Tv_cool+Tr_cool)/2),1,IF(1/(1+((2258*((0.622/((p_atm/(1*611*EXP(17.27*(((Tv_cool+Tr_cool)/2)/(((Tv_cool+Tr_cool)/2)+237.3))))))-1)*1000-(0.622/((p_atm/(RH*611*EXP(17.27*(Tl_cool/(Tl_cool+237.3))))))-1)*1000))/(1005*(((Tv_cool+Tr_cool)/2)-Tl_cool))))*1.039+((-0.000729*$C17+0.001448)*(Tl_cool-((Tv_cool+Tr_cool)/2))+(0.016908*$C17-0.033574))*1.039>1,1,1/(1+((2258*((0.622/((p_atm/(1*611*EXP(17.27*(((Tv_cool+Tr_cool)/2)/(((Tv_cool+Tr_cool)/2)+237.3))))))-1)*1000-(0.622/((p_atm/(RH*611*EXP(17.27*(Tl_cool/(Tl_cool+237.3))))))-1)*1000))/(1005*(((Tv_cool+Tr_cool)/2)-Tl_cool))))*1.039+((-0.000729*$C17+0.001448)*(Tl_cool-((Tv_cool+Tr_cool)/2))+(0.016908*$C17-0.033574))*1.039))))*$H$14 -> 119 | I17: =ROUND(((H17/$H$14)/((Tr_cool-Tv_cool)*1.163))*$I$14,IF($W$4=1,0,IF($W$4=2,2))) -> 21 | J17: =IF($AA$1=1,IF((POWER(((I17/$I$14)/1000)/$X$18,2)*100)*$J$14<0.01,0.01,(POWER(((I17/$I$14)/1000)/$X$18,2)*100)*$J$14),($Z$18*(I17/$I$14)^$Z$20)*$J$14) -> 0.02 | K17: =IF(AA17<28,"<20",L17-8) -> <20 | L17: =IF(AA17<20,"<20",AA17) -> 26.5 | M17: =AB17 -> 1.6 | N17: =AC17*$N$14 -> 64 | O17: =(Tl_heat+(($D17/$G$14)/(1006*$N17*$K$14)))*$M$14+$O$14 -> 71.9 | P17: =(Tl_cool-(($G17/$G$14)/(1006*$N17*$K$14)))*$M$14+$O$14 -> 14.5 | S17: 1.000 | W17: =IF($W$16=1,AE17,IF($W$16=2,AL17,IF($W$16=3,AS17,IF($W$16=4,AZ17,IF($W$16=5,BG17,IF($W$16=6,BN17,IF($W$16=7,BU17,IF($W$16=8,CB17)))))))) -> 0.007426362652 | X17: =IF($W$16=1,AF17,IF($W$16=2,AM17,IF($W$16=3,AT17,IF($W$16=4,BA17,IF($W$16=5,BH17,IF($W$16=6,BO17,IF($W$16=7,BV17,IF($W$16=8,CC17)))))))) -> a | Y17: =IF($W$16=1,AG17,IF($W$16=2,AN17,IF($W$16=3,AU17,IF($W$16=4,BB17,IF($W$16=5,BI17,IF($W$16=6,BP17,IF($W$16=7,BW17,IF($W$16=8,CD17)))))))) -> 0 | Z17: =IF($W$16=1,AH17,IF($W$16=2,AO17,IF($W$16=3,AV17,IF($W$16=4,BC17,IF($W$16=5,BJ17,IF($W$16=6,BQ17,IF($W$16=7,BX17,IF($W$16=8,CE17)))))))) -> a | AA17: =IF($W$16=1,AI17,IF($W$16=2,AP17,IF($W$16=3,AW17,IF($W$16=4,BD17,IF($W$16=5,BK17,IF($W$16=6,BR17,IF($W$16=7,BY17,IF($W$16=8,CF17)))))))) -> 26.5 | AB17: =IF($W$16=1,AJ17,IF($W$16=2,AQ17,IF($W$16=3,AX17,IF($W$16=4,BE17,IF($W$16=5,BL17,IF($W$16=6,BS17,IF($W$16=7,BZ17,IF($W$16=8,CG17)))))))) -> 1.6 | AC17: =IF($W$16=1,AK17,IF($W$16=2,AR17,IF($W$16=3,AY17,IF($W$16=4,BF17,IF($W$16=5,BM17,IF($W$16=6,BT17,IF($W$16=7,CA17,IF($W$16=8,CH17)))))))) -> 64 | AD17: c | AE17: 0 | AF17: a | AH17: a | AI17: 11.0 | AJ17: 0.500 | AK17: 25 | AL17: 0.0002819975169 | AM17: a | AN17: -0.0003060129347 | AO17: a | AP17: 25.0 | AQ17: 1.0 | AR17: 32 | AS17: 0.007426362652 | AT17: a | AV17: a | AW17: 26.5 | AX17: 1.6 | AY17: 64 | AZ17: -0.30147361 | BA17: a | BC17: a | BD17: 26.5 | BE17: 1.8 | BF17: 29 | BH17: a | BI17: -0.0010144326 | BJ17: a | BK17: 27.2 | BL17: 2.0 | BM17: 81 | BN17: -0.2429220968 | BO17: a | BQ17: a | BR17: 27.2 | BS17: 1.6 | BT17: 27
B18: 40% | C18: 4 | D18: =(($W$17*$C18^4+$W$18*$C18^3+$W$19*$C18^2+$W$20*$C18+$W$21)*((((Tv_heat-Tr_heat)/LN((Tv_heat-Tl_heat)/(Tr_heat-Tl_heat)))/((75-65)/LN((75-20)/(65-20))))^1))*$D$14*$AA$11 -> 1280 | E18: =ROUND(((D18/$D$14)/((Tv_heat-Tr_heat)*1.163))*$E$14,IF($W$4=1,0,IF($W$4=2,2))) -> 44 | F18: =IF($AA$1=1,IF((POWER(((E18/$I$14)/1000)/$X$18,2)*100)*$J$14<0.01,0.01,(POWER(((E18/$I$14)/1000)/$X$18,2)*100)*$J$14),($X$18*(E18/$E$14)^$X$20)*$F$14) -> 0.06 | G18: =(($Y$17*$C18^4+$Y$18*$C18^3+$Y$19*$C18^2+$Y$20*$C18+$Y$21)*((((Tv_cool-Tr_cool)/LN((Tv_cool-Tl_cool)/(Tr_cool-Tl_cool)))/((16-18)/LN((16-27)/(18-27))))^S18))*$G$14*$AA$11 -> 139 | H18: =((G18/$G$14)/(IF((237.3*LN((RH*EXP(17.27*(Tl_cool/(Tl_cool+237.3))))))/(17.27-LN((RH*EXP(17.27*(Tl_cool/(Tl_cool+237.3))))))<((Tv_cool+Tr_cool)/2),1,IF(1/(1+((2258*((0.622/((p_atm/(1*611*EXP(17.27*(((Tv_cool+Tr_cool)/2)/(((Tv_cool+Tr_cool)/2)+237.3))))))-1)*1000-(0.622/((p_atm/(RH*611*EXP(17.27*(Tl_cool/(Tl_cool+237.3))))))-1)*1000))/(1005*(((Tv_cool+Tr_cool)/2)-Tl_cool))))*1.039+((-0.000729*$C18+0.001448)*(Tl_cool-((Tv_cool+Tr_cool)/2))+(0.016908*$C18-0.033574))*1.039>1,1,1/(1+((2258*((0.622/((p_atm/(1*611*EXP(17.27*(((Tv_cool+Tr_cool)/2)/(((Tv_cool+Tr_cool)/2)+237.3))))))-1)*1000-(0.622/((p_atm/(RH*611*EXP(17.27*(Tl_cool/(Tl_cool+237.3))))))-1)*1000))/(1005*(((Tv_cool+Tr_cool)/2)-Tl_cool))))*1.039+((-0.000729*$C18+0.001448)*(Tl_cool-((Tv_cool+Tr_cool)/2))+(0.016908*$C18-0.033574))*1.039))))*$H$14 -> 139 | I18: =ROUND(((H18/$H$14)/((Tr_cool-Tv_cool)*1.163))*$I$14,IF($W$4=1,0,IF($W$4=2,2))) -> 24 | J18: =IF($AA$1=1,IF((POWER(((I18/$I$14)/1000)/$X$18,2)*100)*$J$14<0.01,0.01,(POWER(((I18/$I$14)/1000)/$X$18,2)*100)*$J$14),($Z$18*(I18/$I$14)^$Z$20)*$J$14) -> 0.02 | K18: =IF(AA18<28,"<20",L18-8) -> 29.4 | L18: =IF(AA18<20,"<20",AA18) -> 37.4 | M18: =AB18 -> 2.6 | N18: =AC18*$N$14 -> 101 | O18: =(Tl_heat+(($D18/$G$14)/(1006*$N18*$K$14)))*$M$14+$O$14 -> 57.7 | P18: =(Tl_cool-(($G18/$G$14)/(1006*$N18*$K$14)))*$M$14+$O$14 -> 15.9 | S18: 1.000 | W18: =IF($W$16=1,AE18,IF($W$16=2,AL18,IF($W$16=3,AS18,IF($W$16=4,AZ18,IF($W$16=5,BG18,IF($W$16=6,BN18,IF($W$16=7,BU18,IF($W$16=8,CB18)))))))) -> 0.211738768 | X18: =IF($W$16=1,AF18,IF($W$16=2,AM18,IF($W$16=3,AT18,IF($W$16=4,BA18,IF($W$16=5,BH18,IF($W$16=6,BO18,IF($W$16=7,BV18,IF($W$16=8,CC18)))))))) -> 6.227681964e-05 | Y18: =IF($W$16=1,AG18,IF($W$16=2,AN18,IF($W$16=3,AU18,IF($W$16=4,BB18,IF($W$16=5,BI18,IF($W$16=6,BP18,IF($W$16=7,BW18,IF($W$16=8,CD18)))))))) -> -0.03009975514 | Z18: =IF($W$16=1,AH18,IF($W$16=2,AO18,IF($W$16=3,AV18,IF($W$16=4,BC18,IF($W$16=5,BJ18,IF($W$16=6,BQ18,IF($W$16=7,BX18,IF($W$16=8,CE18)))))))) -> 6.227681964e-05 | AA18: 37.4 | AB18: 2.6 | AC18: 101 | AD18: d | AE18: 0 | AF18: 1.903 | AH18: =AF18 -> 1.903 | AI18: 21.0 | AJ18: 0.800 | AK18: 34 | AL18: -0.01182826387 | AM18: 1.458649915 | AN18: -0.0008502911247 | AO18: 1.458649915 | AP18: 31.5 | AQ18: 1.4 | AR18: 63 | AS18: 0.211738768 | AT18: 6.227681964e-05 | AU18: -0.03009975514 | AV18: 6.227681964e-05 | AW18: 37.4 | AX18: 2.6 | AY18: 101 | AZ18: 8.050935653 | BA18: 6.227681964e-05 | BC18: 6.227681964e-05 | BD18: 37.4 | BE18: 3.0 | BF18: 61 | BH18: 0.0001326354787 | BI18: -0.002007032122 | BJ18: 0.0001326354787 | BK18: 33.2 | BL18: 3.2 | BM18: 118 | BN18: 6.22880444 | BO18: 6.227681964e-05 | BP18: -0.1004755637 | BQ18: 0.0001326354787 | BR18: 33.2 | BS18: 2.2 | BT18: 67
B19: 60% | C19: 6 | D19: =(($W$17*$C19^4+$W$18*$C19^3+$W$19*$C19^2+$W$20*$C19+$W$21)*((((Tv_heat-Tr_heat)/LN((Tv_heat-Tl_heat)/(Tr_heat-Tl_heat)))/((75-65)/LN((75-20)/(65-20))))^1))*$D$14*$AA$11 -> 1478 | E19: =ROUND(((D19/$D$14)/((Tv_heat-Tr_heat)*1.163))*$E$14,IF($W$4=1,0,IF($W$4=2,2))) -> 51 | F19: 0.08 | G19: =(($Y$17*$C19^4+$Y$18*$C19^3+$Y$19*$C19^2+$Y$20*$C19+$Y$21)*((((Tv_cool-Tr_cool)/LN((Tv_cool-Tl_cool)/(Tr_cool-Tl_cool)))/((16-18)/LN((16-27)/(18-27))))^S19))*$G$14*$AA$11 -> 164 | H19: =((G19/$G$14)/(IF((237.3*LN((RH*EXP(17.27*(Tl_cool/(Tl_cool+237.3))))))/(17.27-LN((RH*EXP(17.27*(Tl_cool/(Tl_cool+237.3))))))<((Tv_cool+Tr_cool)/2),1,IF(1/(1+((2258*((0.622/((p_atm/(1*611*EXP(17.27*(((Tv_cool+Tr_cool)/2)/(((Tv_cool+Tr_cool)/2)+237.3))))))-1)*1000-(0.622/((p_atm/(RH*611*EXP(17.27*(Tl_cool/(Tl_cool+237.3))))))-1)*1000))/(1005*(((Tv_cool+Tr_cool)/2)-Tl_cool))))*1.039+((-0.000729*$C19+0.001448)*(Tl_cool-((Tv_cool+Tr_cool)/2))+(0.016908*$C19-0.033574))*1.039>1,1,1/(1+((2258*((0.622/((p_atm/(1*611*EXP(17.27*(((Tv_cool+Tr_cool)/2)/(((Tv_cool+Tr_cool)/2)+237.3))))))-1)*1000-(0.622/((p_atm/(RH*611*EXP(17.27*(Tl_cool/(Tl_cool+237.3))))))-1)*1000))/(1005*(((Tv_cool+Tr_cool)/2)-Tl_cool))))*1.039+((-0.000729*$C19+0.001448)*(Tl_cool-((Tv_cool+Tr_cool)/2))+(0.016908*$C19-0.033574))*1.039))))*$H$14 -> 164 | I19: =ROUND(((H19/$H$14)/((Tr_cool-Tv_cool)*1.163))*$I$14,IF($W$4=1,0,IF($W$4=2,2))) -> 28 | J19: 0.03 | K19: 31.3 | L19: 39.3 | M19: 4.3 | N19: 141 | O19: =(Tl_heat+(($D19/$G$14)/(1006*$N19*$K$14)))*$M$14+$O$14 -> 51.1 | P19: =(Tl_cool-(($G19/$G$14)/(1006*$N19*$K$14)))*$M$14+$O$14 -> 16.5 | S19: 1.000 | W19: 0.194898332 | X19: b | Y19: 0.9305607865 | Z19: b | AA19: 39.3 | AB19: 4.3 | AC19: 141 | AD19: e | AE19: 0.0938 | AF19: b | AG19: -0.9 | AH19: b | AI19: 30.5 | AJ19: 1.300 | AK19: 47 | AL19: -10.17634534 | AM19: b | AN19: -2.956590447 | AO19: b | AP19: 36.5 | AQ19: 2.4 | AR19: 95 | AS19: 0.194898332 | AT19: b | AU19: 0.9305607865 | AV19: b | AW19: 39.3 | AX19: 4.3 | AY19: 141 | AZ19: -70.67484161 | BA19: b | BB19: 0.2160051065 | BC19: b | BD19: 39.3 | BE19: 4.8 | BF19: 86 | BG19: -0.3566357516 | BH19: b | BI19: -0.07211647375 | BJ19: b | BK19: 40.2 | BL19: 5.5 | BM19: 154 | BN19: -50.90190697 | BO19: b | BP19: 1.851640222 | BQ19: b | BR19: 40.2 | BS19: 3.6 | BT19: 107
B20: 80% | C20: 8 | D20: =(($W$17*$C20^4+$W$18*$C20^3+$W$19*$C20^2+$W$20*$C20+$W$21)*((((Tv_heat-Tr_heat)/LN((Tv_heat-Tl_heat)/(Tr_heat-Tl_heat)))/((75-65)/LN((75-20)/(65-20))))^1))*$D$14*$AA$11 -> 1731 | E20: =ROUND(((D20/$D$14)/((Tv_heat-Tr_heat)*1.163))*$E$14,IF($W$4=1,0,IF($W$4=2,2))) -> 60 | F20: 0.11 | G20: =(($Y$17*$C20^4+$Y$18*$C20^3+$Y$19*$C20^2+$Y$20*$C20+$Y$21)*((((Tv_cool-Tr_cool)/LN((Tv_cool-Tl_cool)/(Tr_cool-Tl_cool)))/((16-18)/LN((16-27)/(18-27))))^S20))*$G$14*$AA$11 -> 192 | H20: =((G20/$G$14)/(IF((237.3*LN((RH*EXP(17.27*(Tl_cool/(Tl_cool+237.3))))))/(17.27-LN((RH*EXP(17.27*(Tl_cool/(Tl_cool+237.3))))))<((Tv_cool+Tr_cool)/2),1,IF(1/(1+((2258*((0.622/((p_atm/(1*611*EXP(17.27*(((Tv_cool+Tr_cool)/2)/(((Tv_cool+Tr_cool)/2)+237.3))))))-1)*1000-(0.622/((p_atm/(RH*611*EXP(17.27*(Tl_cool/(Tl_cool+237.3))))))-1)*1000))/(1005*(((Tv_cool+Tr_cool)/2)-Tl_cool))))*1.039+((-0.000729*$C20+0.001448)*(Tl_cool-((Tv_cool+Tr_cool)/2))+(0.016908*$C20-0.033574))*1.039>1,1,1/(1+((2258*((0.622/((p_atm/(1*611*EXP(17.27*(((Tv_cool+Tr_cool)/2)/(((Tv_cool+Tr_cool)/2)+237.3))))))-1)*1000-(0.622/((p_atm/(RH*611*EXP(17.27*(Tl_cool/(Tl_cool+237.3))))))-1)*1000))/(1005*(((Tv_cool+Tr_cool)/2)-Tl_cool))))*1.039+((-0.000729*$C20+0.001448)*(Tl_cool-((Tv_cool+Tr_cool)/2))+(0.016908*$C20-0.033574))*1.039))))*$H$14 -> 192 | I20: =ROUND(((H20/$H$14)/((Tr_cool-Tv_cool)*1.163))*$I$14,IF($W$4=1,0,IF($W$4=2,2))) -> 33 | J20: 0.04 | K20: 37.3 | L20: 45.3 | M20: 7.2 | N20: 178 | O20: =(Tl_heat+(($D20/$G$14)/(1006*$N20*$K$14)))*$M$14+$O$14 -> 48.9 | P20: =(Tl_cool-(($G20/$G$14)/(1006*$N20*$K$14)))*$M$14+$O$14 -> 16.8 | S20: 1.000 | W20: 57.97328441 | X20: 1.835835009 | Y20: 4.904703067 | Z20: 1.835835009 | AA20: 45.3 | AB20: 7.2 | AC20: 178 | AD20: f | AE20: 77.5 | AG20: 25.4 | AH20: =AF20 -> 0 | AI20: 37.0 | AJ20: 2.100 | AK20: 61 | AL20: 340.2815102 | AM20: =AF20 -> 0 | AN20: 79.52374882 | AO20: 2 | AP20: 43.0 | AQ20: 3.8 | AR20: 123 | AS20: 57.97328441 | AT20: 1.835835009 | AU20: 4.904703067 | AV20: 1.835835009 | AW20: 45.3 | AX20: 7.2 | AY20: 178 | AZ20: 305.7804913 | BA20: 1.835835009 | BB20: 7.206334014 | BC20: 1.835835009 | BD20: 45.3 | BE20: 8.0 | BF20: 116 | BG20: 152.8798158 | BH20: 1.813689327 | BI20: 22.6879858 | BJ20: 1.813689327 | BK20: 46.1 | BL20: 9.6 | BM20: 193 | BN20: 203.129884 | BO20: 1.835835009 | BP20: 4.151420158 | BQ20: 1.813689327 | BR20: 46.1 | BS20: 6.3 | BT20: 137
B21: 100% | C21: 10 | D21: =(($W$17*$C21^4+$W$18*$C21^3+$W$19*$C21^2+$W$20*$C21+$W$21)*((((Tv_heat-Tr_heat)/LN((Tv_heat-Tl_heat)/(Tr_heat-Tl_heat)))/((75-65)/LN((75-20)/(65-20))))^1))*$D$14*$AA$11 -> 2065 | E21: =ROUND(((D21/$D$14)/((Tv_heat-Tr_heat)*1.163))*$E$14,IF($W$4=1,0,IF($W$4=2,2))) -> 71 | F21: 0.16 | G21: =(($Y$17*$C21^4+$Y$18*$C21^3+$Y$19*$C21^2+$Y$20*$C21+$Y$21)*((((Tv_cool-Tr_cool)/LN((Tv_cool-Tl_cool)/(Tr_cool-Tl_cool)))/((16-18)/LN((16-27)/(18-27))))^S21))*$G$14*$AA$11 -> 221 | H21: =((G21/$G$14)/(IF((237.3*LN((RH*EXP(17.27*(Tl_cool/(Tl_cool+237.3))))))/(17.27-LN((RH*EXP(17.27*(Tl_cool/(Tl_cool+237.3))))))<((Tv_cool+Tr_cool)/2),1,IF(1/(1+((2258*((0.622/((p_atm/(1*611*EXP(17.27*(((Tv_cool+Tr_cool)/2)/(((Tv_cool+Tr_cool)/2)+237.3))))))-1)*1000-(0.622/((p_atm/(RH*611*EXP(17.27*(Tl_cool/(Tl_cool+237.3))))))-1)*1000))/(1005*(((Tv_cool+Tr_cool)/2)-Tl_cool))))*1.039+((-0.000729*$C21+0.001448)*(Tl_cool-((Tv_cool+Tr_cool)/2))+(0.016908*$C21-0.033574))*1.039>1,1,1/(1+((2258*((0.622/((p_atm/(1*611*EXP(17.27*(((Tv_cool+Tr_cool)/2)/(((Tv_cool+Tr_cool)/2)+237.3))))))-1)*1000-(0.622/((p_atm/(RH*611*EXP(17.27*(Tl_cool/(Tl_cool+237.3))))))-1)*1000))/(1005*(((Tv_cool+Tr_cool)/2)-Tl_cool))))*1.039+((-0.000729*$C21+0.001448)*(Tl_cool-((Tv_cool+Tr_cool)/2))+(0.016908*$C21-0.033574))*1.039))))*$H$14 -> 221 | I21: =ROUND(((H21/$H$14)/((Tr_cool-Tv_cool)*1.163))*$I$14,IF($W$4=1,0,IF($W$4=2,2))) -> 38 | J21: 0.05 | K21: 42.5 | L21: 50.5 | M21: 13.0 | N21: 214 | O21: =(Tl_heat+(($D21/$G$14)/(1006*$N21*$K$14)))*$M$14+$O$14 -> 48.7 | P21: =(Tl_cool-(($G21/$G$14)/(1006*$N21*$K$14)))*$M$14+$O$14 -> 16.9 | S21: 1.000 | W21: 784.0931206 | X21: 0 | Y21: 102.0758964 | Z21: 0 | AA21: 50.5 | AB21: 13 | AC21: 214 | AD21: g | AE21: 26.625 | AG21: -29.3 | AI21: 43.5 | AJ21: 3.000 | AK21: 77 | AL21: -445.7057607 | AN21: -119.6907444 | AP21: 48.5 | AQ21: 6.5 | AR21: 160 | AS21: 784.0931206 | AU21: 102.0758964 | AW21: 50.5 | AX21: 13.0 | AY21: 214 | AZ21: 309.527713 | BB21: 77.12870516 | BD21: 50.5 | BE21: 13.7 | BF21: 143 | BG21: 1095.212852 | BI21: 124.6876373 | BK21: 50.5 | BL21: 16.8 | BM21: 228 | BN21: 361.3522797 | BP21: 122.8550146 | BR21: 50.5 | BS21: 10.3 | BT21: 171
B22: =IF($S$7=1,NL!B22,IF(cal!$S$7=2,EN!B22,IF(cal!$S$7=3,DE!B22,IF(cal!$S$7=4,FR!B22,IF(cal!$S$7=5,NR!B22,IF(cal!$S$7=6,SP!B22,IF(cal!$S$7=7,SW!B22,IF(cal!$S$7=8,TS!B22,IF(cal!$S$7=9,RU!B22,IF(cal!$S$7=10,ExtraTaal2!B22,IF(cal!$S$7=11,ExtraTaal3!B22,))))))))))) -> Briza Net Zero M H42 2P Высота 42 cm Ширина 14 cm Длина 95 cm (Тип 2) | S22: n-value | W22: H | X22: =IF($W$16=1,AF22,IF($W$16=2,AM22,IF($W$16=3,AT22,IF($W$16=4,BA22,IF($W$16=5,BH22,IF($W$16=6,BO22,IF($W$16=7,BV22,IF($W$16=8,CC22))))))))*IF($W$4=1,1,IF($W$4=2,1/2.54)) -> 42.0 | Y22: B | Z22: =IF($W$16=1,AH22,IF($W$16=2,AO22,IF($W$16=3,AV22,IF($W$16=4,BC22,IF($W$16=5,BJ22,IF($W$16=6,BQ22,IF($W$16=7,BX22,IF($W$16=8,CE22))))))))*IF($W$4=1,1,IF($W$4=2,1/2.54)) -> 14.0 | AA22: L | AB22: =IF($W$16=1,AJ22,IF($W$16=2,AQ22,IF($W$16=3,AX22,IF($W$16=4,BE22,IF($W$16=5,BL22,IF($W$16=6,BS22,IF($W$16=7,BZ22,IF($W$16=8,CG22))))))))*IF($W$4=1,1,IF($W$4=2,1/2.54)) -> 75.0 | AE22: H | AF22: =IF(AI1=AH2,AL4,AM4) -> 52.1 | AG22: B | AH22: =IF(AI1=AH2,AL3,AM3) -> 8.5 | AI22: L | AJ22: =IF(AI1=AH2,AL5,AM5) -> 86 | AK22: 36 | AL22: H | AM22: =IF(AI1=AH2,AN4,AO4) -> 55.8 | AN22: B | AO22: =IF(AI1=AH2,AN3,AO3) -> 11 | AP22: L | AQ22: =IF(AI1=AH2,AN5,AO5) -> 75 | AS22: H | AT22: =IF(AI1=AH2,AP4,AQ4) -> 42 | AU22: B | AV22: =IF(AI1=AH2,AP3,AQ3) -> 14 | AW22: L | AX22: =IF(AI1=AH2,AP5,AQ5) -> 75 | AZ22: H | BA22: =AT22 -> 42 | BB22: B | BC22: =AV22 -> 14 | BD22: L | BE22: =AX22 -> 75 | BG22: H | BH22: =IF(AI1=AH3,AR4,AS4) -> 56 | BI22: B | BJ22: =IF(AI1=AH2,AR3,AS3) -> 14 | BK22: L | BL22: =IF(AI1=AH2,AR5,AS5) -> 75 | BN22: H | BO22: =BH22 -> 56 | BP22: =BI22 -> B | BQ22: 14 | BR22: L | BS22: 75
B23: 20% | C23: 2 | D23: =(($W$23*$C23^4+$W$24*$C23^3+$W$25*$C23^2+$W$26*$C23+$W$27)*((((Tv_heat-Tr_heat)/LN((Tv_heat-Tl_heat)/(Tr_heat-Tl_heat)))/((75-65)/LN((75-20)/(65-20))))^1))*$D$14*$AA$11 -> 1912 | E23: =ROUND(((D23/$D$14)/((Tv_heat-Tr_heat)*1.163))*$E$14,IF($W$4=1,0,IF($W$4=2,2))) -> 66 | F23: =IF($AA$1=1,IF((POWER(((E23/$I$14)/1000)/$X$24,2)*100)*$J$14<0.01,0.01,(POWER(((E23/$I$14)/1000)/$X$24,2)*100)*$J$14),($X$24*(E23/$E$14)^$X$26)*$F$14) -> 0.18 | G23: =(($Y$23*$C23^4+$Y$24*$C23^3+$Y$25*$C23^2+$Y$26*$C23+$Y$27)*((((Tv_cool-Tr_cool)/LN((Tv_cool-Tl_cool)/(Tr_cool-Tl_cool)))/((16-18)/LN((16-27)/(18-27))))^S23))*$G$14*$AA$11 -> 198 | H23: =((G23/$G$14)/(IF((237.3*LN((RH*EXP(17.27*(Tl_cool/(Tl_cool+237.3))))))/(17.27-LN((RH*EXP(17.27*(Tl_cool/(Tl_cool+237.3))))))<((Tv_cool+Tr_cool)/2),1,IF(1/(1+((2258*((0.622/((p_atm/(1*611*EXP(17.27*(((Tv_cool+Tr_cool)/2)/(((Tv_cool+Tr_cool)/2)+237.3))))))-1)*1000-(0.622/((p_atm/(RH*611*EXP(17.27*(Tl_cool/(Tl_cool+237.3))))))-1)*1000))/(1005*(((Tv_cool+Tr_cool)/2)-Tl_cool))))*1.039+((-0.000729*$C23+0.001448)*(Tl_cool-((Tv_cool+Tr_cool)/2))+(0.016908*$C23-0.033574))*1.039>1,1,1/(1+((2258*((0.622/((p_atm/(1*611*EXP(17.27*(((Tv_cool+Tr_cool)/2)/(((Tv_cool+Tr_cool)/2)+237.3))))))-1)*1000-(0.622/((p_atm/(RH*611*EXP(17.27*(Tl_cool/(Tl_cool+237.3))))))-1)*1000))/(1005*(((Tv_cool+Tr_cool)/2)-Tl_cool))))*1.039+((-0.000729*$C23+0.001448)*(Tl_cool-((Tv_cool+Tr_cool)/2))+(0.016908*$C23-0.033574))*1.039))))*$H$14 -> 198 | I23: =ROUND(((H23/$H$14)/((Tr_cool-Tv_cool)*1.163))*$I$14,IF($W$4=1,0,IF($W$4=2,2))) -> 34 | J23: =IF($AA$1=1,IF((POWER(((I23/$I$14)/1000)/$X$24,2)*100)*$J$14<0.01,0.01,(POWER(((I23/$I$14)/1000)/$X$24,2)*100)*$J$14),($Z$24*(I23/$I$14)^$Z$26)*$J$14) -> 0.05 | K23: =IF(AA23<28,"<20",L23-8) -> 24.0 | L23: =IF(AA23<20,"<20",AA23) -> 32.0 | M23: =AB23 -> 2.5 | N23: =AC23*$N$14 -> 108 | O23: =(Tl_heat+(($D23/$G$14)/(1006*$N23*$K$14)))*$M$14+$O$14 -> 72.6 | P23: =(Tl_cool-((G23/$G$14)/(1006*N23*$K$14)))*$M$14+$O$14 -> 14.6 | S23: 1.000 | W23: =IF($W$16=1,AE23,IF($W$16=2,AL23,IF($W$16=3,AS23,IF($W$16=4,AZ23,IF($W$16=5,BG23,IF($W$16=6,BN23,IF($W$16=7,BU23,IF($W$16=8,CB23)))))))) -> -1.802775579 | X23: =IF($W$16=1,AF23,IF($W$16=2,AM23,IF($W$16=3,AT23,IF($W$16=4,BA23,IF($W$16=5,BH23,IF($W$16=6,BO23,IF($W$16=7,BV23,IF($W$16=8,CC23)))))))) -> a | Y23: =IF($W$16=1,AG23,IF($W$16=2,AN23,IF($W$16=3,AU23,IF($W$16=4,BB23,IF($W$16=5,BI23,IF($W$16=6,BP23,IF($W$16=7,BW23,IF($W$16=8,CD23)))))))) -> 0 | Z23: =IF($W$16=1,AH23,IF($W$16=2,AO23,IF($W$16=3,AV23,IF($W$16=4,BC23,IF($W$16=5,BJ23,IF($W$16=6,BQ23,IF($W$16=7,BX23,IF($W$16=8,CE23)))))))) -> a | AA23: =IF($W$16=1,AI23,IF($W$16=2,AP23,IF($W$16=3,AW23,IF($W$16=4,BD23,IF($W$16=5,BK23,IF($W$16=6,BR23,IF($W$16=7,BY23,IF($W$16=8,CF23)))))))) -> 32 | AB23: =IF($W$16=1,AJ23,IF($W$16=2,AQ23,IF($W$16=3,AX23,IF($W$16=4,BE23,IF($W$16=5,BL23,IF($W$16=6,BS23,IF($W$16=7,BZ23,IF($W$16=8,CG23)))))))) -> 2.5 | AC23: =IF($W$16=1,AK23,IF($W$16=2,AR23,IF($W$16=3,AY23,IF($W$16=4,BF23,IF($W$16=5,BM23,IF($W$16=6,BT23,IF($W$16=7,CA23,IF($W$16=8,CH23)))))))) -> 108 | AD23: c | AE23: 0 | AF23: a | AG23: 0 | AH23: a | AI23: 15.0 | AJ23: 0.600 | AK23: 26 | AL23: -5.56716861e-05 | AM23: a | AN23: -0.0007046734506 | AO23: a | AP23: 30.0 | AQ23: 1.1 | AR23: 55 | AS23: -1.802775579 | AT23: a | AV23: a | AW23: 32.0 | AX23: 2.5 | AY23: 108 | BA23: a | BC23: a | BD23: 32.0 | BE23: 2.0 | BF23: 52 | BH23: a | BJ23: a | BK23: 31.0 | BL23: 2.2 | BM23: 116 | BN23: -0.1803034464 | BO23: a | BQ23: a | BR23: 31.0 | BS23: 2.1 | BT23: 72
B24: 40% | C24: 4 | D24: =(($W$23*$C24^4+$W$24*$C24^3+$W$25*$C24^2+$W$26*$C24+$W$27)*((((Tv_heat-Tr_heat)/LN((Tv_heat-Tl_heat)/(Tr_heat-Tl_heat)))/((75-65)/LN((75-20)/(65-20))))^1))*$D$14*$AA$11 -> 2103 | E24: =ROUND(((D24/$D$14)/((Tv_heat-Tr_heat)*1.163))*$E$14,IF($W$4=1,0,IF($W$4=2,2))) -> 72 | F24: =IF($AA$1=1,IF((POWER(((E24/$I$14)/1000)/$X$24,2)*100)*$J$14<0.01,0.01,(POWER(((E24/$I$14)/1000)/$X$24,2)*100)*$J$14), ($X$24*(E24/$E$14)^$X$26)*$F$14) -> 0.21 | G24: =(($Y$23*$C24^4+$Y$24*$C24^3+$Y$25*$C24^2+$Y$26*$C24+$Y$27)*((((Tv_cool-Tr_cool)/LN((Tv_cool-Tl_cool)/(Tr_cool-Tl_cool)))/((16-18)/LN((16-27)/(18-27))))^S24))*$G$14*$AA$11 -> 225 | H24: =((G24/$G$14)/(IF((237.3*LN((RH*EXP(17.27*(Tl_cool/(Tl_cool+237.3))))))/(17.27-LN((RH*EXP(17.27*(Tl_cool/(Tl_cool+237.3))))))<((Tv_cool+Tr_cool)/2),1,IF(1/(1+((2258*((0.622/((p_atm/(1*611*EXP(17.27*(((Tv_cool+Tr_cool)/2)/(((Tv_cool+Tr_cool)/2)+237.3))))))-1)*1000-(0.622/((p_atm/(RH*611*EXP(17.27*(Tl_cool/(Tl_cool+237.3))))))-1)*1000))/(1005*(((Tv_cool+Tr_cool)/2)-Tl_cool))))*1.039+((-0.000729*$C24+0.001448)*(Tl_cool-((Tv_cool+Tr_cool)/2))+(0.016908*$C24-0.033574))*1.039>1,1,1/(1+((2258*((0.622/((p_atm/(1*611*EXP(17.27*(((Tv_cool+Tr_cool)/2)/(((Tv_cool+Tr_cool)/2)+237.3))))))-1)*1000-(0.622/((p_atm/(RH*611*EXP(17.27*(Tl_cool/(Tl_cool+237.3))))))-1)*1000))/(1005*(((Tv_cool+Tr_cool)/2)-Tl_cool))))*1.039+((-0.000729*$C24+0.001448)*(Tl_cool-((Tv_cool+Tr_cool)/2))+(0.016908*$C24-0.033574))*1.039))))*$H$14 -> 225 | I24: =ROUND(((H24/$H$14)/((Tr_cool-Tv_cool)*1.163))*$I$14,IF($W$4=1,0,IF($W$4=2,2))) -> 39 | J24: =IF($AA$1=1,IF((POWER(((I24/$I$14)/1000)/$X$24,2)*100)*$J$14<0.01,0.01,(POWER(((I24/$I$14)/1000)/$X$24,2)*100)*$J$14),($Z$24*(I24/$I$14)^$Z$26)*$J$14) -> 0.07 | K24: =IF(AA24<28,"<20",L24-8) -> 30.0 | L24: =IF(AA24<20,"<20",AA24) -> 38.0 | M24: 4.3 | N24: 172 | O24: =(Tl_heat+(($D24/$G$14)/(1006*$N24*$K$14)))*$M$14+$O$14 -> 56.3 | P24: =(Tl_cool-((G24/$G$14)/(1006*N24*$K$14)))*$M$14+$O$14 -> 16.1 | S24: 1.000 | W24: =IF($W$16=1,AE24,IF($W$16=2,AL24,IF($W$16=3,AS24,IF($W$16=4,AZ24,IF($W$16=5,BG24,IF($W$16=6,BN24,IF($W$16=7,BU24,IF($W$16=8,CB24)))))))) -> 44.48546117 | X24: 8.912587692e-05 | Y24: =IF($W$16=1,AG24,IF($W$16=2,AN24,IF($W$16=3,AU24,IF($W$16=4,BB24,IF($W$16=5,BI24,IF($W$16=6,BP24,IF($W$16=7,BW24,IF($W$16=8,CD24)))))))) -> 0.01476638839 | Z24: 8.912587692e-05 | AA24: 38 | AB24: 4.3 | AC24: 172 | AD24: d | AE24: 0 | AF24: 1.773544 | AG24: 0 | AH24: =AF24 -> 1.773544 | AI24: 24.0 | AJ24: 1.300 | AK24: 56 | AL24: 6.799756022e-05 | AM24: 1.24902458 | AN24: 0.007568222552 | AO24: 1.24902458 | AP24: 38.0 | AQ24: 1.9 | AR24: 100 | AS24: 44.48546117 | AT24: 8.912587692e-05 | AU24: 0.01476638839 | AV24: 8.912587692e-05 | AW24: 38.0 | AX24: 4.3 | AY24: 172 | AZ24: 0.9685779642 | BA24: 8.912587692e-05 | BB24: 0.1360465769 | BC24: 8.912587692e-05 | BD24: 38.0 | BE24: 3.4 | BF24: 92 | BG24: -0.3693504667 | BH24: 0.0001674794288 | BI24: -0.1460590621 | BJ24: 0.0001674794288 | BK24: 35.8 | BL24: 3.6 | BM24: 176 | BN24: 5.194823263 | BO24: 8.912587692e-05 | BP24: -0.1056502059 | BQ24: 0.0001674794288 | BR24: 35.8 | BS24: 3.4 | BT24: 123
B25: 60% | C25: 6 | D25: =(($W$23*$C25^4+$W$24*$C25^3+$W$25*$C25^2+$W$26*$C25+$W$27)*((((Tv_heat-Tr_heat)/LN((Tv_heat-Tl_heat)/(Tr_heat-Tl_heat)))/((75-65)/LN((75-20)/(65-20))))^1))*$D$14*$AA$11 -> 2224 | E25: =ROUND(((D25/$D$14)/((Tv_heat-Tr_heat)*1.163))*$E$14,IF($W$4=1,0,IF($W$4=2,2))) -> 76 | F25: 0.23 | G25: =(($Y$23*$C25^4+$Y$24*$C25^3+$Y$25*$C25^2+$Y$26*$C25+$Y$27)*((((Tv_cool-Tr_cool)/LN((Tv_cool-Tl_cool)/(Tr_cool-Tl_cool)))/((16-18)/LN((16-27)/(18-27))))^S25))*$G$14*$AA$11 -> 261 | H25: =((G25/$G$14)/(IF((237.3*LN((RH*EXP(17.27*(Tl_cool/(Tl_cool+237.3))))))/(17.27-LN((RH*EXP(17.27*(Tl_cool/(Tl_cool+237.3))))))<((Tv_cool+Tr_cool)/2),1,IF(1/(1+((2258*((0.622/((p_atm/(1*611*EXP(17.27*(((Tv_cool+Tr_cool)/2)/(((Tv_cool+Tr_cool)/2)+237.3))))))-1)*1000-(0.622/((p_atm/(RH*611*EXP(17.27*(Tl_cool/(Tl_cool+237.3))))))-1)*1000))/(1005*(((Tv_cool+Tr_cool)/2)-Tl_cool))))*1.039+((-0.000729*$C25+0.001448)*(Tl_cool-((Tv_cool+Tr_cool)/2))+(0.016908*$C25-0.033574))*1.039>1,1,1/(1+((2258*((0.622/((p_atm/(1*611*EXP(17.27*(((Tv_cool+Tr_cool)/2)/(((Tv_cool+Tr_cool)/2)+237.3))))))-1)*1000-(0.622/((p_atm/(RH*611*EXP(17.27*(Tl_cool/(Tl_cool+237.3))))))-1)*1000))/(1005*(((Tv_cool+Tr_cool)/2)-Tl_cool))))*1.039+((-0.000729*$C25+0.001448)*(Tl_cool-((Tv_cool+Tr_cool)/2))+(0.016908*$C25-0.033574))*1.039))))*$H$14 -> 261 | I25: =ROUND(((H25/$H$14)/((Tr_cool-Tv_cool)*1.163))*$I$14,IF($W$4=1,0,IF($W$4=2,2))) -> 45 | J25: 0.09 | K25: 36.8 | L25: 44.8 | M25: 7.2 | N25: 223 | O25: =(Tl_heat+(($D25/$G$14)/(1006*$N25*$K$14)))*$M$14+$O$14 -> 49.6 | P25: =(Tl_cool-((G25/$G$14)/(1006*N25*$K$14)))*$M$14+$O$14 -> 16.5 | S25: 1.000 | W25: =IF($W$16=1,AE25,IF($W$16=2,AL25,IF($W$16=3,AS25,IF($W$16=4,AZ25,IF($W$16=5,BG25,IF($W$16=6,BN25,IF($W$16=7,BU25,IF($W$16=8,CB25)))))))) -> -360.6249422 | X25: b | Y25: =IF($W$16=1,AG25,IF($W$16=2,AN25,IF($W$16=3,AU25,IF($W$16=4,BB25,IF($W$16=5,BI25,IF($W$16=6,BP25,IF($W$16=7,BW25,IF($W$16=8,CD25)))))))) -> 0.9525315559 | Z25: b | AA25: 44.8 | AB25: 7.2 | AC25: 223 | AD25: e | AE25: 0.1875 | AF25: b | AG25: -1.7187 | AH25: b | AI25: 36.0 | AJ25: 2.700 | AK25: 86 | AL25: -20.6382806 | AM25: b | AN25: -6.059264855 | AO25: b | AP25: 43.5 | AQ25: 4.1 | AR25: 170 | AS25: -360.6249422 | AT25: b | AU25: 0.9525315559 | AV25: b | AW25: 44.8 | AX25: 7.2 | AY25: 223 | AZ25: -6.434274913 | BA25: b | BB25: -1.800745182 | BC25: b | BD25: 44.8 | BE25: 5.7 | BF25: 144 | BG25: 4.060861907 | BH25: b | BI25: 2.421631672 | BJ25: b | BK25: 42.4 | BL25: 5.7 | BM25: 238 | BN25: -41.88656907 | BO25: b | BP25: 1.970736777 | BQ25: b | BR25: 42.4 | BS25: 5.9 | BT25: 168
B26: 80% | C26: 8 | D26: =(($W$23*$C26^4+$W$24*$C26^3+$W$25*$C26^2+$W$26*$C26+$W$27)*((((Tv_heat-Tr_heat)/LN((Tv_heat-Tl_heat)/(Tr_heat-Tl_heat)))/((75-65)/LN((75-20)/(65-20))))^1))*$D$14*$AA$11 -> 2775 | E26: =ROUND(((D26/$D$14)/((Tv_heat-Tr_heat)*1.163))*$E$14,IF($W$4=1,0,IF($W$4=2,2))) -> 95 | F26: 0.35 | G26: =(($Y$23*$C26^4+$Y$24*$C26^3+$Y$25*$C26^2+$Y$26*$C26+$Y$27)*((((Tv_cool-Tr_cool)/LN((Tv_cool-Tl_cool)/(Tr_cool-Tl_cool)))/((16-18)/LN((16-27)/(18-27))))^S26))*$G$14*$AA$11 -> 307 | H26: =((G26/$G$14)/(IF((237.3*LN((RH*EXP(17.27*(Tl_cool/(Tl_cool+237.3))))))/(17.27-LN((RH*EXP(17.27*(Tl_cool/(Tl_cool+237.3))))))<((Tv_cool+Tr_cool)/2),1,IF(1/(1+((2258*((0.622/((p_atm/(1*611*EXP(17.27*(((Tv_cool+Tr_cool)/2)/(((Tv_cool+Tr_cool)/2)+237.3))))))-1)*1000-(0.622/((p_atm/(RH*611*EXP(17.27*(Tl_cool/(Tl_cool+237.3))))))-1)*1000))/(1005*(((Tv_cool+Tr_cool)/2)-Tl_cool))))*1.039+((-0.000729*$C26+0.001448)*(Tl_cool-((Tv_cool+Tr_cool)/2))+(0.016908*$C26-0.033574))*1.039>1,1,1/(1+((2258*((0.622/((p_atm/(1*611*EXP(17.27*(((Tv_cool+Tr_cool)/2)/(((Tv_cool+Tr_cool)/2)+237.3))))))-1)*1000-(0.622/((p_atm/(RH*611*EXP(17.27*(Tl_cool/(Tl_cool+237.3))))))-1)*1000))/(1005*(((Tv_cool+Tr_cool)/2)-Tl_cool))))*1.039+((-0.000729*$C26+0.001448)*(Tl_cool-((Tv_cool+Tr_cool)/2))+(0.016908*$C26-0.033574))*1.039))))*$H$14 -> 307 | I26: =ROUND(((H26/$H$14)/((Tr_cool-Tv_cool)*1.163))*$I$14,IF($W$4=1,0,IF($W$4=2,2))) -> 53 | J26: 0.12 | K26: 41.5 | L26: 49.5 | M26: 11.5 | N26: 287 | O26: =(Tl_heat+(($D26/$G$14)/(1006*$N26*$K$14)))*$M$14+$O$14 -> 48.7 | P26: =(Tl_cool-((G26/$G$14)/(1006*N26*$K$14)))*$M$14+$O$14 -> 16.8 | S26: 1.000 | W26: =IF($W$16=1,AE26,IF($W$16=2,AL26,IF($W$16=3,AS26,IF($W$16=4,AZ26,IF($W$16=5,BG26,IF($W$16=6,BN26,IF($W$16=7,BU26,IF($W$16=8,CB26)))))))) -> 1211.686146 | X26: 1.814809646 | Y26: =IF($W$16=1,AG26,IF($W$16=2,AN26,IF($W$16=3,AU26,IF($W$16=4,BB26,IF($W$16=5,BI26,IF($W$16=6,BP26,IF($W$16=7,BW26,IF($W$16=8,CD26)))))))) -> 6.87886396 | Z26: 1.814809646 | AA26: 49.5 | AB26: 11.5 | AC26: 287 | AD26: f | AE26: 155 | AG26: 50.75 | AH26: =AF26 -> 0 | AI26: 40.5 | AJ26: 4.600 | AK26: 116 | AL26: 681.8402246 | AM26: =AF26 -> 0 | AN26: 159.7685141 | AO26: 2 | AP26: 49.5 | AQ26: 7.7 | AR26: 228 | AS26: 1211.686146 | AT26: 1.814809646 | AU26: 6.87886396 | AV26: 1.814809646 | AW26: 49.5 | AX26: 11.5 | AY26: 287 | AZ26: 80.73214552 | BA26: 1.814809646 | BB26: 21.49305279 | BC26: 1.814809646 | BD26: 49.5 | BE26: 8.4 | BF26: 194 | BG26: 251.4328582 | BH26: 1.820813869 | BI26: 20.92701539 | BJ26: 1.820813869 | BK26: 47.9 | BL26: 9.6 | BM26: 291 | BN26: 185.1317142 | BO26: 1.814809646 | BP26: 12.85954626 | BQ26: 1.820813869 | BR26: 47.9 | BS26: 10.0 | BT26: 228
B27: 100% | C27: 10 | D27: =(($W$23*$C27^4+$W$24*$C27^3+$W$25*$C27^2+$W$26*$C27+$W$27)*((((Tv_heat-Tr_heat)/LN((Tv_heat-Tl_heat)/(Tr_heat-Tl_heat)))/((75-65)/LN((75-20)/(65-20))))^1))*$D$14*$AA$11 -> 3402 | E27: =ROUND(((D27/$D$14)/((Tv_heat-Tr_heat)*1.163))*$E$14,IF($W$4=1,0,IF($W$4=2,2))) -> 117 | F27: 0.51 | G27: =(($Y$23*$C27^4+$Y$24*$C27^3+$Y$25*$C27^2+$Y$26*$C27+$Y$27)*((((Tv_cool-Tr_cool)/LN((Tv_cool-Tl_cool)/(Tr_cool-Tl_cool)))/((16-18)/LN((16-27)/(18-27))))^S27))*$G$14*$AA$11 -> 364 | H27: =((G27/$G$14)/(IF((237.3*LN((RH*EXP(17.27*(Tl_cool/(Tl_cool+237.3))))))/(17.27-LN((RH*EXP(17.27*(Tl_cool/(Tl_cool+237.3))))))<((Tv_cool+Tr_cool)/2),1,IF(1/(1+((2258*((0.622/((p_atm/(1*611*EXP(17.27*(((Tv_cool+Tr_cool)/2)/(((Tv_cool+Tr_cool)/2)+237.3))))))-1)*1000-(0.622/((p_atm/(RH*611*EXP(17.27*(Tl_cool/(Tl_cool+237.3))))))-1)*1000))/(1005*(((Tv_cool+Tr_cool)/2)-Tl_cool))))*1.039+((-0.000729*$C27+0.001448)*(Tl_cool-((Tv_cool+Tr_cool)/2))+(0.016908*$C27-0.033574))*1.039>1,1,1/(1+((2258*((0.622/((p_atm/(1*611*EXP(17.27*(((Tv_cool+Tr_cool)/2)/(((Tv_cool+Tr_cool)/2)+237.3))))))-1)*1000-(0.622/((p_atm/(RH*611*EXP(17.27*(Tl_cool/(Tl_cool+237.3))))))-1)*1000))/(1005*(((Tv_cool+Tr_cool)/2)-Tl_cool))))*1.039+((-0.000729*$C27+0.001448)*(Tl_cool-((Tv_cool+Tr_cool)/2))+(0.016908*$C27-0.033574))*1.039))))*$H$14 -> 364 | I27: =ROUND(((H27/$H$14)/((Tr_cool-Tv_cool)*1.163))*$I$14,IF($W$4=1,0,IF($W$4=2,2))) -> 63 | J27: 0.16 | K27: 44.5 | L27: 52.5 | M27: 18.0 | N27: 346 | O27: =(Tl_heat+(($D27/$G$14)/(1006*$N27*$K$14)))*$M$14+$O$14 -> 49.2 | P27: =(Tl_cool-((G27/$G$14)/(1006*N27*$K$14)))*$M$14+$O$14 -> 16.9 | S27: 1.000 | W27: =IF($W$16=1,AE27,IF($W$16=2,AL27,IF($W$16=3,AS27,IF($W$16=4,AZ27,IF($W$16=5,BG27,IF($W$16=6,BN27,IF($W$16=7,BU27,IF($W$16=8,CB27)))))))) -> 237.1456872 | X27: 0 | Y27: =IF($W$16=1,AG27,IF($W$16=2,AN27,IF($W$16=3,AU27,IF($W$16=4,BB27,IF($W$16=5,BI27,IF($W$16=6,BP27,IF($W$16=7,BW27,IF($W$16=8,CD27)))))))) -> 173.5639004 | Z27: 0 | AA27: 52.5 | AB27: 18 | AC27: 346 | AD27: g | AE27: 53.25 | AG27: -58.625 | AI27: 48.0 | AJ27: 7.100 | AK27: 145 | AL27: -893.104279 | AN27: -240.2607812 | AP27: 54.0 | AQ27: 13.2 | AR27: 281 | AS27: 237.1456872 | AU27: 173.5639004 | AW27: 52.5 | AX27: 18.0 | AY27: 346 | AZ27: 1067.226938 | BB27: 110.716901 | BD27: 52.5 | BE27: 14.4 | BF27: 229 | BG27: 1733.690291 | BI27: 244.8221044 | BK27: 51.5 | BL27: 15.6 | BM27: 332 | BN27: 758.5353119 | BP27: 192.2610869 | BR27: 51.5 | BS27: 15.6 | BT27: 257
B28: =IF($S$7=1,NL!B28,IF(cal!$S$7=2,EN!B28,IF(cal!$S$7=3,DE!B28,IF(cal!$S$7=4,FR!B28,IF(cal!$S$7=5,NR!B28,IF(cal!$S$7=6,SP!B28,IF(cal!$S$7=7,SW!B28,IF(cal!$S$7=8,TS!B28,IF(cal!$S$7=9,RU!B28,IF(cal!$S$7=10,ExtraTaal2!B28,IF(cal!$S$7=11,ExtraTaal3!B28,))))))))))) -> Briza Net Zero M H42 2P Высота 42 cm Ширина 14 cm Длина 125 cm (Тип 3) | S28: n-value | W28: H | X28: =IF($W$16=1,AF28,IF($W$16=2,AM28,IF($W$16=3,AT28,IF($W$16=4,BA28,IF($W$16=5,BH28,IF($W$16=6,BO28,IF($W$16=7,BV28,IF($W$16=8,CC28))))))))*IF($W$4=1,1,IF($W$4=2,1/2.54)) -> 42.0 | Y28: B | Z28: =IF($W$16=1,AH28,IF($W$16=2,AO28,IF($W$16=3,AV28,IF($W$16=4,BC28,IF($W$16=5,BJ28,IF($W$16=6,BQ28,IF($W$16=7,BX28,IF($W$16=8,CE28))))))))*IF($W$4=1,1,IF($W$4=2,1/2.54)) -> 14.0 | AA28: L | AB28: =IF($W$16=1,AJ28,IF($W$16=2,AQ28,IF($W$16=3,AX28,IF($W$16=4,BE28,IF($W$16=5,BL28,IF($W$16=6,BS28,IF($W$16=7,BZ28,IF($W$16=8,CG28))))))))*IF($W$4=1,1,IF($W$4=2,1/2.54)) -> 95.0 | AE28: H | AF28: =IF(AI1=AH2,AL4,AM4) -> 52.1 | AG28: B | AH28: =IF(AI1=AH2,AL3,AM3) -> 8.5 | AI28: L | AJ28: =IF(AI1=AH2,AL6,AM6) -> 122 | AK28: 72 | AL28: H | AM28: =IF(AI1=AH2,AN4,AO4) -> 55.8 | AN28: B | AO28: =IF(AI1=AH2,AN3,AO3) -> 11 | AP28: L | AQ28: =IF(AI1=AH2,AN6,AO6) -> 110 | AS28: H | AT28: =IF(AI1=AH2,AP4,AQ4) -> 42 | AU28: B | AV28: =IF(AI1=AH2,AP3,AQ3) -> 14 | AW28: L | AX28: =IF(AI1=AH2,AP6,AQ6) -> 95 | AZ28: H | BA28: =AT28 -> 42 | BB28: =AU28 -> B | BC28: 14 | BD28: L | BE28: 95 | BG28: H | BH28: =IF(AI1=AH3,AR4,AS4) -> 56 | BI28: B | BJ28: =IF(AI1=AH2,AR3,AS3) -> 14 | BK28: L | BL28: =IF(AI1=AH2,AR6,AS6) -> 95 | BN28: H | BO28: =BH28 -> 56 | BP28: =BI28 -> B | BQ28: 14 | BR28: L | BS28: 95
B29: 20% | C29: 2 | D29: =(($W$29*$C29^4+$W$30*$C29^3+$W$31*$C29^2+$W$32*$C29+$W$33)*((((Tv_heat-Tr_heat)/LN((Tv_heat-Tl_heat)/(Tr_heat-Tl_heat)))/((75-65)/LN((75-20)/(65-20))))^1))*$D$14*$AA$11 -> 3008 | E29: =ROUND(((D29/$D$14)/((Tv_heat-Tr_heat)*1.163))*$E$14,IF($W$4=1,0,IF($W$4=2,2))) -> 103 | F29: =IF($AA$1=1,IF((POWER(((E29/$I$14)/1000)/$X$30,2)*100)*$J$14<0.01,0.01,(POWER(((E29/$I$14)/1000)/$X$30,2)*100)*$J$14),($X$30*(E29/$E$14)^$X$32)*$F$14) -> 0.54 | G29: =(($Y$29*$C29^4+$Y$30*$C29^3+$Y$31*$C29^2+$Y$32*$C29+$Y$33)*((((Tv_cool-Tr_cool)/LN((Tv_cool-Tl_cool)/(Tr_cool-Tl_cool)))/((16-18)/LN((16-27)/(18-27))))^S29))*$G$14*$AA$11 -> 324 | H29: =((G29/$G$14)/(IF((237.3*LN((RH*EXP(17.27*(Tl_cool/(Tl_cool+237.3))))))/(17.27-LN((RH*EXP(17.27*(Tl_cool/(Tl_cool+237.3))))))<((Tv_cool+Tr_cool)/2),1,IF(1/(1+((2258*((0.622/((p_atm/(1*611*EXP(17.27*(((Tv_cool+Tr_cool)/2)/(((Tv_cool+Tr_cool)/2)+237.3))))))-1)*1000-(0.622/((p_atm/(RH*611*EXP(17.27*(Tl_cool/(Tl_cool+237.3))))))-1)*1000))/(1005*(((Tv_cool+Tr_cool)/2)-Tl_cool))))*1.039+((-0.000729*$C29+0.001448)*(Tl_cool-((Tv_cool+Tr_cool)/2))+(0.016908*$C29-0.033574))*1.039>1,1,1/(1+((2258*((0.622/((p_atm/(1*611*EXP(17.27*(((Tv_cool+Tr_cool)/2)/(((Tv_cool+Tr_cool)/2)+237.3))))))-1)*1000-(0.622/((p_atm/(RH*611*EXP(17.27*(Tl_cool/(Tl_cool+237.3))))))-1)*1000))/(1005*(((Tv_cool+Tr_cool)/2)-Tl_cool))))*1.039+((-0.000729*$C29+0.001448)*(Tl_cool-((Tv_cool+Tr_cool)/2))+(0.016908*$C29-0.033574))*1.039))))*$H$14 -> 324 | I29: =ROUND(((H29/$H$14)/((Tr_cool-Tv_cool)*1.163))*$I$14,IF($W$4=1,0,IF($W$4=2,2))) -> 56 | J29: =IF($AA$1=1,IF((POWER(((I29/$I$14)/1000)/$X$30,2)*100)*$J$14<0.01,0.01,(POWER(((I29/$I$14)/1000)/$X$30,2)*100)*$J$14),($Z$30*(I29/$I$14)^$Z$32)*$J$14) -> 0.18 | K29: =IF(AA29<28,"<20",L29-8) -> 24.6 | L29: =IF(AA29<20,"<20",AA29) -> 32.6 | M29: =AB29 -> 2.6 | N29: =AC29*$N$14 -> 146 | O29: =(Tl_heat+(($D29/$G$14)/(1006*$N29*$K$14)))*$M$14+$O$14 -> 81.2 | P29: =(Tl_cool-((G29/$G$14)/(1006*N29*$K$14)))*$M$14+$O$14 -> 13.4 | S29: 1.000 | W29: =IF($W$16=1,AE29,IF($W$16=2,AL29,IF($W$16=3,AS29,IF($W$16=4,AZ29,IF($W$16=5,BG29,IF($W$16=6,BN29,IF($W$16=7,BU29,IF($W$16=8,CB29)))))))) -> -0.002638673631 | X29: =IF($W$16=1,AF29,IF($W$16=2,AM29,IF($W$16=3,AT29,IF($W$16=4,BA29,IF($W$16=5,BH29,IF($W$16=6,BO29,IF($W$16=7,BV29,IF($W$16=8,CC29)))))))) -> a | Y29: =IF($W$16=1,AG29,IF($W$16=2,AN29,IF($W$16=3,AU29,IF($W$16=4,BB29,IF($W$16=5,BI29,IF($W$16=6,BP29,IF($W$16=7,BW29,IF($W$16=8,CD29)))))))) -> 0 | Z29: =IF($W$16=1,AH29,IF($W$16=2,AO29,IF($W$16=3,AV29,IF($W$16=4,BC29,IF($W$16=5,BJ29,IF($W$16=6,BQ29,IF($W$16=7,BX29,IF($W$16=8,CE29)))))))) -> a | AA29: =IF($W$16=1,AI29,IF($W$16=2,AP29,IF($W$16=3,AW29,IF($W$16=4,BD29,IF($W$16=5,BK29,IF($W$16=6,BR29,IF($W$16=7,BY29,IF($W$16=8,CF29)))))))) -> 32.6 | AB29: =IF($W$16=1,AJ29,IF($W$16=2,AQ29,IF($W$16=3,AX29,IF($W$16=4,BE29,IF($W$16=5,BL29,IF($W$16=6,BS29,IF($W$16=7,BZ29,IF($W$16=8,CG29)))))))) -> 2.6 | AC29: =IF($W$16=1,AK29,IF($W$16=2,AR29,IF($W$16=3,AY29,IF($W$16=4,BF29,IF($W$16=5,BM29,IF($W$16=6,BT29,IF($W$16=7,CA29,IF($W$16=8,CH29)))))))) -> 146 | AD29: c | AE29: 0 | AF29: a | AH29: a | AI29: 23.5 | AJ29: 1.100 | AK29: 39 | AL29: 0.001099526667 | AM29: a | AN29: -0.000788408635 | AO29: a | AP29: 30.5 | AQ29: 2.0 | AR29: 56 | AS29: -0.002638673631 | AT29: a | AV29: a | AW29: 32.6 | AX29: 2.6 | AY29: 146 | BA29: a | BC29: a | BD29: 32.6 | BE29: 2.3 | BF29: 73 | BH29: a | BJ29: a | BK29: 31.1 | BL29: 2.8 | BM29: 153 | BN29: -0.2678494074 | BO29: a | BQ29: a | BR29: 31.1 | BS29: 2.3 | BT29: 112
B30: 40% | C30: 4 | D30: =(($W$29*$C30^4+$W$30*$C30^3+$W$31*$C30^2+$W$32*$C30+$W$33)*((((Tv_heat-Tr_heat)/LN((Tv_heat-Tl_heat)/(Tr_heat-Tl_heat)))/((75-65)/LN((75-20)/(65-20))))^1))*$D$14*$AA$11 -> 3362 | E30: =ROUND(((D30/$D$14)/((Tv_heat-Tr_heat)*1.163))*$E$14,IF($W$4=1,0,IF($W$4=2,2))) -> 116 | F30: =IF($AA$1=1,IF((POWER(((E30/$I$14)/1000)/$X$30,2)*100)*$J$14<0.01,0.01,(POWER(((E30/$I$14)/1000)/$X$30,2)*100)*$J$14),($X$30*(E30/$E$14)^$X$32)*$F$14) -> 0.67 | G30: =(($Y$29*$C30^4+$Y$30*$C30^3+$Y$31*$C30^2+$Y$32*$C30+$Y$33)*((((Tv_cool-Tr_cool)/LN((Tv_cool-Tl_cool)/(Tr_cool-Tl_cool)))/((16-18)/LN((16-27)/(18-27))))^S30))*$G$14*$AA$11 -> 359 | H30: =((G30/$G$14)/(IF((237.3*LN((RH*EXP(17.27*(Tl_cool/(Tl_cool+237.3))))))/(17.27-LN((RH*EXP(17.27*(Tl_cool/(Tl_cool+237.3))))))<((Tv_cool+Tr_cool)/2),1,IF(1/(1+((2258*((0.622/((p_atm/(1*611*EXP(17.27*(((Tv_cool+Tr_cool)/2)/(((Tv_cool+Tr_cool)/2)+237.3))))))-1)*1000-(0.622/((p_atm/(RH*611*EXP(17.27*(Tl_cool/(Tl_cool+237.3))))))-1)*1000))/(1005*(((Tv_cool+Tr_cool)/2)-Tl_cool))))*1.039+((-0.000729*$C30+0.001448)*(Tl_cool-((Tv_cool+Tr_cool)/2))+(0.016908*$C30-0.033574))*1.039>1,1,1/(1+((2258*((0.622/((p_atm/(1*611*EXP(17.27*(((Tv_cool+Tr_cool)/2)/(((Tv_cool+Tr_cool)/2)+237.3))))))-1)*1000-(0.622/((p_atm/(RH*611*EXP(17.27*(Tl_cool/(Tl_cool+237.3))))))-1)*1000))/(1005*(((Tv_cool+Tr_cool)/2)-Tl_cool))))*1.039+((-0.000729*$C30+0.001448)*(Tl_cool-((Tv_cool+Tr_cool)/2))+(0.016908*$C30-0.033574))*1.039))))*$H$14 -> 359 | I30: =ROUND(((H30/$H$14)/((Tr_cool-Tv_cool)*1.163))*$I$14,IF($W$4=1,0,IF($W$4=2,2))) -> 62 | J30: =IF($AA$1=1,IF((POWER(((I30/$I$14)/1000)/$X$30,2)*100)*$J$14<0.01,0.01,(POWER(((I30/$I$14)/1000)/$X$30,2)*100)*$J$14),($Z$30*(I30/$I$14)^$Z$32)*$J$14) -> 0.22 | K30: =IF(AA30<28,"<20",L30-8) -> 30.2 | L30: =IF(AA30<20,"<20",AA30) -> 38.2 | M30: 4.8 | N30: 221 | O30: =(Tl_heat+(($D30/$G$14)/(1006*$N30*$K$14)))*$M$14+$O$14 -> 65.2 | P30: =(Tl_cool-((G30/$G$14)/(1006*N30*$K$14)))*$M$14+$O$14 -> 15.2 | S30: 1.000 | W30: 1.478566111 | X30: 0.000120489315 | Y30: 0.09571949915 | Z30: 0.000120489315 | AA30: 38.2 | AB30: 4.8 | AC30: 221 | AD30: d | AE30: 0 | AF30: 1.638736 | AH30: =AF30 -> 1.638736 | AI30: 26.0 | AJ30: 2.100 | AK30: 65 | AL30: -0.03667333079 | AM30: 1.0950072 | AN30: -0.001424060014 | AO30: 1.0950072 | AP30: 38.0 | AQ30: 3.4 | AR30: 130 | AS30: 1.478566111 | AT30: 0.000120489315 | AU30: 0.09571949915 | AV30: 0.000120489315 | AW30: 38.2 | AX30: 4.8 | AY30: 221 | AZ30: 1.063651691 | BA30: 0.000120489315 | BB30: 0.1712351716 | BC30: 0.000120489315 | BD30: 38.2 | BE30: 4.1 | BF30: 149 | BG30: -0.8815084964 | BH30: 0.0002364386444 | BI30: -0.2615692787 | BJ30: 0.0002364386444 | BK30: 37.1 | BL30: 5.4 | BM30: 236 | BN30: 7.545208833 | BO30: 0.000120489315 | BP30: -0.2012348172 | BQ30: 0.0002364386444 | BR30: 37.1 | BS30: 4.2 | BT30: 183
B31: 60% | C31: 6 | D31: =(($W$29*$C31^4+$W$30*$C31^3+$W$31*$C31^2+$W$32*$C31+$W$33)*((((Tv_heat-Tr_heat)/LN((Tv_heat-Tl_heat)/(Tr_heat-Tl_heat)))/((75-65)/LN((75-20)/(65-20))))^1))*$D$14*$AA$11 -> 3823 | E31: =ROUND(((D31/$D$14)/((Tv_heat-Tr_heat)*1.163))*$E$14,IF($W$4=1,0,IF($W$4=2,2))) -> 131 | F31: 0.84 | G31: =(($Y$29*$C31^4+$Y$30*$C31^3+$Y$31*$C31^2+$Y$32*$C31+$Y$33)*((((Tv_cool-Tr_cool)/LN((Tv_cool-Tl_cool)/(Tr_cool-Tl_cool)))/((16-18)/LN((16-27)/(18-27))))^S31))*$G$14*$AA$11 -> 409 | H31: =((G31/$G$14)/(IF((237.3*LN((RH*EXP(17.27*(Tl_cool/(Tl_cool+237.3))))))/(17.27-LN((RH*EXP(17.27*(Tl_cool/(Tl_cool+237.3))))))<((Tv_cool+Tr_cool)/2),1,IF(1/(1+((2258*((0.622/((p_atm/(1*611*EXP(17.27*(((Tv_cool+Tr_cool)/2)/(((Tv_cool+Tr_cool)/2)+237.3))))))-1)*1000-(0.622/((p_atm/(RH*611*EXP(17.27*(Tl_cool/(Tl_cool+237.3))))))-1)*1000))/(1005*(((Tv_cool+Tr_cool)/2)-Tl_cool))))*1.039+((-0.000729*$C31+0.001448)*(Tl_cool-((Tv_cool+Tr_cool)/2))+(0.016908*$C31-0.033574))*1.039>1,1,1/(1+((2258*((0.622/((p_atm/(1*611*EXP(17.27*(((Tv_cool+Tr_cool)/2)/(((Tv_cool+Tr_cool)/2)+237.3))))))-1)*1000-(0.622/((p_atm/(RH*611*EXP(17.27*(Tl_cool/(Tl_cool+237.3))))))-1)*1000))/(1005*(((Tv_cool+Tr_cool)/2)-Tl_cool))))*1.039+((-0.000729*$C31+0.001448)*(Tl_cool-((Tv_cool+Tr_cool)/2))+(0.016908*$C31-0.033574))*1.039))))*$H$14 -> 409 | I31: =ROUND(((H31/$H$14)/((Tr_cool-Tv_cool)*1.163))*$I$14,IF($W$4=1,0,IF($W$4=2,2))) -> 70 | J31: 0.27 | K31: 37.0 | L31: 45.0 | M31: 8.0 | N31: 298 | O31: =(Tl_heat+(($D31/$G$14)/(1006*$N31*$K$14)))*$M$14+$O$14 -> 58.1 | P31: =(Tl_cool-((G31/$G$14)/(1006*N31*$K$14)))*$M$14+$O$14 -> 15.9 | S31: 1.000 | W31: -6.676712314 | X31: b | Y31: 0.7827958312 | Z31: b | AA31: 45 | AB31: 8 | AC31: 298 | AD31: e | AE31: 0.2943 | AF31: b | AG31: -2.7 | AH31: b | AI31: 35.5 | AJ31: 4.000 | AK31: 111 | AL31: -32.00210784 | AM31: b | AN31: -9.3445633 | AO31: b | AP31: 44.5 | AQ31: 6.5 | AR31: 227 | AS31: -6.676712314 | AT31: b | AU31: 0.7827958312 | AV31: b | AW31: 45.0 | AX31: 8.0 | AY31: 298 | AZ31: -4.235884898 | BA31: b | BB31: -1.46640814 | BC31: b | BD31: 45.0 | BE31: 7.4 | BF31: 220 | BG31: 10.60170495 | BH31: b | BI31: 4.673461784 | BJ31: b | BK31: 44.5 | BL31: 10.0 | BM31: 321 | BN31: -62.12513398 | BO31: b | BP31: 3.337019406 | BQ31: b | BR31: 44.5 | BS31: 7.5 | BT31: 260
B32: 80% | C32: 8 | D32: =(($W$29*$C32^4+$W$30*$C32^3+$W$31*$C32^2+$W$32*$C32+$W$33)*((((Tv_heat-Tr_heat)/LN((Tv_heat-Tl_heat)/(Tr_heat-Tl_heat)))/((75-65)/LN((75-20)/(65-20))))^1))*$D$14*$AA$11 -> 4475 | E32: =ROUND(((D32/$D$14)/((Tv_heat-Tr_heat)*1.163))*$E$14,IF($W$4=1,0,IF($W$4=2,2))) -> 154 | F32: 1.12 | G32: =(($Y$29*$C32^4+$Y$30*$C32^3+$Y$31*$C32^2+$Y$32*$C32+$Y$33)*((((Tv_cool-Tr_cool)/LN((Tv_cool-Tl_cool)/(Tr_cool-Tl_cool)))/((16-18)/LN((16-27)/(18-27))))^S32))*$G$14*$AA$11 -> 481 | H32: =((G32/$G$14)/(IF((237.3*LN((RH*EXP(17.27*(Tl_cool/(Tl_cool+237.3))))))/(17.27-LN((RH*EXP(17.27*(Tl_cool/(Tl_cool+237.3))))))<((Tv_cool+Tr_cool)/2),1,IF(1/(1+((2258*((0.622/((p_atm/(1*611*EXP(17.27*(((Tv_cool+Tr_cool)/2)/(((Tv_cool+Tr_cool)/2)+237.3))))))-1)*1000-(0.622/((p_atm/(RH*611*EXP(17.27*(Tl_cool/(Tl_cool+237.3))))))-1)*1000))/(1005*(((Tv_cool+Tr_cool)/2)-Tl_cool))))*1.039+((-0.000729*$C32+0.001448)*(Tl_cool-((Tv_cool+Tr_cool)/2))+(0.016908*$C32-0.033574))*1.039>1,1,1/(1+((2258*((0.622/((p_atm/(1*611*EXP(17.27*(((Tv_cool+Tr_cool)/2)/(((Tv_cool+Tr_cool)/2)+237.3))))))-1)*1000-(0.622/((p_atm/(RH*611*EXP(17.27*(Tl_cool/(Tl_cool+237.3))))))-1)*1000))/(1005*(((Tv_cool+Tr_cool)/2)-Tl_cool))))*1.039+((-0.000729*$C32+0.001448)*(Tl_cool-((Tv_cool+Tr_cool)/2))+(0.016908*$C32-0.033574))*1.039))))*$H$14 -> 481 | I32: =ROUND(((H32/$H$14)/((Tr_cool-Tv_cool)*1.163))*$I$14,IF($W$4=1,0,IF($W$4=2,2))) -> 83 | J32: 0.37 | K32: 42.5 | L32: 50.5 | M32: 14.0 | N32: 381 | O32: =(Tl_heat+(($D32/$G$14)/(1006*$N32*$K$14)))*$M$14+$O$14 -> 54.9 | P32: =(Tl_cool-((G32/$G$14)/(1006*N32*$K$14)))*$M$14+$O$14 -> 16.3 | S32: 1.000 | W32: 142.0684929 | X32: 1.814562502 | Y32: 9.402432844 | Z32: 1.814562502 | AA32: 50.5 | AB32: 14 | AC32: 381 | AD32: f | AE32: 243.26 | AG32: 79.6 | AH32: =AF32 -> 0 | AI32: 42.5 | AJ32: 6.600 | AK32: 148 | AL32: 1068.508954 | AM32: =AF32 -> 0 | AN32: 250.024809 | AO32: 2 | AP32: 50.5 | AQ32: 11.5 | AR32: 331 | AS32: 142.0684929 | AT32: 1.814562502 | AU32: 9.402432844 | AV32: 1.814562502 | AW32: 50.5 | AX32: 14.0 | AY32: 381 | AZ32: 114.9413532 | BA32: 1.814562502 | BB32: 22.25052489 | BC32: 1.814562502 | BD32: 50.5 | BE32: 12.6 | BF32: 278 | BG32: 390.820803 | BH32: 1.81207946 | BI32: 26.67695736 | BJ32: 1.81207946 | BK32: 50.5 | BL32: 18.0 | BM32: 398 | BN32: 307.8019218 | BO32: 1.814562502 | BP32: 23.25660387 | BQ32: 1.81207946 | BR32: 50.5 | BS32: 12.8 | BT32: 328
B33: 100% | C33: 10 | D33: =(($W$29*$C33^4+$W$30*$C33^3+$W$31*$C33^2+$W$32*$C33+$W$33)*((((Tv_heat-Tr_heat)/LN((Tv_heat-Tl_heat)/(Tr_heat-Tl_heat)))/((75-65)/LN((75-20)/(65-20))))^1))*$D$14*$AA$11 -> 5403 | E33: =ROUND(((D33/$D$14)/((Tv_heat-Tr_heat)*1.163))*$E$14,IF($W$4=1,0,IF($W$4=2,2))) -> 186 | F33: 1.58 | G33: =(($Y$29*$C33^4+$Y$30*$C33^3+$Y$31*$C33^2+$Y$32*$C33+$Y$33)*((((Tv_cool-Tr_cool)/LN((Tv_cool-Tl_cool)/(Tr_cool-Tl_cool)))/((16-18)/LN((16-27)/(18-27))))^S33))*$G$14*$AA$11 -> 577 | H33: =((G33/$G$14)/(IF((237.3*LN((RH*EXP(17.27*(Tl_cool/(Tl_cool+237.3))))))/(17.27-LN((RH*EXP(17.27*(Tl_cool/(Tl_cool+237.3))))))<((Tv_cool+Tr_cool)/2),1,IF(1/(1+((2258*((0.622/((p_atm/(1*611*EXP(17.27*(((Tv_cool+Tr_cool)/2)/(((Tv_cool+Tr_cool)/2)+237.3))))))-1)*1000-(0.622/((p_atm/(RH*611*EXP(17.27*(Tl_cool/(Tl_cool+237.3))))))-1)*1000))/(1005*(((Tv_cool+Tr_cool)/2)-Tl_cool))))*1.039+((-0.000729*$C33+0.001448)*(Tl_cool-((Tv_cool+Tr_cool)/2))+(0.016908*$C33-0.033574))*1.039>1,1,1/(1+((2258*((0.622/((p_atm/(1*611*EXP(17.27*(((Tv_cool+Tr_cool)/2)/(((Tv_cool+Tr_cool)/2)+237.3))))))-1)*1000-(0.622/((p_atm/(RH*611*EXP(17.27*(Tl_cool/(Tl_cool+237.3))))))-1)*1000))/(1005*(((Tv_cool+Tr_cool)/2)-Tl_cool))))*1.039+((-0.000729*$C33+0.001448)*(Tl_cool-((Tv_cool+Tr_cool)/2))+(0.016908*$C33-0.033574))*1.039))))*$H$14 -> 577 | I33: =ROUND(((H33/$H$14)/((Tr_cool-Tv_cool)*1.163))*$I$14,IF($W$4=1,0,IF($W$4=2,2))) -> 99 | J33: 0.50 | K33: 47.0 | L33: 55.0 | M33: 24.0 | N33: 448 | O33: =(Tl_heat+(($D33/$G$14)/(1006*$N33*$K$14)))*$M$14+$O$14 -> 55.8 | P33: =(Tl_cool-((G33/$G$14)/(1006*N33*$K$14)))*$M$14+$O$14 -> 16.2 | S33: 1.000 | W33: 2161.546139 | X33: 0 | Y33: 290.7155392 | Z33: 0 | AA33: 55 | AB33: 24 | AC33: 448 | AD33: g | AE33: 83.573 | AG33: -92.0 | AI33: 50.5 | AJ33: 10.100 | AK33: 188 | AL33: -1399.636865 | AN33: -376.3036032 | AP33: 56.0 | AQ33: 19.7 | AR33: 392 | AS33: 2161.546139 | AU33: 290.7155392 | AW33: 55.0 | AX33: 24.0 | AY33: 448 | AZ33: 1703.014518 | BB33: 199.9546089 | BD33: 55.0 | BE33: 20.9 | BF33: 364 | BG33: 2743.741129 | BI33: 404.4385595 | BK33: 54.5 | BL33: 28.8 | BM33: 467 | BN33: 1146.735002 | BP33: 292.4953956 | BR33: 54.5 | BS33: 22.3 | BT33: 385
B34: =IF($S$7=1,NL!B34,IF(cal!$S$7=2,EN!B34,IF(cal!$S$7=3,DE!B34,IF(cal!$S$7=4,FR!B34,IF(cal!$S$7=5,NR!B34,IF(cal!$S$7=6,SP!B34,IF(cal!$S$7=7,SW!B34,IF(cal!$S$7=8,TS!B34,IF(cal!$S$7=9,RU!B34,IF(cal!$S$7=10,ExtraTaal2!B34,IF(cal!$S$7=11,ExtraTaal3!B34,))))))))))) -> Briza Net Zero M H42 2P Высота 42 cm Ширина 14 cm Длина 145 cm (Тип 4) | S34: n-value | W34: H | X34: =IF($W$16=1,AF34,IF($W$16=2,AM34,IF($W$16=3,AT34,IF($W$16=4,BA34,IF($W$16=5,BH34,IF($W$16=6,BO34,IF($W$16=7,BV34,IF($W$16=8,CC34))))))))*IF($W$4=1,1,IF($W$4=2,1/2.54)) -> 42.0 | Y34: B | Z34: =IF($W$16=1,AH34,IF($W$16=2,AO34,IF($W$16=3,AV34,IF($W$16=4,BC34,IF($W$16=5,BJ34,IF($W$16=6,BQ34,IF($W$16=7,BX34,IF($W$16=8,CE34))))))))*IF($W$4=1,1,IF($W$4=2,1/2.54)) -> 14.0 | AA34: L | AB34: =IF($W$16=1,AJ34,IF($W$16=2,AQ34,IF($W$16=3,AX34,IF($W$16=4,BE34,IF($W$16=5,BL34,IF($W$16=6,BS34,IF($W$16=7,BZ34,IF($W$16=8,CG34))))))))*IF($W$4=1,1,IF($W$4=2,1/2.54)) -> 125.0 | AE34: H | AF34: =IF(AI1=AH2,AL4,AM4) -> 52.1 | AG34: B | AH34: =IF(AI1=AH2,AL3,AM3) -> 8.5 | AI34: L | AJ34: =IF(AI1=AH2,AL7,AM7) -> 163 | AK34: 113 | AL34: H | AM34: =IF(AI1=AH2,AN4,AO4) -> 55.8 | AN34: B | AO34: =IF(AI1=AH2,AN3,AO3) -> 11 | AP34: L | AQ34: =IF(AI1=AH2,AN7,AO7) -> 155 | AS34: H | AT34: =IF(AI1=AH2,AP4,AQ4) -> 42 | AU34: B | AV34: =IF(AI1=AH2,AP3,AQ3) -> 14 | AW34: L | AX34: =IF(AI1=AH2,AP7,AQ7) -> 125 | AZ34: H | BA34: =AT34 -> 42 | BB34: =AU34 -> B | BC34: 14 | BD34: L | BE34: 125 | BG34: H | BH34: =IF(AI1=AH3,AR4,AS4) -> 56 | BI34: B | BJ34: =IF(AI1=AH2,AR3,AS3) -> 14 | BK34: L | BL34: =IF(AI1=AH2,AR7,AS7) -> 125 | BN34: H | BO34: =BH34 -> 56 | BP34: =BI34 -> B | BQ34: 14 | BR34: L | BS34: 125
B35: 20% | C35: 2 | D35: =(($W$35*$C35^4+$W$36*$C35^3+$W$37*$C35^2+$W$38*$C35+$W$39)*((((Tv_heat-Tr_heat)/LN((Tv_heat-Tl_heat)/(Tr_heat-Tl_heat)))/((75-65)/LN((75-20)/(65-20))))^1))*$D$14*$AA$11 -> 3710 | E35: =ROUND(((D35/$D$14)/((Tv_heat-Tr_heat)*1.163))*$E$14,IF($W$4=1,0,IF($W$4=2,2))) -> 128 | F35: =IF($AA$1=1,IF((POWER(((E35/$I$14)/1000)/$X$36,2)*100)*$J$14<0.01,0.01,(POWER(((E35/$I$14)/1000)/$X$36,2)*100)*$J$14),($X$36*(E35/$E$14)^$X$38)*$F$14) -> 0.93 | G35: =(($Y$35*$C35^4+$Y$36*$C35^3+$Y$37*$C35^2+$Y$38*$C35+$Y$39)*((((Tv_cool-Tr_cool)/LN((Tv_cool-Tl_cool)/(Tr_cool-Tl_cool)))/((16-18)/LN((16-27)/(18-27))))^S35))*$G$14*$AA$11 -> 425 | H35: =((G35/$G$14)/(IF((237.3*LN((RH*EXP(17.27*(Tl_cool/(Tl_cool+237.3))))))/(17.27-LN((RH*EXP(17.27*(Tl_cool/(Tl_cool+237.3))))))<((Tv_cool+Tr_cool)/2),1,IF(1/(1+((2258*((0.622/((p_atm/(1*611*EXP(17.27*(((Tv_cool+Tr_cool)/2)/(((Tv_cool+Tr_cool)/2)+237.3))))))-1)*1000-(0.622/((p_atm/(RH*611*EXP(17.27*(Tl_cool/(Tl_cool+237.3))))))-1)*1000))/(1005*(((Tv_cool+Tr_cool)/2)-Tl_cool))))*1.039+((-0.000729*$C35+0.001448)*(Tl_cool-((Tv_cool+Tr_cool)/2))+(0.016908*$C35-0.033574))*1.039>1,1,1/(1+((2258*((0.622/((p_atm/(1*611*EXP(17.27*(((Tv_cool+Tr_cool)/2)/(((Tv_cool+Tr_cool)/2)+237.3))))))-1)*1000-(0.622/((p_atm/(RH*611*EXP(17.27*(Tl_cool/(Tl_cool+237.3))))))-1)*1000))/(1005*(((Tv_cool+Tr_cool)/2)-Tl_cool))))*1.039+((-0.000729*$C35+0.001448)*(Tl_cool-((Tv_cool+Tr_cool)/2))+(0.016908*$C35-0.033574))*1.039))))*$H$14 -> 425 | I35: =ROUND(((H35/$H$14)/((Tr_cool-Tv_cool)*1.163))*$I$14,IF($W$4=1,0,IF($W$4=2,2))) -> 73 | J35: =IF($AA$1=1,IF((POWER(((I35/$I$14)/1000)/$X$36,2)*100)*$J$14<0.01,0.01,(POWER(((I35/$I$14)/1000)/$X$36,2)*100)*$J$14),($Z$36*(I35/$I$14)^$Z$38)*$J$14) -> 0.33 | K35: =IF(AA35<28,"<20",L35-8) -> 25.7 | L35: =IF(AA35<20,"<20",AA35) -> 33.7 | M35: =AB35 -> 2.8 | N35: =AC35*$N$14 -> 173 | O35: =(Tl_heat+(($D35/$G$14)/(1006*$N35*$K$14)))*$M$14+$O$14 -> 83.7 | P35: =(Tl_cool-((G35/$G$14)/(1006*N35*$K$14)))*$M$14+$O$14 -> 12.7 | S35: 1.000 | W35: =IF($W$16=1,AE35,IF($W$16=2,AL35,IF($W$16=3,AS35,IF($W$16=4,AZ35,IF($W$16=5,BG35,IF($W$16=6,BN35,IF($W$16=7,BU35,IF($W$16=8,CB35)))))))) -> 0 | X35: =IF($W$16=1,AF35,IF($W$16=2,AM35,IF($W$16=3,AT35,IF($W$16=4,BA35,IF($W$16=5,BH35,IF($W$16=6,BO35,IF($W$16=7,BV35,IF($W$16=8,CC35)))))))) -> a | Y35: =IF($W$16=1,AG35,IF($W$16=2,AN35,IF($W$16=3,AU35,IF($W$16=4,BB35,IF($W$16=5,BI35,IF($W$16=6,BP35,IF($W$16=7,BW35,IF($W$16=8,CD35)))))))) -> 0 | Z35: =IF($W$16=1,AH35,IF($W$16=2,AO35,IF($W$16=3,AV35,IF($W$16=4,BC35,IF($W$16=5,BJ35,IF($W$16=6,BQ35,IF($W$16=7,BX35,IF($W$16=8,CE35)))))))) -> a | AA35: =IF($W$16=1,AI35,IF($W$16=2,AP35,IF($W$16=3,AW35,IF($W$16=4,BD35,IF($W$16=5,BK35,IF($W$16=6,BR35,IF($W$16=7,BY35,IF($W$16=8,CF35)))))))) -> 33.7 | AB35: =IF($W$16=1,AJ35,IF($W$16=2,AQ35,IF($W$16=3,AX35,IF($W$16=4,BE35,IF($W$16=5,BL35,IF($W$16=6,BS35,IF($W$16=7,BZ35,IF($W$16=8,CG35)))))))) -> 2.8 | AC35: =IF($W$16=1,AK35,IF($W$16=2,AR35,IF($W$16=3,AY35,IF($W$16=4,BF35,IF($W$16=5,BM35,IF($W$16=6,BT35,IF($W$16=7,CA35,IF($W$16=8,CH35)))))))) -> 173 | AD35: c | AE35: 0 | AF35: a | AH35: a | AI35: 21.0 | AJ35: 1.200 | AK35: 43 | AL35: 0.0007699171769 | AM35: a | AN35: -0.001016019083 | AO35: a | AP35: 32.0 | AQ35: 2.1 | AR35: 60 | AT35: a | AV35: a | AW35: 33.7 | AX35: 2.8 | AY35: 173 | BA35: a | BC35: a | BD35: 33.7 | BE35: 2.5 | BF35: 89 | BH35: a | BJ35: a | BK35: 33.0 | BL35: 2.8 | BM35: 182 | BO35: a | BQ35: a | BR35: 33.0 | BS35: 2.7 | BT35: 126
B36: 40% | C36: 4 | D36: =(($W$35*$C36^4+$W$36*$C36^3+$W$37*$C36^2+$W$38*$C36+$W$39)*((((Tv_heat-Tr_heat)/LN((Tv_heat-Tl_heat)/(Tr_heat-Tl_heat)))/((75-65)/LN((75-20)/(65-20))))^1))*$D$14*$AA$11 -> 4208 | E36: =ROUND(((D36/$D$14)/((Tv_heat-Tr_heat)*1.163))*$E$14,IF($W$4=1,0,IF($W$4=2,2))) -> 145 | F36: =IF($AA$1=1,IF((POWER(((E36/$I$14)/1000)/$X$36,2)*100)*$J$14<0.01,0.01,(POWER(((E36/$I$14)/1000)/$X$36,2)*100)*$J$14),($X$36*(E36/$E$14)^$X$38)*$F$14) -> 1.16 | G36: =(($Y$35*$C36^4+$Y$36*$C36^3+$Y$37*$C36^2+$Y$38*$C36+$Y$39)*((((Tv_cool-Tr_cool)/LN((Tv_cool-Tl_cool)/(Tr_cool-Tl_cool)))/((16-18)/LN((16-27)/(18-27))))^S36))*$G$14*$AA$11 -> 465 | H36: =((G36/$G$14)/(IF((237.3*LN((RH*EXP(17.27*(Tl_cool/(Tl_cool+237.3))))))/(17.27-LN((RH*EXP(17.27*(Tl_cool/(Tl_cool+237.3))))))<((Tv_cool+Tr_cool)/2),1,IF(1/(1+((2258*((0.622/((p_atm/(1*611*EXP(17.27*(((Tv_cool+Tr_cool)/2)/(((Tv_cool+Tr_cool)/2)+237.3))))))-1)*1000-(0.622/((p_atm/(RH*611*EXP(17.27*(Tl_cool/(Tl_cool+237.3))))))-1)*1000))/(1005*(((Tv_cool+Tr_cool)/2)-Tl_cool))))*1.039+((-0.000729*$C36+0.001448)*(Tl_cool-((Tv_cool+Tr_cool)/2))+(0.016908*$C36-0.033574))*1.039>1,1,1/(1+((2258*((0.622/((p_atm/(1*611*EXP(17.27*(((Tv_cool+Tr_cool)/2)/(((Tv_cool+Tr_cool)/2)+237.3))))))-1)*1000-(0.622/((p_atm/(RH*611*EXP(17.27*(Tl_cool/(Tl_cool+237.3))))))-1)*1000))/(1005*(((Tv_cool+Tr_cool)/2)-Tl_cool))))*1.039+((-0.000729*$C36+0.001448)*(Tl_cool-((Tv_cool+Tr_cool)/2))+(0.016908*$C36-0.033574))*1.039))))*$H$14 -> 465 | I36: =ROUND(((H36/$H$14)/((Tr_cool-Tv_cool)*1.163))*$I$14,IF($W$4=1,0,IF($W$4=2,2))) -> 80 | J36: =IF($AA$1=1,IF((POWER(((I36/$I$14)/1000)/$X$36,2)*100)*$J$14<0.01,0.01,(POWER(((I36/$I$14)/1000)/$X$36,2)*100)*$J$14),) -> 0.00 | K36: =IF(AA36<28,"<20",L36-8) -> 30.5 | L36: =IF(AA36<20,"<20",AA36) -> 38.5 | M36: 5.5 | N36: 268 | O36: =(Tl_heat+(($D36/$G$14)/(1006*$N36*$K$14)))*$M$14+$O$14 -> 66.7 | P36: =(Tl_cool-((G36/$G$14)/(1006*N36*$K$14)))*$M$14+$O$14 -> 14.8 | S36: 1.000 | W36: 1.511866067 | X36: 0.0001293291521 | Y36: 0.186322154 | Z36: 0.0001293291521 | AA36: 38.5 | AB36: 5.5 | AC36: 268 | AD36: d | AE36: 0 | AF36: 1.531456 | AH36: =AF36 -> 1.531456 | AI36: 28.5 | AJ36: 2.500 | AK36: 71 | AL36: -0.03115245802 | AM36: 0.9985033666 | AN36: -0.001637722632 | AO36: 0.9985033666 | AP36: 39.0 | AQ36: 3.8 | AR36: 176 | AS36: 1.511866067 | AT36: 0.0001293291521 | AU36: 0.186322154 | AV36: 0.0001293291521 | AW36: 38.5 | AX36: 5.5 | AY36: 268 | AZ36: 1.426761087 | BA36: 0.0001293291521 | BB36: 0.2115184659 | BC36: 0.0001293291521 | BD36: 38.5 | BE36: 4.5 | BF36: 158 | BG36: -1.703273168 | BH36: 0.0002716990575 | BI36: -0.311933296 | BJ36: 0.0002716990575 | BK36: 38.8 | BL36: 5.5 | BM36: 270 | BN36: 1.134489457 | BO36: 0.0001293291521 | BP36: -0.3378093391 | BQ36: 0.0002716990575 | BR36: 38.8 | BS36: 5.2 | BT36: 228
B37: 60% | C37: 6 | D37: =(($W$35*$C37^4+$W$36*$C37^3+$W$37*$C37^2+$W$38*$C37+$W$39)*((((Tv_heat-Tr_heat)/LN((Tv_heat-Tl_heat)/(Tr_heat-Tl_heat)))/((75-65)/LN((75-20)/(65-20))))^1))*$D$14*$AA$11 -> 4818 | E37: =ROUND(((D37/$D$14)/((Tv_heat-Tr_heat)*1.163))*$E$14,IF($W$4=1,0,IF($W$4=2,2))) -> 166 | F37: 1.49 | G37: =(($Y$35*$C37^4+$Y$36*$C37^3+$Y$37*$C37^2+$Y$38*$C37+$Y$39)*((((Tv_cool-Tr_cool)/LN((Tv_cool-Tl_cool)/(Tr_cool-Tl_cool)))/((16-18)/LN((16-27)/(18-27))))^S37))*$G$14*$AA$11 -> 522 | H37: =((G37/$G$14)/(IF((237.3*LN((RH*EXP(17.27*(Tl_cool/(Tl_cool+237.3))))))/(17.27-LN((RH*EXP(17.27*(Tl_cool/(Tl_cool+237.3))))))<((Tv_cool+Tr_cool)/2),1,IF(1/(1+((2258*((0.622/((p_atm/(1*611*EXP(17.27*(((Tv_cool+Tr_cool)/2)/(((Tv_cool+Tr_cool)/2)+237.3))))))-1)*1000-(0.622/((p_atm/(RH*611*EXP(17.27*(Tl_cool/(Tl_cool+237.3))))))-1)*1000))/(1005*(((Tv_cool+Tr_cool)/2)-Tl_cool))))*1.039+((-0.000729*$C37+0.001448)*(Tl_cool-((Tv_cool+Tr_cool)/2))+(0.016908*$C37-0.033574))*1.039>1,1,1/(1+((2258*((0.622/((p_atm/(1*611*EXP(17.27*(((Tv_cool+Tr_cool)/2)/(((Tv_cool+Tr_cool)/2)+237.3))))))-1)*1000-(0.622/((p_atm/(RH*611*EXP(17.27*(Tl_cool/(Tl_cool+237.3))))))-1)*1000))/(1005*(((Tv_cool+Tr_cool)/2)-Tl_cool))))*1.039+((-0.000729*$C37+0.001448)*(Tl_cool-((Tv_cool+Tr_cool)/2))+(0.016908*$C37-0.033574))*1.039))))*$H$14 -> 522 | I37: =ROUND(((H37/$H$14)/((Tr_cool-Tv_cool)*1.163))*$I$14,IF($W$4=1,0,IF($W$4=2,2))) -> 90 | J37: 0.00 | K37: 37.3 | L37: 45.3 | M37: 10.3 | N37: 373 | O37: =(Tl_heat+(($D37/$G$14)/(1006*$N37*$K$14)))*$M$14+$O$14 -> 58.4 | P37: =(Tl_cool-((G37/$G$14)/(1006*N37*$K$14)))*$M$14+$O$14 -> 15.8 | S37: 1.000 | W37: -6.786190864 | X37: b | Y37: -0.2518869763 | Z37: b | AA37: 45.3 | AB37: 10.3 | AC37: 373 | AD37: e | AE37: 0.388 | AF37: b | AG37: -3.6 | AH37: b | AI37: 36.0 | AJ37: 5.400 | AK37: 131 | AL37: -42.34888282 | AM37: b | AN37: -12.33166871 | AO37: b | AP37: 45.5 | AQ37: 8.2 | AR37: 299 | AS37: -6.786190864 | AT37: b | AU37: -0.2518869763 | AV37: b | AW37: 45.3 | AX37: 10.3 | AY37: 373 | AZ37: -10.16365605 | BA37: b | BB37: -2.312432306 | BC37: b | BD37: 45.3 | BE37: 9.0 | BF37: 227 | BG37: 26.26805005 | BH37: b | BI37: 5.571272066 | BJ37: b | BK37: 45.5 | BL37: 10.0 | BM37: 360 | BN37: -6.653151375 | BO37: b | BP37: 6.504147276 | BQ37: b | BR37: 45.5 | BS37: 9.1 | BT37: 304
B38: 80% | C38: 8 | D38: =(($W$35*$C38^4+$W$36*$C38^3+$W$37*$C38^2+$W$38*$C38+$W$39)*((((Tv_heat-Tr_heat)/LN((Tv_heat-Tl_heat)/(Tr_heat-Tl_heat)))/((75-65)/LN((75-20)/(65-20))))^1))*$D$14*$AA$11 -> 5631 | E38: =ROUND(((D38/$D$14)/((Tv_heat-Tr_heat)*1.163))*$E$14,IF($W$4=1,0,IF($W$4=2,2))) -> 194 | F38: 1.98 | G38: =(($Y$35*$C38^4+$Y$36*$C38^3+$Y$37*$C38^2+$Y$38*$C38+$Y$39)*((((Tv_cool-Tr_cool)/LN((Tv_cool-Tl_cool)/(Tr_cool-Tl_cool)))/((16-18)/LN((16-27)/(18-27))))^S38))*$G$14*$AA$11 -> 604 | H38: =((G38/$G$14)/(IF((237.3*LN((RH*EXP(17.27*(Tl_cool/(Tl_cool+237.3))))))/(17.27-LN((RH*EXP(17.27*(Tl_cool/(Tl_cool+237.3))))))<((Tv_cool+Tr_cool)/2),1,IF(1/(1+((2258*((0.622/((p_atm/(1*611*EXP(17.27*(((Tv_cool+Tr_cool)/2)/(((Tv_cool+Tr_cool)/2)+237.3))))))-1)*1000-(0.622/((p_atm/(RH*611*EXP(17.27*(Tl_cool/(Tl_cool+237.3))))))-1)*1000))/(1005*(((Tv_cool+Tr_cool)/2)-Tl_cool))))*1.039+((-0.000729*$C38+0.001448)*(Tl_cool-((Tv_cool+Tr_cool)/2))+(0.016908*$C38-0.033574))*1.039>1,1,1/(1+((2258*((0.622/((p_atm/(1*611*EXP(17.27*(((Tv_cool+Tr_cool)/2)/(((Tv_cool+Tr_cool)/2)+237.3))))))-1)*1000-(0.622/((p_atm/(RH*611*EXP(17.27*(Tl_cool/(Tl_cool+237.3))))))-1)*1000))/(1005*(((Tv_cool+Tr_cool)/2)-Tl_cool))))*1.039+((-0.000729*$C38+0.001448)*(Tl_cool-((Tv_cool+Tr_cool)/2))+(0.016908*$C38-0.033574))*1.039))))*$H$14 -> 604 | I38: =ROUND(((H38/$H$14)/((Tr_cool-Tv_cool)*1.163))*$I$14,IF($W$4=1,0,IF($W$4=2,2))) -> 104 | J38: 0.00 | K38: 43.0 | L38: 51.0 | M38: 18.5 | N38: 466 | O38: =(Tl_heat+(($D38/$G$14)/(1006*$N38*$K$14)))*$M$14+$O$14 -> 55.9 | P38: =(Tl_cool-((G38/$G$14)/(1006*N38*$K$14)))*$M$14+$O$14 -> 16.1 | S38: 1.000 | W38: 199.5924374 | X38: 1.829330159 | Y38: 15.66445536 | Z38: 1.829330159 | AA38: 51 | AB38: 18.5 | AC38: 466 | AD38: f | AE38: 320.76 | AG38: 105.0 | AH38: =AF38 -> 0 | AI38: 44.5 | AJ38: 9.100 | AK38: 182 | AL38: 1409.451583 | AM38: =AF38 -> 0 | AN38: 329.7416439 | AO38: 2 | AP38: 52.0 | AQ38: 15.4 | AR38: 403 | AS38: 199.5924374 | AT38: 1.829330159 | AU38: 15.66445536 | AV38: 1.829330159 | AW38: 51.0 | AX38: 18.5 | AY38: 466 | AZ38: 191.91979 | BA38: 1.829330159 | BB38: 34.90758347 | BC38: 1.829330159 | BD38: 51.0 | BE38: 17.0 | BF38: 289 | BG38: 398.1010259 | BH38: 1.815439155 | BI38: 34.97111416 | BJ38: 1.815439155 | BK38: 50.8 | BL38: 18.0 | BM38: 455 | BN38: 140.5340506 | BO38: 1.829330159 | BP38: 9.261657388 | BQ38: 1.815439155 | BR38: 50.8 | BS38: 16.0 | BT38: 393
B39: 100% | C39: 10 | D39: =(($W$35*$C39^4+$W$36*$C39^3+$W$37*$C39^2+$W$38*$C39+$W$39)*((((Tv_heat-Tr_heat)/LN((Tv_heat-Tl_heat)/(Tr_heat-Tl_heat)))/((75-65)/LN((75-20)/(65-20))))^1))*$D$14*$AA$11 -> 6735 | E39: =ROUND(((D39/$D$14)/((Tv_heat-Tr_heat)*1.163))*$E$14,IF($W$4=1,0,IF($W$4=2,2))) -> 232 | F39: 2.75 | G39: =(($Y$35*$C39^4+$Y$36*$C39^3+$Y$37*$C39^2+$Y$38*$C39+$Y$39)*((((Tv_cool-Tr_cool)/LN((Tv_cool-Tl_cool)/(Tr_cool-Tl_cool)))/((16-18)/LN((16-27)/(18-27))))^S39))*$G$14*$AA$11 -> 721 | H39: =((G39/$G$14)/(IF((237.3*LN((RH*EXP(17.27*(Tl_cool/(Tl_cool+237.3))))))/(17.27-LN((RH*EXP(17.27*(Tl_cool/(Tl_cool+237.3))))))<((Tv_cool+Tr_cool)/2),1,IF(1/(1+((2258*((0.622/((p_atm/(1*611*EXP(17.27*(((Tv_cool+Tr_cool)/2)/(((Tv_cool+Tr_cool)/2)+237.3))))))-1)*1000-(0.622/((p_atm/(RH*611*EXP(17.27*(Tl_cool/(Tl_cool+237.3))))))-1)*1000))/(1005*(((Tv_cool+Tr_cool)/2)-Tl_cool))))*1.039+((-0.000729*$C39+0.001448)*(Tl_cool-((Tv_cool+Tr_cool)/2))+(0.016908*$C39-0.033574))*1.039>1,1,1/(1+((2258*((0.622/((p_atm/(1*611*EXP(17.27*(((Tv_cool+Tr_cool)/2)/(((Tv_cool+Tr_cool)/2)+237.3))))))-1)*1000-(0.622/((p_atm/(RH*611*EXP(17.27*(Tl_cool/(Tl_cool+237.3))))))-1)*1000))/(1005*(((Tv_cool+Tr_cool)/2)-Tl_cool))))*1.039+((-0.000729*$C39+0.001448)*(Tl_cool-((Tv_cool+Tr_cool)/2))+(0.016908*$C39-0.033574))*1.039))))*$H$14 -> 721 | I39: =ROUND(((H39/$H$14)/((Tr_cool-Tv_cool)*1.163))*$I$14,IF($W$4=1,0,IF($W$4=2,2))) -> 124 | J39: 0.00 | K39: 47.0 | L39: 55.0 | M39: 28.8 | N39: 510 | O39: =(Tl_heat+(($D39/$G$14)/(1006*$N39*$K$14)))*$M$14+$O$14 -> 59.3 | P39: =(Tl_cool-((G39/$G$14)/(1006*N39*$K$14)))*$M$14+$O$14 -> 15.8 | S39: 1.000 | W39: 2614.564209 | X39: 0 | Y39: 379.7620831 | Z39: 0 | AA39: 55 | AB39: 28.8 | AC39: 510 | AD39: g | AE39: 110.2 | AG39: -121.3 | AI39: 50.0 | AJ39: 14.100 | AK39: 206 | AL39: -1846.134149 | AN39: -496.2805642 | AP39: 57.0 | AQ39: 26.4 | AR39: 503 | AS39: 2614.564209 | AU39: 379.7620831 | AW39: 55.0 | AX39: 28.8 | AY39: 510 | AZ39: 2025.647069 | BB39: 228.6064063 | BD39: 55.0 | BE39: 28.8 | BF39: 382 | BG39: 3621.175589 | BI39: 500.4299071 | BK39: 54.5 | BL39: 28.8 | BM39: 531 | BN39: 1716.317461 | BP39: 414.9879357 | BR39: 54.5 | BS39: 27.3 | BT39: 462
B40: =IF($S$7=1,NL!B40,IF(cal!$S$7=2,EN!B40,IF(cal!$S$7=3,DE!B40,IF(cal!$S$7=4,FR!B40,IF(cal!$S$7=5,NR!B40,IF(cal!$S$7=6,SP!B40,IF(cal!$S$7=7,SW!B40,IF(cal!$S$7=8,TS!B40,IF(cal!$S$7=9,RU!B40,IF(cal!$S$7=10,ExtraTaal2!B40,IF(cal!$S$7=11,ExtraTaal3!B40,))))))))))) -> *Звуковая мощность определена по ISO 3741:2010 | C40: =IF($S$7=1,NL!C40,IF(cal!$S$7=2,EN!C40,IF(cal!$S$7=3,DE!C40,IF(cal!$S$7=4,FR!C40,IF(cal!$S$7=5,NR!C40,IF(cal!$S$7=6,SP!C40,)))))) -> 0 | D40: =IF($S$7=1,NL!D40,IF(cal!$S$7=2,EN!D40,IF(cal!$S$7=3,DE!D40,IF(cal!$S$7=4,FR!D40,IF(cal!$S$7=5,NR!D40,IF(cal!$S$7=6,SP!D40,)))))) -> 0 | E40: =IF($S$7=1,NL!E40,IF(cal!$S$7=2,EN!E40,IF(cal!$S$7=3,DE!E40,IF(cal!$S$7=4,FR!E40,IF(cal!$S$7=5,NR!E40,IF(cal!$S$7=6,SP!E40,)))))) -> 0 | F40: =IF($S$7=1,NL!F40,IF(cal!$S$7=2,EN!F40,IF(cal!$S$7=3,DE!F40,IF(cal!$S$7=4,FR!F40,IF(cal!$S$7=5,NR!F40,IF(cal!$S$7=6,SP!F40,)))))) -> 0 | G40: =IF($S$7=1,NL!G40,IF(cal!$S$7=2,EN!G40,IF(cal!$S$7=3,DE!G40,IF(cal!$S$7=4,FR!G40,IF(cal!$S$7=5,NR!G40,IF(cal!$S$7=6,SP!G40,)))))) -> 0 | H40: =IF($S$7=1,NL!H40,IF(cal!$S$7=2,EN!H40,IF(cal!$S$7=3,DE!H40,IF(cal!$S$7=4,FR!H40,IF(cal!$S$7=5,NR!H40,IF(cal!$S$7=6,SP!H40,)))))) -> 0 | I40: =IF($S$7=1,NL!I40,IF(cal!$S$7=2,EN!I40,IF(cal!$S$7=3,DE!I40,IF(cal!$S$7=4,FR!I40,IF(cal!$S$7=5,NR!I40,IF(cal!$S$7=6,SP!I40,)))))) -> 0 | J40: =IF($S$7=1,NL!J40,IF(cal!$S$7=2,EN!J40,IF(cal!$S$7=3,DE!J40,IF(cal!$S$7=4,FR!J40,IF(cal!$S$7=5,NR!J40,IF(cal!$S$7=6,SP!J40,)))))) -> 0 | K40: =IF($S$7=1,NL!K40,IF(cal!$S$7=2,EN!K40,IF(cal!$S$7=3,DE!K40,IF(cal!$S$7=4,FR!K40,IF(cal!$S$7=5,NR!K40,IF(cal!$S$7=6,SP!K40,)))))) -> 0 | L40: =IF($S$7=1,NL!L40,IF(cal!$S$7=2,EN!L40,IF(cal!$S$7=3,DE!L40,IF(cal!$S$7=4,FR!L40,IF(cal!$S$7=5,NR!L40,IF(cal!$S$7=6,SP!L40,)))))) -> 0 | M40: =IF($S$7=1,NL!M40,IF(cal!$S$7=2,EN!M40,IF(cal!$S$7=3,DE!M40,IF(cal!$S$7=4,FR!M40,IF(cal!$S$7=5,NR!M40,IF(cal!$S$7=6,SP!M40,)))))) -> 0 | N40: =IF($S$7=1,NL!N40,IF(cal!$S$7=2,EN!N40,IF(cal!$S$7=3,DE!N40,IF(cal!$S$7=4,FR!N40,IF(cal!$S$7=5,NR!N40,IF(cal!$S$7=6,SP!N40,)))))) -> 0 | O40: =IF($S$7=1,NL!O40,IF(cal!$S$7=2,EN!O40,IF(cal!$S$7=3,DE!O40,IF(cal!$S$7=4,FR!O40,IF(cal!$S$7=5,NR!O40,IF(cal!$S$7=6,SP!O40,)))))) -> 0 | P40: =IF($S$7=1,NL!P40,IF(cal!$S$7=2,EN!P40,IF(cal!$S$7=3,DE!P40,IF(cal!$S$7=4,FR!P40,IF(cal!$S$7=5,NR!P40,IF(cal!$S$7=6,SP!P40,)))))) -> 0 | S40: n-value | W40: H | X40: =IF($W$16=1,AF40,IF($W$16=2,AM40,IF($W$16=3,AT40,IF($W$16=4,BA40,IF($W$16=5,BH40,IF($W$16=6,BO40,IF($W$16=7,BV40,IF($W$16=8,CC40))))))))*IF($W$4=1,1,IF($W$4=2,1/2.54)) -> 42.0 | Y40: B | Z40: =IF($W$16=1,AH40,IF($W$16=2,AO40,IF($W$16=3,AV40,IF($W$16=4,BC40,IF($W$16=5,BJ40,IF($W$16=6,BQ40,IF($W$16=7,BX40,IF($W$16=8,CE40))))))))*IF($W$4=1,1,IF($W$4=2,1/2.54)) -> 14.0 | AA40: L | AB40: =IF($W$16=1,AJ40,IF($W$16=2,AQ40,IF($W$16=3,AX40,IF($W$16=4,BE40,IF($W$16=5,BL40,IF($W$16=6,BS40,IF($W$16=7,BZ40,IF($W$16=8,CG40))))))))*IF($W$4=1,1,IF($W$4=2,1/2.54)) -> 145.0 | AE40: H | AF40: =IF(AI1=AH2,AL4,AM4) -> 52.1 | AG40: B | AH40: =IF(AI1=AH2,AL3,AM3) -> 8.5 | AI40: L | AJ40: =IF(AI1=AH2,AL8,AM8) -> 199 | AK40: 149 | AL40: H | AM40: =IF(AI1=AH2,AN4,AO4) -> 55.8 | AN40: B | AO40: =IF(AI1=AH2,AN3,AO3) -> 11 | AP40: L | AQ40: =IF(AI1=AH2,AN8,AO8) -> 190 | AS40: H | AT40: =IF(AI1=AH2,AP4,AQ4) -> 42 | AU40: B | AV40: =IF(AI1=AH2,AP3,AQ3) -> 14 | AW40: L | AX40: =IF(AI1=AH2,AP8,AQ8) -> 145 | AZ40: H | BA40: =AT40 -> 42 | BB40: =AU40 -> B | BC40: 14 | BD40: L | BE40: 145 | BG40: H | BH40: =IF(AI1=AH3,AR4,AS4) -> 56 | BI40: B | BJ40: =IF(AI1=AH2,AR3,AS3) -> 14 | BK40: L | BL40: =IF(AI1=AH2,AS8,AS8) -> 145 | BN40: H | BO40: =BH40 -> 56 | BP40: =BI40 -> B | BQ40: 14 | BR40: L | BS40: 145
B41: 20% | C41: 2 | D41: =(($W$41*$C41^4+$W$42*$C41^3+$W$43*$C41^2+$W$44*$C41+$W$45)*((((Tv_heat-Tr_heat)/LN((Tv_heat-Tl_heat)/(Tr_heat-Tl_heat)))/((75-65)/LN((75-20)/(65-20))))^1))*$D$14*$AA$11 -> 0 | E41: =ROUND(((D41/$D$14)/((Tv_heat-Tr_heat)*1.163))*$E$14,IF($W$4=1,0,IF($W$4=2,2))) -> 0 | F41: =($X$42*(E41/$E$14)^$X$44)*$F$14 ->  | G41: =(($Y$35*$C41^4+$Y$36*$C41^3+$Y$37*$C41^2+$Y$38*$C41+$Y$39)*((((Tv_cool-Tr_cool)/LN((Tv_cool-Tl_cool)/(Tr_cool-Tl_cool)))/((16-18)/LN((16-27)/(18-27))))^S41))*$G$14*$AA$11 -> 425 | H41: =((G41/$G$14)/(IF((237.3*LN((RH*EXP(17.27*(Tl_cool/(Tl_cool+237.3))))))/(17.27-LN((RH*EXP(17.27*(Tl_cool/(Tl_cool+237.3))))))<((Tv_cool+Tr_cool)/2),1,IF(1/(1+((2258*((0.622/((p_atm/(1*611*EXP(17.27*(((Tv_cool+Tr_cool)/2)/(((Tv_cool+Tr_cool)/2)+237.3))))))-1)*1000-(0.622/((p_atm/(RH*611*EXP(17.27*(Tl_cool/(Tl_cool+237.3))))))-1)*1000))/(1005*(((Tv_cool+Tr_cool)/2)-Tl_cool))))*1.039+((-0.000729*$C41+0.001448)*(Tl_cool-((Tv_cool+Tr_cool)/2))+(0.016908*$C41-0.033574))*1.039>1,1,1/(1+((2258*((0.622/((p_atm/(1*611*EXP(17.27*(((Tv_cool+Tr_cool)/2)/(((Tv_cool+Tr_cool)/2)+237.3))))))-1)*1000-(0.622/((p_atm/(RH*611*EXP(17.27*(Tl_cool/(Tl_cool+237.3))))))-1)*1000))/(1005*(((Tv_cool+Tr_cool)/2)-Tl_cool))))*1.039+((-0.000729*$C41+0.001448)*(Tl_cool-((Tv_cool+Tr_cool)/2))+(0.016908*$C41-0.033574))*1.039))))*$H$14 -> 425 | I41: =ROUND(((H41/$H$14)/((Tr_cool-Tv_cool)*1.163))*$I$14,IF($W$4=1,0,IF($W$4=2,2))) -> 73 | J41: =($Z$36*(I41/$I$14)^$Z$38)*$J$14 -> 0.33 | K41: =L41-8 -> -8.0 | L41: =AA41 -> 0.0 | M41: =AB41 -> 0.0 | N41: =AC41*$N$14 -> 0 | O41: =(Tl_heat+(($D41/$G$14)/(1006*$N41*$K$14)))*(0.05*$C41+0.7)*$M$14+$O$14 ->  | P41: =(Tl_cool-((G41/$G$14)/(1006*N41*$K$14)))*$M$14+$O$14 ->  | S41: 1.000 | W41: =IF($W$16=1,AE41,IF($W$16=2,AL41,IF($W$16=3,AS41,IF($W$16=4,AZ41,IF($W$16=5,BG41,IF($W$16=6,BN41,IF($W$16=7,BU41,IF($W$16=8,CB41)))))))) -> 0 | X41: =IF($W$16=1,AF41,IF($W$16=2,AM41,IF($W$16=3,AT41,IF($W$16=4,BA41,IF($W$16=5,BH41,IF($W$16=6,BO41,IF($W$16=7,BV41,IF($W$16=8,CC41)))))))) -> 0 | Y41: =IF($W$16=1,AG41,IF($W$16=2,AN41,IF($W$16=3,AU41,IF($W$16=4,BB41,IF($W$16=5,BI41,IF($W$16=6,BP41,IF($W$16=7,BW41,IF($W$16=8,CD41)))))))) -> 0 | Z41: =IF($W$16=1,AH41,IF($W$16=2,AO41,IF($W$16=3,AV41,IF($W$16=4,BC41,IF($W$16=5,BJ41,IF($W$16=6,BQ41,IF($W$16=7,BX41,IF($W$16=8,CE41)))))))) -> 0 | AA41: =IF($W$16=1,AI41,IF($W$16=2,AP41,IF($W$16=3,AW41,IF($W$16=4,BD41,IF($W$16=5,BK41,IF($W$16=6,BR41,IF($W$16=7,BY41,IF($W$16=8,CF41)))))))) -> 0 | AB41: =IF($W$16=1,AJ41,IF($W$16=2,AQ41,IF($W$16=3,AX41,IF($W$16=4,BE41,IF($W$16=5,BL41,IF($W$16=6,BS41,IF($W$16=7,BZ41,IF($W$16=8,CG41)))))))) -> 0 | AC41: =IF($W$16=1,AK41,IF($W$16=2,AR41,IF($W$16=3,AY41,IF($W$16=4,BF41,IF($W$16=5,BM41,IF($W$16=6,BT41,IF($W$16=7,CA41,IF($W$16=8,CH41)))))))) -> 0 | AD41: c
B42: 40% | C42: 4 | D42: =(($W$41*$C42^4+$W$42*$C42^3+$W$43*$C42^2+$W$44*$C42+$W$45)*((((Tv_heat-Tr_heat)/LN((Tv_heat-Tl_heat)/(Tr_heat-Tl_heat)))/((75-65)/LN((75-20)/(65-20))))^1))*$D$14*$AA$11 -> 0 | E42: =ROUND(((D42/$D$14)/((Tv_heat-Tr_heat)*1.163))*$E$14,IF($W$4=1,0,IF($W$4=2,2))) -> 0 | F42: =($X$42*(E42/$E$14)^$X$44)*$F$14 ->  | G42: =(($Y$35*$C42^4+$Y$36*$C42^3+$Y$37*$C42^2+$Y$38*$C42+$Y$39)*((((Tv_cool-Tr_cool)/LN((Tv_cool-Tl_cool)/(Tr_cool-Tl_cool)))/((16-18)/LN((16-27)/(18-27))))^S42))*$G$14*$AA$11 -> 465 | H42: =((G42/$G$14)/(IF((237.3*LN((RH*EXP(17.27*(Tl_cool/(Tl_cool+237.3))))))/(17.27-LN((RH*EXP(17.27*(Tl_cool/(Tl_cool+237.3))))))<((Tv_cool+Tr_cool)/2),1,IF(1/(1+((2258*((0.622/((p_atm/(1*611*EXP(17.27*(((Tv_cool+Tr_cool)/2)/(((Tv_cool+Tr_cool)/2)+237.3))))))-1)*1000-(0.622/((p_atm/(RH*611*EXP(17.27*(Tl_cool/(Tl_cool+237.3))))))-1)*1000))/(1005*(((Tv_cool+Tr_cool)/2)-Tl_cool))))*1.039+((-0.000729*$C42+0.001448)*(Tl_cool-((Tv_cool+Tr_cool)/2))+(0.016908*$C42-0.033574))*1.039>1,1,1/(1+((2258*((0.622/((p_atm/(1*611*EXP(17.27*(((Tv_cool+Tr_cool)/2)/(((Tv_cool+Tr_cool)/2)+237.3))))))-1)*1000-(0.622/((p_atm/(RH*611*EXP(17.27*(Tl_cool/(Tl_cool+237.3))))))-1)*1000))/(1005*(((Tv_cool+Tr_cool)/2)-Tl_cool))))*1.039+((-0.000729*$C42+0.001448)*(Tl_cool-((Tv_cool+Tr_cool)/2))+(0.016908*$C42-0.033574))*1.039))))*$H$14 -> 465 | I42: =ROUND(((H42/$H$14)/((Tr_cool-Tv_cool)*1.163))*$I$14,IF($W$4=1,0,IF($W$4=2,2))) -> 80 | J42: =($Z$36*(I42/$I$14)^$Z$38)*$J$14 -> 0.39 | K42: -8.0 | L42: 0.0 | M42: 0.0 | N42: 0 | O42: =(Tl_heat+(($D42/$G$14)/(1006*$N42*$K$14)))*(0.05*$C42+0.7)*$M$14+$O$14 ->  | P42: =(Tl_cool-((G42/$G$14)/(1006*N42*$K$14)))*$M$14+$O$14 ->  | S42: 1.000 | W42: 0 | X42: 0 | Y42: 0 | Z42: 0 | AA42: 0 | AB42: 0 | AC42: 0 | AD42: d
B43: 60% | C43: 6 | D43: =(($W$41*$C43^4+$W$42*$C43^3+$W$43*$C43^2+$W$44*$C43+$W$45)*((((Tv_heat-Tr_heat)/LN((Tv_heat-Tl_heat)/(Tr_heat-Tl_heat)))/((75-65)/LN((75-20)/(65-20))))^1))*$D$14*$AA$11 -> 0 | E43: =ROUND(((D43/$D$14)/((Tv_heat-Tr_heat)*1.163))*$E$14,IF($W$4=1,0,IF($W$4=2,2))) -> 0 | G43: =(($Y$35*$C43^4+$Y$36*$C43^3+$Y$37*$C43^2+$Y$38*$C43+$Y$39)*((((Tv_cool-Tr_cool)/LN((Tv_cool-Tl_cool)/(Tr_cool-Tl_cool)))/((16-18)/LN((16-27)/(18-27))))^S43))*$G$14*$AA$11 -> 522 | H43: =((G43/$G$14)/(IF((237.3*LN((RH*EXP(17.27*(Tl_cool/(Tl_cool+237.3))))))/(17.27-LN((RH*EXP(17.27*(Tl_cool/(Tl_cool+237.3))))))<((Tv_cool+Tr_cool)/2),1,IF(1/(1+((2258*((0.622/((p_atm/(1*611*EXP(17.27*(((Tv_cool+Tr_cool)/2)/(((Tv_cool+Tr_cool)/2)+237.3))))))-1)*1000-(0.622/((p_atm/(RH*611*EXP(17.27*(Tl_cool/(Tl_cool+237.3))))))-1)*1000))/(1005*(((Tv_cool+Tr_cool)/2)-Tl_cool))))*1.039+((-0.000729*$C43+0.001448)*(Tl_cool-((Tv_cool+Tr_cool)/2))+(0.016908*$C43-0.033574))*1.039>1,1,1/(1+((2258*((0.622/((p_atm/(1*611*EXP(17.27*(((Tv_cool+Tr_cool)/2)/(((Tv_cool+Tr_cool)/2)+237.3))))))-1)*1000-(0.622/((p_atm/(RH*611*EXP(17.27*(Tl_cool/(Tl_cool+237.3))))))-1)*1000))/(1005*(((Tv_cool+Tr_cool)/2)-Tl_cool))))*1.039+((-0.000729*$C43+0.001448)*(Tl_cool-((Tv_cool+Tr_cool)/2))+(0.016908*$C43-0.033574))*1.039))))*$H$14 -> 522 | I43: =ROUND(((H43/$H$14)/((Tr_cool-Tv_cool)*1.163))*$I$14,IF($W$4=1,0,IF($W$4=2,2))) -> 90 | J43: 0.49 | K43: -8.0 | L43: 0.0 | M43: 0.0 | N43: 0 | O43: =(Tl_heat+(($D43/$G$14)/(1006*$N43*$K$14)))*(0.05*$C43+0.7)*$M$14+$O$14 ->  | P43: =(Tl_cool-((G43/$G$14)/(1006*N43*$K$14)))*$M$14+$O$14 ->  | S43: 1.000 | W43: =IF($W$16=1,AE43,IF($W$16=2,AL43,IF($W$16=3,AS43,IF($W$16=4,AZ43,IF($W$16=5,BG43,IF($W$16=6,BN43,IF($W$16=7,BU43,IF($W$16=8,CB43)))))))) -> 0 | X43: 0 | Y43: 0 | Z43: 0 | AA43: 0 | AB43: 0 | AC43: 0 | AD43: e
B44: 80% | C44: 8 | D44: =(($W$41*$C44^4+$W$42*$C44^3+$W$43*$C44^2+$W$44*$C44+$W$45)*((((Tv_heat-Tr_heat)/LN((Tv_heat-Tl_heat)/(Tr_heat-Tl_heat)))/((75-65)/LN((75-20)/(65-20))))^1))*$D$14*$AA$11 -> 0 | E44: =ROUND(((D44/$D$14)/((Tv_heat-Tr_heat)*1.163))*$E$14,IF($W$4=1,0,IF($W$4=2,2))) -> 0 | G44: =(($Y$35*$C44^4+$Y$36*$C44^3+$Y$37*$C44^2+$Y$38*$C44+$Y$39)*((((Tv_cool-Tr_cool)/LN((Tv_cool-Tl_cool)/(Tr_cool-Tl_cool)))/((16-18)/LN((16-27)/(18-27))))^S44))*$G$14*$AA$11 -> 604 | H44: =((G44/$G$14)/(IF((237.3*LN((RH*EXP(17.27*(Tl_cool/(Tl_cool+237.3))))))/(17.27-LN((RH*EXP(17.27*(Tl_cool/(Tl_cool+237.3))))))<((Tv_cool+Tr_cool)/2),1,IF(1/(1+((2258*((0.622/((p_atm/(1*611*EXP(17.27*(((Tv_cool+Tr_cool)/2)/(((Tv_cool+Tr_cool)/2)+237.3))))))-1)*1000-(0.622/((p_atm/(RH*611*EXP(17.27*(Tl_cool/(Tl_cool+237.3))))))-1)*1000))/(1005*(((Tv_cool+Tr_cool)/2)-Tl_cool))))*1.039+((-0.000729*$C44+0.001448)*(Tl_cool-((Tv_cool+Tr_cool)/2))+(0.016908*$C44-0.033574))*1.039>1,1,1/(1+((2258*((0.622/((p_atm/(1*611*EXP(17.27*(((Tv_cool+Tr_cool)/2)/(((Tv_cool+Tr_cool)/2)+237.3))))))-1)*1000-(0.622/((p_atm/(RH*611*EXP(17.27*(Tl_cool/(Tl_cool+237.3))))))-1)*1000))/(1005*(((Tv_cool+Tr_cool)/2)-Tl_cool))))*1.039+((-0.000729*$C44+0.001448)*(Tl_cool-((Tv_cool+Tr_cool)/2))+(0.016908*$C44-0.033574))*1.039))))*$H$14 -> 604 | I44: =ROUND(((H44/$H$14)/((Tr_cool-Tv_cool)*1.163))*$I$14,IF($W$4=1,0,IF($W$4=2,2))) -> 104 | J44: 0.63 | K44: -8.0 | L44: 0.0 | M44: 0.0 | N44: 0 | O44: =(Tl_heat+(($D44/$G$14)/(1006*$N44*$K$14)))*(0.05*$C44+0.7)*$M$14+$O$14 ->  | P44: =(Tl_cool-((G44/$G$14)/(1006*N44*$K$14)))*$M$14+$O$14 ->  | S44: 1.000 | W44: 0 | X44: 0 | Y44: 0 | Z44: 0 | AA44: 0 | AB44: 0 | AC44: 0 | AD44: f
B45: 100% | C45: 10 | D45: =(($W$41*$C45^4+$W$42*$C45^3+$W$43*$C45^2+$W$44*$C45+$W$45)*((((Tv_heat-Tr_heat)/LN((Tv_heat-Tl_heat)/(Tr_heat-Tl_heat)))/((75-65)/LN((75-20)/(65-20))))^1))*$D$14*$AA$11 -> 0 | E45: =ROUND(((D45/$D$14)/((Tv_heat-Tr_heat)*1.163))*$E$14,IF($W$4=1,0,IF($W$4=2,2))) -> 0 | G45: =(($Y$35*$C45^4+$Y$36*$C45^3+$Y$37*$C45^2+$Y$38*$C45+$Y$39)*((((Tv_cool-Tr_cool)/LN((Tv_cool-Tl_cool)/(Tr_cool-Tl_cool)))/((16-18)/LN((16-27)/(18-27))))^S45))*$G$14*$AA$11 -> 721 | H45: =((G45/$G$14)/(IF((237.3*LN((RH*EXP(17.27*(Tl_cool/(Tl_cool+237.3))))))/(17.27-LN((RH*EXP(17.27*(Tl_cool/(Tl_cool+237.3))))))<((Tv_cool+Tr_cool)/2),1,IF(1/(1+((2258*((0.622/((p_atm/(1*611*EXP(17.27*(((Tv_cool+Tr_cool)/2)/(((Tv_cool+Tr_cool)/2)+237.3))))))-1)*1000-(0.622/((p_atm/(RH*611*EXP(17.27*(Tl_cool/(Tl_cool+237.3))))))-1)*1000))/(1005*(((Tv_cool+Tr_cool)/2)-Tl_cool))))*1.039+((-0.000729*$C45+0.001448)*(Tl_cool-((Tv_cool+Tr_cool)/2))+(0.016908*$C45-0.033574))*1.039>1,1,1/(1+((2258*((0.622/((p_atm/(1*611*EXP(17.27*(((Tv_cool+Tr_cool)/2)/(((Tv_cool+Tr_cool)/2)+237.3))))))-1)*1000-(0.622/((p_atm/(RH*611*EXP(17.27*(Tl_cool/(Tl_cool+237.3))))))-1)*1000))/(1005*(((Tv_cool+Tr_cool)/2)-Tl_cool))))*1.039+((-0.000729*$C45+0.001448)*(Tl_cool-((Tv_cool+Tr_cool)/2))+(0.016908*$C45-0.033574))*1.039))))*$H$14 -> 721 | I45: =ROUND(((H45/$H$14)/((Tr_cool-Tv_cool)*1.163))*$I$14,IF($W$4=1,0,IF($W$4=2,2))) -> 124 | J45: 0.87 | L45: =AA46 -> L | M45: =AB46 -> 240.0 | N45: =AC46*$N$14 -> 0 | O45: =(Tl_heat+(($D45/$G$14)/(1006*$N45*$K$14)))*(0.05*$C45+0.7)*$M$14+$O$14 ->  | P45: =(Tl_cool-((G45/$G$14)/(1006*N45*$K$14)))*$M$14+$O$14 ->  | S45: 1.000 | W45: 0 | X45: 0 | Y45: 0 | Z45: 0 | AA45: 0 | AB45: 0 | AC45: 0 | AD45: g
B46: =IF($S$7=1,NL!B40,IF(cal!$S$7=2,EN!B40,IF(cal!$S$7=3,DE!B40,IF(cal!$S$7=4,FR!B40,IF(cal!$S$7=5,NR!B40,IF(cal!$S$7=6,SP!B40,IF(cal!$S$7=7,SW!B40,IF(cal!$S$7=8,TS!B40,IF(cal!$S$7=9,RU!B40,IF(cal!$S$7=10,ExtraTaal2!B40,IF(cal!$S$7=11,ExtraTaal3!B40,))))))))))) -> *Звуковая мощность определена по ISO 3741:2010 | P46: v2023-10-02 | W46: H | X46: =IF($W$16=1,AF46,IF($W$16=2,AM46,IF($W$16=3,AT46,IF($W$16=4,BA46,IF($W$16=5,BH46,IF($W$16=6,BO46,IF($W$16=7,BV46,IF($W$16=8,CC46)))))))) -> 41.0 | Y46: B | Z46: =IF($W$16=1,AH46,IF($W$16=2,AO46,IF($W$16=3,AV46,IF($W$16=4,BC46,IF($W$16=5,BJ46,IF($W$16=6,BQ46,IF($W$16=7,BX46,IF($W$16=8,CE46)))))))) -> 14.0 | AA46: L | AB46: 240.0 | AE46: H | AF46: 52.1 | AG46: B | AH46: 8.6 | AI46: L | AJ46: 199 | AK46: 216 | AL46: H | AM46: =55.8*IF($W$4=1,1,IF($W$4=2,1/2.54)) -> 55.8 | AN46: B | AO46: 10 | AP46: L | AQ46: =122*IF($W$4=1,1,IF($W$4=2,1/2.54)) -> 122 | AS46: H | AT46: =41*IF($W$4=1,1,IF($W$4=2,1/2.54)) -> 41 | AU46: B | AV46: =14*IF($W$4=1,1,IF($W$4=2,1/2.54)) -> 14 | AW46: L | AX46: =145*IF($W$4=1,1,IF($W$4=2,1/2.54)) -> 145 | AZ46: H | BA46: =41*IF($W$4=1,1,IF($W$4=2,1/2.54)) -> 41 | BB46: B | BC46: =14*IF($W$4=1,1,IF($W$4=2,1/2.54)) -> 14 | BD46: L | BE46: =145*IF($W$4=1,1,IF($W$4=2,1/2.54)) -> 145 | BG46: H | BH46: =52*IF($W$4=1,1,IF($W$4=2,1/2.54)) -> 52 | BI46: B | BJ46: =12*IF($W$4=1,1,IF($W$4=2,1/2.54)) -> 12 | BK46: L | BL46: =122*IF($W$4=1,1,IF($W$4=2,1/2.54)) -> 122 | BN46: H | BO46: =52*IF($W$4=1,1,IF($W$4=2,1/2.54)) -> 52 | BP46: B | BQ46: =12*IF($W$4=1,1,IF($W$4=2,1/2.54)) -> 12 | BR46: L | BS46: =122*IF($W$4=1,1,IF($W$4=2,1/2.54)) -> 122 | BU46: H | BV46: =55*IF($W$4=1,1,IF($W$4=2,1/2.54)) -> 55 | BW46: B | BX46: =14*IF($W$4=1,1,IF($W$4=2,1/2.54)) -> 14 | BY46: L | BZ46: =145*IF($W$4=1,1,IF($W$4=2,1/2.54)) -> 145 | CB46: H | CC46: =55*IF($W$4=1,1,IF($W$4=2,1/2.54)) -> 55 | CD46: B | CE46: =14*IF($W$4=1,1,IF($W$4=2,1/2.54)) -> 14 | CF46: L | CG46: =145*IF($W$4=1,1,IF($W$4=2,1/2.54)) -> 145
B47: =IF($S$7=1,NL!B41,IF(cal!$S$7=2,EN!B41,IF(cal!$S$7=3,DE!B41,IF(cal!$S$7=4,FR!B41,IF(cal!$S$7=5,NR!B41,IF(cal!$S$7=6,SP!B41,IF(cal!$S$7=7,SW!B41,IF(cal!$S$7=8,TS!B41,IF(cal!$S$7=9,RU!B41,IF(cal!$S$7=10,ExtraTaal2!B41,IF(cal!$S$7=11,ExtraTaal3!B41,))))))))))) -> ***Уровень звукового давления (при постоянной помещения 8 дБ(A))

Sheet NL (hidden)
B3: Invulformulier
H4: Hydraulisch mengsel: | I4: 0 | J4: 0 | K4: 0
B5: Randvoorwaarden | H5: Toestel - Ventilator - Uitvoering: | I5: 0 | J5: 0 | K5: 0
B7: Temperaturen | Q7: Kopieer alle data
B8: Verwarmen: | G8: Koelen: | Q8: SI-eenheden
B9: ="Water aanvoer" -> Water aanvoer | E9: =cal!E9 -> 95 | G9: =B9 -> Water aanvoer | K9: =cal!K9 -> 7 | M9: Eenheidsstelsel | Q9: Imperiale-eenheden
B10: ="Water retour" -> Water retour | E10: =cal!E10 -> 70 | G10: =B10 -> Water retour | K10: =cal!K10 -> 12
B11: ="Ruimte" -> Ruimte | E11: =cal!E11 -> 20 | G11: =B11 -> Ruimte | K11: =cal!K11 -> 20
G12: Relatieve vochtigheid | K12: =cal!K12 -> 50%
B15: Snelheidsniveau | C15: Stuurspanning [V] | D15: =CONCATENATE("Warmteafgifte ",ROUND(E9,0),"/",ROUND(E10,0),"/",ROUND(E11,0)," ["&IF(UnitsNo=1,"W",IF(UnitsNo=2,"Btu/h"))&"]") -> Warmteafgifte 95/70/20 [W] | E15: ="Waterdebiet, verwarming ["&IF(UnitsNo=1,"l/h",IF(UnitsNo=2,"GPM"))&"]" -> Waterdebiet, verwarming [l/h] | F15: ="Waterzijdig drukverlies ["&IF(UnitsNo=1,"kPa",IF(UnitsNo=2,"inH2O"))&"]" -> Waterzijdig drukverlies [kPa] | G15: =CONCATENATE("Voelb. Koelcapaciteit ",ROUND(K9,0),"/",,ROUND(K10,0),"/",,ROUND(K11,0)," ["&IF(UnitsNo=1,"W",IF(UnitsNo=2,"Btu/h"))&"]") -> Voelb. Koelcapaciteit 7/12/20 [W] | H15: =CONCATENATE("Tot. koelcapaciteit ",,ROUND(K9,0),"/",,ROUND(K10,0),"/",,ROUND(K11,0)," ["&IF(UnitsNo=1,"W",IF(UnitsNo=2,"Btu/h"))&"]") -> Tot. koelcapaciteit 7/12/20 [W] | I15: ="Waterdebiet, koeling ["&IF(UnitsNo=1,"l/h",IF(UnitsNo=2,"GPM"))&"]" -> Waterdebiet, koeling [l/h] | J15: ="Waterzijdig drukverlies ["&IF(UnitsNo=1,"kPa",IF(UnitsNo=2,"inH2O"))&"]" -> Waterzijdig drukverlies [kPa] | K15: Geluidsdruk ** [dB(A)] | L15: Geluidsvermogen * [dB(A)] | M15: Opgenomen elektr. vermogen [W] | N15: ="Luchtdebiet ["&IF(UnitsNo=1,"m³/h",IF(UnitsNo=2,"CFM"))&"]" -> Luchtdebiet [m³/h] | O15: ="Uitblaastemp. verwarming ["&IF(UnitsNo=1,"°C",IF(UnitsNo=2,"°F"))&"]" -> Uitblaastemp. verwarming [°C] | P15: ="Uitblaastemp. koeling ["&IF(UnitsNo=1,"°C",IF(UnitsNo=2,"°F"))&"]" -> Uitblaastemp. koeling [°C]
B16: =cal!$X$1&" "&$T$16&" "&ROUND(cal!X22,1)&IF(UnitsNo=1," cm",IF(UnitsNo=2," in"))& " "&$T$17&" "&ROUND(cal!Z22,1)&IF(UnitsNo=1," cm",IF(UnitsNo=2," in"))&" "&$T$18&" "&ROUND(cal!AB22,1)&IF(UnitsNo=1," cm",IF(UnitsNo=2," in"))&" (Type 1)" -> Briza Net Zero M H42 2P hoogte 42 cm breedte 14 cm lengte 75 cm (Type 1) | R16: Temp. | T16: hoogte
R17: verw.! | T17: breedte
R18: koelen! | T18: lengte
B22: =cal!$X$1&" "&$T$16&" "&ROUND(cal!X28,1)&IF(UnitsNo=1," cm",IF(UnitsNo=2," in"))& " "&$T$17&" "&ROUND(cal!Z28,1)&IF(UnitsNo=1," cm",IF(UnitsNo=2," in"))&" "&$T$18&" "&ROUND(cal!AB28,1)&IF(UnitsNo=1," cm",IF(UnitsNo=2," in"))&" (Type 2)" -> Briza Net Zero M H42 2P hoogte 42 cm breedte 14 cm lengte 95 cm (Type 2)
B28: =cal!$X$1&" "&$T$16&" "&ROUND(cal!X34,1)&IF(UnitsNo=1," cm",IF(UnitsNo=2," in"))& " "&$T$17&" "&ROUND(cal!Z34,1)&IF(UnitsNo=1," cm",IF(UnitsNo=2," in"))&" "&$T$18&" "&ROUND(cal!AB34,1)&IF(UnitsNo=1," cm",IF(UnitsNo=2," in"))&" (Type 3)" -> Briza Net Zero M H42 2P hoogte 42 cm breedte 14 cm lengte 125 cm (Type 3)
B34: =cal!$X$1&" "&$T$16&" "&ROUND(cal!X40,1)&IF(UnitsNo=1," cm",IF(UnitsNo=2," in"))& " "&$T$17&" "&ROUND(cal!Z40,1)&IF(UnitsNo=1," cm",IF(UnitsNo=2," in"))&" "&$T$18&" "&ROUND(cal!AB40,1)&IF(UnitsNo=1," cm",IF(UnitsNo=2," in"))&" (Type 4)" -> Briza Net Zero M H42 2P hoogte 42 cm breedte 14 cm lengte 145 cm (Type 4)
B40: *Geluidsvermogen gemeten volgens ISO 3741:2010 | N40: =cal!P46 -> v2023-10-02
B41: **Geluidsdruk bij een aangenomen ruimtedemping van 8 dB(A)

Sheet EN (hidden)
B3: Formulary
H4: Hydraulic mix: | I4: 0 | J4: 0 | K4: 0
B5: Conditions | H5: Device - Ventilator - Utilization: | I5: 0 | J5: 0 | K5: 0
B7: Temperatures | Q7: Copy all data
B8: Heating: | G8: Cooling: | Q8: SI-units
B9: Supply water | E9: =cal!E9 -> 95 | G9: =B9 -> Supply water | K9: =cal!K9 -> 7 | M9: Unit conversion | Q9: Imperial-units
B10: Return water | E10: =cal!E10 -> 70 | G10: =B10 -> Return water | K10: =cal!K10 -> 12
B11: Entering air | E11: =cal!E11 -> 20 | G11: =B11 -> Entering air | K11: =cal!K11 -> 20
G12: Relative humidity | K12: =cal!K12 -> 50%
B15: Speed level | C15: Control voltage [V] | D15: =CONCATENATE("Heat output ",ROUND(E9,0),"/",ROUND(E10,0),"/",ROUND(E11,0)," ["&IF(cal!$W$4=1,"W",IF(cal!$W$4=2,"Btu/h"))&"]") -> Heat output 95/70/20 [W] | E15: ="Water flowrate, heating ["&IF(cal!$W$4=1,"l/h",IF(cal!$W$4=2,"GPM"))&"]" -> Water flowrate, heating [l/h] | F15: ="Watersided pressure loss ["&IF(cal!$W$4=1,"kPa",IF(cal!$W$4=2,"inH2O"))&"]" -> Watersided pressure loss [kPa] | G15: =CONCATENATE("Sens. cooling capacity ",ROUND(K9,0),"/",ROUND(K10,0),"/",ROUND(K11,0)," ["&IF(cal!$W$4=1,"W",IF(cal!$W$4=2,"Btu/h"))&"]") -> Sens. cooling capacity 7/12/20 [W] | H15: =CONCATENATE("Tot. cooling capacity ",ROUND(K9,0),"/",ROUND(K10,0),"/",ROUND(K11,0)," ["&IF(cal!$W$4=1,"W",IF(cal!$W$4=2,"Btu/h"))&"]") -> Tot. cooling capacity 7/12/20 [W] | I15: ="Water flowrate, cooling ["&IF(cal!$W$4=1,"l/h",IF(cal!$W$4=2,"GPM"))&"]" -> Water flowrate, cooling [l/h] | J15: ="Watersided pressure loss ["&IF(cal!$W$4=1,"kPa",IF(cal!$W$4=2,"inH2O"))&"]" -> Watersided pressure loss [kPa] | K15: Sound pressure ** [dB(A)] | L15: Sound power * [dB(A)] | M15: Electrical power [W] | N15: ="Air flowrate ["&IF(cal!$W$4=1,"m³/h",IF(cal!$W$4=2,"CFM"))&"]" -> Air flowrate [m³/h] | O15: ="Air exhaust temp. heating ["&IF(cal!$W$4=1,"°C",IF(cal!$W$4=2,"°F"))&"]" -> Air exhaust temp. heating [°C] | P15: ="Air exhaust temp. cooling ["&IF(cal!$W$4=1,"°C",IF(cal!$W$4=2,"°F"))&"]" -> Air exhaust temp. cooling [°C]
B16: =cal!$X$1&" "&$T$16&" "&ROUND(cal!X22,1)&IF(UnitsNo=1," cm",IF(UnitsNo=2," in"))& " "&$T$17&" "&ROUND(cal!Z22,1)&IF(UnitsNo=1," cm",IF(UnitsNo=2," in"))&" "&$T$18&" "&ROUND(cal!AB22,1)&IF(UnitsNo=1," cm",IF(UnitsNo=2," in"))&" (Type 1)" -> Briza Net Zero M H42 2P height 42 cm width 14 cm length 75 cm (Type 1) | R16: Temp. | T16: height
R17: heating! | T17: width
R18: cooling! | T18: length
B22: =cal!$X$1&" "&$T$16&" "&ROUND(cal!X28,1)&IF(UnitsNo=1," cm",IF(UnitsNo=2," in"))& " "&$T$17&" "&ROUND(cal!Z28,1)&IF(UnitsNo=1," cm",IF(UnitsNo=2," in"))&" "&$T$18&" "&ROUND(cal!AB28,1)&IF(UnitsNo=1," cm",IF(UnitsNo=2," in"))&" (Type 2)" -> Briza Net Zero M H42 2P height 42 cm width 14 cm length 95 cm (Type 2)
B28: =cal!$X$1&" "&$T$16&" "&ROUND(cal!X34,1)&IF(UnitsNo=1," cm",IF(UnitsNo=2," in"))& " "&$T$17&" "&ROUND(cal!Z34,1)&IF(UnitsNo=1," cm",IF(UnitsNo=2," in"))&" "&$T$18&" "&ROUND(cal!AB34,1)&IF(UnitsNo=1," cm",IF(UnitsNo=2," in"))&" (Type 3)" -> Briza Net Zero M H42 2P height 42 cm width 14 cm length 125 cm (Type 3)
B34: =cal!$X$1&" "&$T$16&" "&ROUND(cal!X40,1)&IF(UnitsNo=1," cm",IF(UnitsNo=2," in"))& " "&$T$17&" "&ROUND(cal!Z40,1)&IF(UnitsNo=1," cm",IF(UnitsNo=2," in"))&" "&$T$18&" "&ROUND(cal!AB40,1)&IF(UnitsNo=1," cm",IF(UnitsNo=2," in"))&" (Type 4)" -> Briza Net Zero M H42 2P height 42 cm width 14 cm length 145 cm (Type 4)
B40: *Sound power according to ISO 3741:2010 | N40: =cal!P46 -> v2023-10-02
B41: **Sound pressure with an assumed room damping of 8dB(A)

Sheet DE (hidden)
B3: Eingabefelder
H4: Hydraulikgemisch:
B5: Auslegungsrandbedingungen | H5: Gerät - Lüfter - Ausfürhung: | I5: 0 | J5: 0 | K5: 0
B7: Temperaturen | Q7: Kopieren Sie alle daten
B8: Heizen: | G8: Kühlen: | Q8: SI-einheiten
B9: ="Vorlauf wasser" -> Vorlauf wasser | E9: =cal!E9 -> 95 | G9: =B9 -> Vorlauf wasser | K9: =cal!K9 -> 7 | M9: Einheiten | Q9: Imperiale-einheiten
B10: ="Rücklauf wasser" -> Rücklauf wasser | E10: =cal!E10 -> 70 | G10: =B10 -> Rücklauf wasser | K10: =cal!K10 -> 12
B11: ="Raum" -> Raum | E11: =cal!E11 -> 20 | G11: =B11 -> Raum | K11: =cal!K11 -> 20
G12: Relative Luftfeuchtigkeit | K12: =cal!K12 -> 50%
B15: Drehzahlstufe | C15: Regelspannung [V] | D15: =CONCATENATE("Wärmeleistung ",ROUND(E9,0),"/",ROUND(E10,0),"/",ROUND(E11,0)," ["&IF(cal!$W$4=1,"W",IF(cal!$W$4=2,"Btu/h"))&"]") -> Wärmeleistung 95/70/20 [W] | E15: ="Heizmittelstrom ["&IF(cal!$W$4=1,"l/h",IF(cal!$W$4=2,"GPM"))&"]" -> Heizmittelstrom [l/h] | F15: ="zug. wassers. Druckverlust ["&IF(cal!$W$4=1,"kPa",IF(cal!$W$4=2,"inH2O"))&"]" -> zug. wassers. Druckverlust [kPa] | G15: =CONCATENATE("Sens. Kälteleistung ",ROUND(K9,0),"/",ROUND(K10,0),"/",ROUND(K11,0)," ["&IF(cal!$W$4=1,"W",IF(cal!$W$4=2,"Btu/h"))&"]") -> Sens. Kälteleistung 7/12/20 [W] | H15: =CONCATENATE("Tot. Kälteleistung ",ROUND(K9,0),"/",ROUND(K10,0),"/",ROUND(K11,0)," ["&IF(cal!$W$4=1,"W",IF(cal!$W$4=2,"Btu/h"))&"]") -> Tot. Kälteleistung 7/12/20 [W] | I15: ="Kühlmittelstrom ["&IF(cal!$W$4=1,"l/h",IF(cal!$W$4=2,"GPM"))&"]" -> Kühlmittelstrom [l/h] | J15: ="zug. wassers. Druckverlust ["&IF(cal!$W$4=1,"kPa",IF(cal!$W$4=2,"inH2O"))&"]" -> zug. wassers. Druckverlust [kPa] | K15: Schalldruckpegel ** [dB(A)] | L15: Schallleistungspegel * [dB(A)] | M15: Leistungsaufnahme [W] | N15: ="Luftvolumenstrom ["&IF(cal!$W$4=1,"m³/h",IF(cal!$W$4=2,"CFM"))&"]" -> Luftvolumenstrom [m³/h] | O15: ="Luftaustrittstemp. Heizung ["&IF(cal!$W$4=1,"°C",IF(cal!$W$4=2,"°F"))&"]" -> Luftaustrittstemp. Heizung [°C] | P15: ="Luftaustrittstemp. Kühlung ["&IF(cal!$W$4=1,"°C",IF(cal!$W$4=2,"°F"))&"]" -> Luftaustrittstemp. Kühlung [°C]
B16: =cal!$X$1&" "&$T$16&" "&ROUND(cal!X22,1)&IF(UnitsNo=1," cm",IF(UnitsNo=2," in"))& " "&$T$17&" "&ROUND(cal!Z22,1)&IF(UnitsNo=1," cm",IF(UnitsNo=2," in"))&" "&$T$18&" "&ROUND(cal!AB22,1)&IF(UnitsNo=1," cm",IF(UnitsNo=2," in"))&" (Type 1)" -> Briza Net Zero M H42 2P höhe 42 cm breite 14 cm länge 75 cm (Type 1) | R16: Temp. | T16: höhe
R17: heizen! | T17: breite
R18: kühlen! | T18: länge
B22: =cal!$X$1&" "&$T$16&" "&ROUND(cal!X28,1)&IF(UnitsNo=1," cm",IF(UnitsNo=2," in"))& " "&$T$17&" "&ROUND(cal!Z28,1)&IF(UnitsNo=1," cm",IF(UnitsNo=2," in"))&" "&$T$18&" "&ROUND(cal!AB28,1)&IF(UnitsNo=1," cm",IF(UnitsNo=2," in"))&" (Type 2)" -> Briza Net Zero M H42 2P höhe 42 cm breite 14 cm länge 95 cm (Type 2)
B28: =cal!$X$1&" "&$T$16&" "&ROUND(cal!X34,1)&IF(UnitsNo=1," cm",IF(UnitsNo=2," in"))& " "&$T$17&" "&ROUND(cal!Z34,1)&IF(UnitsNo=1," cm",IF(UnitsNo=2," in"))&" "&$T$18&" "&ROUND(cal!AB34,1)&IF(UnitsNo=1," cm",IF(UnitsNo=2," in"))&" (Type 3)" -> Briza Net Zero M H42 2P höhe 42 cm breite 14 cm länge 125 cm (Type 3)
B34: =cal!$X$1&" "&$T$16&" "&ROUND(cal!X40,1)&IF(UnitsNo=1," cm",IF(UnitsNo=2," in"))& " "&$T$17&" "&ROUND(cal!Z40,1)&IF(UnitsNo=1," cm",IF(UnitsNo=2," in"))&" "&$T$18&" "&ROUND(cal!AB40,1)&IF(UnitsNo=1," cm",IF(UnitsNo=2," in"))&" (Type 4)" -> Briza Net Zero M H42 2P höhe 42 cm breite 14 cm länge 145 cm (Type 4)
B40: *Schallleistungspegel nach ISO 3741:2010
B41: **Schalldruckpegel bei angenommener Raumdämpfung von 8dB(A)

Sheet FR (hidden)
B3: Formulaire
H4: Mélange hydraulique:
B5: Conditions | H5: Appareil - Ventilateur - Version: | I5: 0 | J5: 0 | K5: 0
B7: Températures | Q7: Copier toutes des données
B8: Chauffer: | G8: Refroidir: | Q8: Unités-SI
B9: ="Entrée de l'eau" -> Entrée de l'eau | E9: =cal!E9 -> 95 | G9: =B9 -> Entrée de l'eau | K9: =cal!K9 -> 7 | M9: Système unitaire | Q9: Unités-Impériales
B10: ="Retour de l'eau" -> Retour de l'eau | E10: =cal!E10 -> 70 | G10: =B10 -> Retour de l'eau | K10: =cal!K10 -> 12
B11: ="Ambiante" -> Ambiante | E11: =cal!E11 -> 20 | G11: =B11 -> Ambiante | K11: =cal!K11 -> 20
G12: Humidité relative | K12: =cal!K12 -> 50%
B15: Niveau de vitesse | C15: Voltage [V] | D15: =CONCATENATE("Puissance de cha. ",ROUND(E9,0),"/",ROUND(E10,0),"/",ROUND(E11,0)," ["&IF(cal!$W$4=1,"W",IF(cal!$W$4=2,"Btu/h"))&"]") -> Puissance de cha. 95/70/20 [W] | E15: ="Débit d'eau, chauffer ["&IF(cal!$W$4=1,"l/h",IF(cal!$W$4=2,"GPM"))&"]" -> Débit d'eau, chauffer [l/h] | F15: ="Perte de charge ["&IF(cal!$W$4=1,"kPa",IF(cal!$W$4=2,"inH2O"))&"]" -> Perte de charge [kPa] | G15: =CONCATENATE("Puissance sens. de refr. ",ROUND(K9,0),"/",ROUND(K10,0),"/",ROUND(K11,0)," ["&IF(cal!$W$4=1,"W",IF(cal!$W$4=2,"Btu/h"))&"]") -> Puissance sens. de refr. 7/12/20 [W] | H15: =CONCATENATE("Puissance tot. de refr. ",ROUND(K9,0),"/",ROUND(K10,0),"/",ROUND(K11,0)," ["&IF(cal!$W$4=1,"W",IF(cal!$W$4=2,"Btu/h"))&"]") -> Puissance tot. de refr. 7/12/20 [W] | I15: ="Débit d'eau, refroidir ["&IF(cal!$W$4=1,"l/h",IF(cal!$W$4=2,"GPM"))&"]" -> Débit d'eau, refroidir [l/h] | J15: ="Perte de charge ["&IF(cal!$W$4=1,"kPa",IF(cal!$W$4=2,"inH2O"))&"]" -> Perte de charge [kPa] | K15: Pression sonore ** [dB(A)] | L15: Puissance sonore * [dB(A)] | M15: Puissance absorbée [W] | N15: ="Débit d'air ["&IF(cal!$W$4=1,"m³/h",IF(cal!$W$4=2,"CFM"))&"]" -> Débit d'air [m³/h] | O15: ="Temp. de la sortie d'air cha. ["&IF(cal!$W$4=1,"°C",IF(cal!$W$4=2,"°F"))&"]" -> Temp. de la sortie d'air cha. [°C] | P15: ="Temp. de la sortie d'air refr. ["&IF(cal!$W$4=1,"°C",IF(cal!$W$4=2,"°F"))&"]" -> Temp. de la sortie d'air refr. [°C]
B16: =cal!$X$1&" "&$T$16&" "&ROUND(cal!X22,1)&IF(UnitsNo=1," cm",IF(UnitsNo=2," in"))& " "&$T$17&" "&ROUND(cal!Z22,1)&IF(UnitsNo=1," cm",IF(UnitsNo=2," in"))&" "&$T$18&" "&ROUND(cal!AB22,1)&IF(UnitsNo=1," cm",IF(UnitsNo=2," in"))&" (Type 1)" -> Briza Net Zero M H42 2P hauteur 42 cm largeur 14 cm longueur 75 cm (Type 1) | R16: Temp. | T16: hauteur
R17: chauf.! | T17: largeur
R18: refr.! | T18: longueur
B22: =cal!$X$1&" "&$T$16&" "&ROUND(cal!X28,1)&IF(UnitsNo=1," cm",IF(UnitsNo=2," in"))& " "&$T$17&" "&ROUND(cal!Z28,1)&IF(UnitsNo=1," cm",IF(UnitsNo=2," in"))&" "&$T$18&" "&ROUND(cal!AB28,1)&IF(UnitsNo=1," cm",IF(UnitsNo=2," in"))&" (Type 2)" -> Briza Net Zero M H42 2P hauteur 42 cm largeur 14 cm longueur 95 cm (Type 2)
B28: =cal!$X$1&" "&$T$16&" "&ROUND(cal!X34,1)&IF(UnitsNo=1," cm",IF(UnitsNo=2," in"))& " "&$T$17&" "&ROUND(cal!Z34,1)&IF(UnitsNo=1," cm",IF(UnitsNo=2," in"))&" "&$T$18&" "&ROUND(cal!AB34,1)&IF(UnitsNo=1," cm",IF(UnitsNo=2," in"))&" (Type 3)" -> Briza Net Zero M H42 2P hauteur 42 cm largeur 14 cm longueur 125 cm (Type 3)
B34: =cal!$X$1&" "&$T$16&" "&ROUND(cal!X40,1)&IF(UnitsNo=1," cm",IF(UnitsNo=2," in"))& " "&$T$17&" "&ROUND(cal!Z40,1)&IF(UnitsNo=1," cm",IF(UnitsNo=2," in"))&" "&$T$18&" "&ROUND(cal!AB40,1)&IF(UnitsNo=1," cm",IF(UnitsNo=2," in"))&" (Type 4)" -> Briza Net Zero M H42 2P hauteur 42 cm largeur 14 cm longueur 145 cm (Type 4)
B40: *Puissance sonore testé selon ISO 3741:2010 | N40: =cal!P46 -> v2023-10-02
B41: **Pression sonore avec une atténuation ambiante du 8dB(A)

Sheet NR (hidden)
B3: Modell
H4: Væske blanding: | I4: 0 | J4: 0 | K4: 0
B5: Conditions | H5: Modell: | I5: 0 | J5: 0 | K5: 0
B7: Temperaturer | Q7: Kopier alle data
B8: Varme: | G8: Kjøling: | Q8: SI-enheter
B9: Tur vann | C9: 0 | D9: 0 | E9: =cal!E9 -> 95 | G9: =B9 -> Tur vann | K9: =cal!K9 -> 7 | M9: Enhetssystem | Q9: Imperiale-enheter
B10: Retur vann | C10: 0 | D10: 0 | E10: =cal!E10 -> 70 | G10: =B10 -> Retur vann | K10: =cal!K10 -> 12
B11: Rom | C11: 0 | D11: 0 | E11: =cal!E11 -> 20 | G11: =B11 -> Rom | K11: =cal!K11 -> 20
G12: Relativ fuktighet | K12: =cal!K12 -> 50%
B15: Hastighet | C15: Styresignal [V] | D15: =CONCATENATE("Varme effekt ",ROUND(E9,0),"/",ROUND(E10,0),"/",ROUND(E11,0)," ["&IF(cal!$W$4=1,"W",IF(cal!$W$4=2,"Btu/h"))&"]") -> Varme effekt 95/70/20 [W] | E15: ="Vannmengde, varme ["&IF(cal!$W$4=1,"l/h",IF(cal!$W$4=2,"GPM"))&"]" -> Vannmengde, varme [l/h] | F15: ="Trykktap ["&IF(cal!$W$4=1,"kPa",IF(cal!$W$4=2,"ftH2O"))&"]" -> Trykktap [kPa] | G15: =CONCATENATE("Sens. Kjøling effekt * ",ROUND(K9,0),"/",ROUND(K10,0),"/",ROUND(K11,0)," ["&IF(cal!$W$4=1,"W",IF(cal!$W$4=2,"Btu/h"))&"]") -> Sens. Kjøling effekt * 7/12/20 [W] | H15: =CONCATENATE("Tot. Kjøle effekt ",ROUND(K9,0),"/",ROUND(K10,0),"/",ROUND(K11,0)," ["&IF(cal!$W$4=1,"W",IF(cal!$W$4=2,"Btu/h"))&"]") -> Tot. Kjøle effekt 7/12/20 [W] | I15: ="Vannmengde, kjøling ["&IF(cal!$W$4=1,"l/h",IF(cal!$W$4=2,"GPM"))&"]" -> Vannmengde, kjøling [l/h] | J15: =F15 -> Trykktap [kPa] | K15: Lydtrykk ** [dB(A)] | L15: Lydeffekt * [dB(A)] | M15: Elektrisk effekt [W] | N15: ="Luftmengde ["&IF(cal!$W$4=1,"m³/h",IF(cal!$W$4=2,"CFM"))&"]" -> Luftmengde [m³/h] | O15: ="Uitblaastemp. verwarming ["&IF(cal!$W$4=1,"°C",IF(cal!$W$4=2,"°F"))&"]" -> Uitblaastemp. verwarming [°C] | P15: ="Uitblaastemp. koeling ["&IF(cal!$W$4=1,"°C",IF(cal!$W$4=2,"°F"))&"]" -> Uitblaastemp. koeling [°C]
B16: =cal!$X$1&" "&$T$16&" "&ROUND(cal!X22,1)&IF(UnitsNo=1," cm",IF(UnitsNo=2," in"))& " "&$T$17&" "&ROUND(cal!Z22,1)&IF(UnitsNo=1," cm",IF(UnitsNo=2," in"))&" "&$T$18&" "&ROUND(cal!AB22,1)&IF(UnitsNo=1," cm",IF(UnitsNo=2," in"))&" (Type 1)" -> Briza Net Zero M H42 2P høyde 42 cm bredde 14 cm lengde 75 cm (Type 1) | R16: Temp. | T16: høyde
R17: varme! | T17: bredde
R18: kjøling! | T18: lengde
B22: =cal!$X$1&" "&$T$16&" "&ROUND(cal!X28,1)&IF(UnitsNo=1," cm",IF(UnitsNo=2," in"))& " "&$T$17&" "&ROUND(cal!Z28,1)&IF(UnitsNo=1," cm",IF(UnitsNo=2," in"))&" "&$T$18&" "&ROUND(cal!AB28,1)&IF(UnitsNo=1," cm",IF(UnitsNo=2," in"))&" (Type 2)" -> Briza Net Zero M H42 2P høyde 42 cm bredde 14 cm lengde 95 cm (Type 2)
B28: =cal!$X$1&" "&$T$16&" "&ROUND(cal!X34,1)&IF(UnitsNo=1," cm",IF(UnitsNo=2," in"))& " "&$T$17&" "&ROUND(cal!Z34,1)&IF(UnitsNo=1," cm",IF(UnitsNo=2," in"))&" "&$T$18&" "&ROUND(cal!AB34,1)&IF(UnitsNo=1," cm",IF(UnitsNo=2," in"))&" (Type 3)" -> Briza Net Zero M H42 2P høyde 42 cm bredde 14 cm lengde 125 cm (Type 3)
B34: =cal!$X$1&" "&$T$16&" "&ROUND(cal!X40,1)&IF(UnitsNo=1," cm",IF(UnitsNo=2," in"))& " "&$T$17&" "&ROUND(cal!Z40,1)&IF(UnitsNo=1," cm",IF(UnitsNo=2," in"))&" "&$T$18&" "&ROUND(cal!AB40,1)&IF(UnitsNo=1," cm",IF(UnitsNo=2," in"))&" (Type 4)" -> Briza Net Zero M H42 2P høyde 42 cm bredde 14 cm lengde 145 cm (Type 4)
B40: **Sound power according to ISO 3741:2010 | N40: =cal!P46 -> v2023-10-02
B41: ***Sound pressure with an assumed room damping of 8dB(A)

Sheet SP (hidden)
B7: Temperaturas | Q7: Copiar todos los datos
B8: Calefacción: | G8: Enfriamiento: | Q8: Unidades-SI
B9: Agua impulsión | C9: 0 | D9: 0 | E9: =cal!E9 -> 95 | G9: =B9 -> Agua impulsión | K9: =cal!K9 -> 7 | M9: Convers. de unidades | Q9: Unidades-Imperial
B10: Agua retorno | C10: 0 | D10: 0 | E10: =cal!E10 -> 70 | G10: =B10 -> Agua retorno | K10: =cal!K10 -> 12
B11: Ambiente | C11: 0 | D11: 0 | E11: =cal!E11 -> 20 | G11: =B11 -> Ambiente | K11: =cal!K11 -> 20
G12: Humedad relativa | K12: =cal!K12 -> 50%
B15: Nivel de velocidad | C15: Voltaje control [V] | D15: =CONCATENATE("Emisión calefacción ",ROUND(E9,0),"/",ROUND(E10,0),"/",ROUND(E11,0)," ["&IF(UnitsNo=1,"W",IF(UnitsNo=2,"Btu/h"))&"]") -> Emisión calefacción 95/70/20 [W] | E15: ="Caudal de agua, calefacción ["&IF(1=1,"l/h",IF(UnitsNo=2,"GPM"))&"]" -> Caudal de agua, calefacción [l/h] | F15: ="Pérdida de carga del agua ["&IF(UnitsNo=1,"kPa",IF(UnitsNo=2,"ftH2O"))&"]" -> Pérdida de carga del agua [kPa] | G15: =CONCATENATE("Emisión sensible Frío * ",ROUND(K9,0),"/",ROUND(K10,0),"/",ROUND(K11,0)," ["&IF(UnitsNo=1,"W",IF(UnitsNo=2,"Btu/h"))&"]") -> Emisión sensible Frío * 7/12/20 [W] | H15: =CONCATENATE("Emisión total Frío ",ROUND(K9,0),"/",ROUND(K10,0),"/",ROUND(K11,0)," ["&IF(UnitsNo=1,"W",IF(UnitsNo=2,"Btu/h"))&"]") -> Emisión total Frío 7/12/20 [W] | I15: ="Caudal de agua, Frío ["&IF(UnitsNo=1,"l/h",IF(UnitsNo=2,"GPM"))&"]" -> Caudal de agua, Frío [l/h] | J15: =F15 -> Pérdida de carga del agua [kPa] | K15: Presión sonora ** [dB(A)] | L15: Potencia sonora * [dB(A)] | M15: Potencia eléctrica absorbida [W] | N15: ="Caudal de aire ["&IF(UnitsNo=1,"m³/h",IF(UnitsNo=2,"CFM"))&"]" -> Caudal de aire [m³/h] | O15: ="Temperatura salida de aire calefacción ["&IF(UnitsNo=1,"°C",IF(UnitsNo=2,"°F"))&"]" -> Temperatura salida de aire calefacción [°C] | P15: ="Temperatura salida de aire refrigeración (bulbo seco) ["&IF(UnitsNo=1,"°C",IF(UnitsNo=2,"°F"))&"]" -> Temperatura salida de aire refrigeración (bulbo seco) [°C]
B16: =cal!$X$1&" "&$T$16&" "&ROUND(cal!X22,1)&IF(UnitsNo=1," cm",IF(UnitsNo=2," in"))& " "&$T$17&" "&ROUND(cal!Z22,1)&IF(UnitsNo=1," cm",IF(UnitsNo=2," in"))&" "&$T$18&" "&ROUND(cal!AB22,1)&IF(UnitsNo=1," cm",IF(UnitsNo=2," in"))&" (Type 1)" -> Briza Net Zero M H42 2P altura 42 cm ancho 14 cm longitud 75 cm (Type 1) | R16: Temp. | T16: altura
R17: calefac. | T17: ancho
R18: enfria. | T18: longitud
B22: =cal!$X$1&" "&$T$16&" "&ROUND(cal!X28,1)&IF(UnitsNo=1," cm",IF(UnitsNo=2," in"))& " "&$T$17&" "&ROUND(cal!Z28,1)&IF(UnitsNo=1," cm",IF(UnitsNo=2," in"))&" "&$T$18&" "&ROUND(cal!AB28,1)&IF(UnitsNo=1," cm",IF(UnitsNo=2," in"))&" (Type 2)" -> Briza Net Zero M H42 2P altura 42 cm ancho 14 cm longitud 95 cm (Type 2)
B28: =cal!$X$1&" "&$T$16&" "&ROUND(cal!X34,1)&IF(UnitsNo=1," cm",IF(UnitsNo=2," in"))& " "&$T$17&" "&ROUND(cal!Z34,1)&IF(UnitsNo=1," cm",IF(UnitsNo=2," in"))&" "&$T$18&" "&ROUND(cal!AB34,1)&IF(UnitsNo=1," cm",IF(UnitsNo=2," in"))&" (Type 3)" -> Briza Net Zero M H42 2P altura 42 cm ancho 14 cm longitud 125 cm (Type 3)
B34: =cal!$X$1&" "&$T$16&" "&ROUND(cal!X40,1)&IF(UnitsNo=1," cm",IF(UnitsNo=2," in"))& " "&$T$17&" "&ROUND(cal!Z40,1)&IF(UnitsNo=1," cm",IF(UnitsNo=2," in"))&" "&$T$18&" "&ROUND(cal!AB40,1)&IF(UnitsNo=1," cm",IF(UnitsNo=2," in"))&" (Type 4)" -> Briza Net Zero M H42 2P altura 42 cm ancho 14 cm longitud 145 cm (Type 4)
B40: **Potencia sonora de acuerdo a ISO 3741:2010 | N40: =cal!P46 -> v2023-10-02
B41: ***Presión sonora asumiendo una reducción de la estancia de 8dB(A)

Sheet SW (hidden)
B3: Formulary
H4: Hydraulic mix: | I4: 0 | J4: 0 | K4: 0
B5: Conditions | H5: Device - Ventilator - Utilization: | I5: 0 | J5: 0 | K5: 0
B7: Temperaturer | Q7: Kopiera all data
B8: Värme: | G8: Kyla: | Q8: SI-enheter
B9: Tillopp | E9: =cal!E9 -> 95 | G9: =B9 -> Tillopp | K9: =cal!K9 -> 7 | M9: Enhetssystem | Q9: Imperiella-enheter
B10: Retur | E10: =cal!E10 -> 70 | G10: =B10 -> Retur | K10: =cal!K10 -> 12
B11: Rum (torr) | E11: =cal!E11 -> 20 | G11: =B11 -> Rum (torr) | K11: =cal!K11 -> 20
G12: rel. Fuktighet | K12: =cal!K12 -> 50%
B15: Fläkthastighet | C15: Spänning, Fläkt [V] | D15: =CONCATENATE("Värme effekt ",ROUND(E9,0),"/",ROUND(E10,0),"/",ROUND(E11,0)," ["&IF(cal!$W$4=1,"W",IF(cal!$W$4=2,"Btu/h"))&"]") -> Värme effekt 95/70/20 [W] | E15: ="Vattenflöde, värme ["&IF(cal!$W$4=1,"l/h",IF(cal!$W$4=2,"GPM"))&"]" -> Vattenflöde, värme [l/h] | F15: ="Tryckfall, vatten ["&IF(cal!$W$4=1,"kPa",IF(cal!$W$4=2,"inH2O"))&"]" -> Tryckfall, vatten [kPa] | G15: =CONCATENATE("Märkbar kylkapacitet ",ROUND(K9,0),"/",ROUND(K10,0),"/",ROUND(K11,0)," ["&IF(cal!$W$4=1,"W",IF(cal!$W$4=2,"Btu/h"))&"]") -> Märkbar kylkapacitet 7/12/20 [W] | H15: =CONCATENATE("Total kylkapacitet ",ROUND(K9,0),"/",ROUND(K10,0),"/",ROUND(K11,0)," ["&IF(cal!$W$4=1,"W",IF(cal!$W$4=2,"Btu/h"))&"]") -> Total kylkapacitet 7/12/20 [W] | I15: ="Vattenflöde, kyla ["&IF(cal!$W$4=1,"l/h",IF(cal!$W$4=2,"GPM"))&"]" -> Vattenflöde, kyla [l/h] | J15: =F15 -> Tryckfall, vatten [kPa] | K15: Ljudtryck ** [dB(A)] | L15: Ljudeffekt * [dB(A)] | M15: Effektförbrukning [W] | N15: ="Luftflöde ["&IF(cal!$W$4=1,"m³/h",IF(cal!$W$4=2,"CFM"))&"]" -> Luftflöde [m³/h] | O15: ="Luftavgassystemets värming ["&IF(cal!$W$4=1,"°C",IF(cal!$W$4=2,"°F"))&"]" -> Luftavgassystemets värming [°C] | P15: ="Luftavgassystemets kylning ["&IF(cal!$W$4=1,"°C",IF(cal!$W$4=2,"°F"))&"]" -> Luftavgassystemets kylning [°C]
B16: =cal!$X$1&" "&$T$16&" "&ROUND(cal!X22,1)&IF(UnitsNo=1," cm",IF(UnitsNo=2," in"))& " "&$T$17&" "&ROUND(cal!Z22,1)&IF(UnitsNo=1," cm",IF(UnitsNo=2," in"))&" "&$T$18&" "&ROUND(cal!AB22,1)&IF(UnitsNo=1," cm",IF(UnitsNo=2," in"))&" (Typ 1)" -> Briza Net Zero M H42 2P höjd 42 cm djup 14 cm längd 75 cm (Typ 1) | R16: Temp. | T16: höjd
R17: värme! | T17: djup
R18: kyla! | T18: längd
B22: =cal!$X$1&" "&$T$16&" "&ROUND(cal!X28,1)&IF(UnitsNo=1," cm",IF(UnitsNo=2," in"))& " "&$T$17&" "&ROUND(cal!Z28,1)&IF(UnitsNo=1," cm",IF(UnitsNo=2," in"))&" "&$T$18&" "&ROUND(cal!AB28,1)&IF(UnitsNo=1," cm",IF(UnitsNo=2," in"))&" (Typ 2)" -> Briza Net Zero M H42 2P höjd 42 cm djup 14 cm längd 95 cm (Typ 2)
B28: =cal!$X$1&" "&$T$16&" "&ROUND(cal!X34,1)&IF(UnitsNo=1," cm",IF(UnitsNo=2," in"))& " "&$T$17&" "&ROUND(cal!Z34,1)&IF(UnitsNo=1," cm",IF(UnitsNo=2," in"))&" "&$T$18&" "&ROUND(cal!AB34,1)&IF(UnitsNo=1," cm",IF(UnitsNo=2," in"))&" (Typ 3)" -> Briza Net Zero M H42 2P höjd 42 cm djup 14 cm längd 125 cm (Typ 3)
B34: =cal!$X$1&" "&$T$16&" "&ROUND(cal!X40,1)&IF(UnitsNo=1," cm",IF(UnitsNo=2," in"))& " "&$T$17&" "&ROUND(cal!Z40,1)&IF(UnitsNo=1," cm",IF(UnitsNo=2," in"))&" "&$T$18&" "&ROUND(cal!AB40,1)&IF(UnitsNo=1," cm",IF(UnitsNo=2," in"))&" (Typ 4)" -> Briza Net Zero M H42 2P höjd 42 cm djup 14 cm längd 145 cm (Typ 4)
B40: *Ljudeffekt enligt ISO 3741: 2010 | N40: =cal!P46 -> v2023-10-02
B41: **Ljudtryck med en antagen rumsdämpning på 8dB (A)

Sheet TS (hidden)
B3: Invulformulier
H4: Směs vody: | I4: 0 | J4: 0 | K4: 0
B5: Randvoorwaarden | H5: Těleso - Ventilátor - Verze: | I5: 0 | J5: 0 | K5: 0
B7: Teploty | Q7: Kopírovat všechna data
B8: Topení: | G8: Chlazení: | Q8: Mezinárodní (Sl)
B9: ="Voda na přívodu" -> Voda na přívodu | E9: =cal!E9 -> 95 | G9: =B9 -> Voda na přívodu | K9: =cal!K9 -> 7 | M9: Převod jednotek | Q9: Imperiální
B10: ="Voda na zpátečce" -> Voda na zpátečce | E10: =cal!E10 -> 70 | G10: =B10 -> Voda na zpátečce | K10: =cal!K10 -> 12
B11: "Suchá" teplota vzduchu | E11: =cal!E11 -> 20 | G11: =B11 -> "Suchá" teplota vzduchu | K11: =cal!K11 -> 20
G12: Relativní vlhkost | K12: =cal!K12 -> 50%
B15: Rychlost | C15: Ovládací napětí [V] | D15: =CONCATENATE("Výkon Topení ",ROUND(E9,0),"/",ROUND(E10,0),"/",ROUND(E11,0)," ["&IF(UnitsNo=1,"W",IF(UnitsNo=2,"Btu/h"))&"]") -> Výkon Topení 95/70/20 [W] | E15: ="Průtok vody, topení ["&IF(UnitsNo=1,"l/h",IF(UnitsNo=2,"GPM"))&"]" -> Průtok vody, topení [l/h] | F15: ="Tlaková ztráta ["&IF(UnitsNo=1,"kPa",IF(UnitsNo=2,"inH2O"))&"]" -> Tlaková ztráta [kPa] | G15: =CONCATENATE("Výkon chlazení Znatelný ",ROUND(K9,0),"/",,ROUND(K10,0),"/",,ROUND(K11,0)," ["&IF(UnitsNo=1,"W",IF(UnitsNo=2,"Btu/h"))&"]") -> Výkon chlazení Znatelný 7/12/20 [W] | H15: =CONCATENATE("Výkon chlazení Celkový ",,ROUND(K9,0),"/",,ROUND(K10,0),"/",,ROUND(K11,0)," ["&IF(UnitsNo=1,"W",IF(UnitsNo=2,"Btu/h"))&"]") -> Výkon chlazení Celkový 7/12/20 [W] | I15: ="Průtok vody, chlazení ["&IF(UnitsNo=1,"l/h",IF(UnitsNo=2,"GPM"))&"]" -> Průtok vody, chlazení [l/h] | J15: =F15 -> Tlaková ztráta [kPa] | K15: Akustický tlak ** [dB(A)] | L15: Akustický výkon * [dB(A)] | M15: Elektrický výkon [W] | N15: ="Průtok vzduchu ["&IF(UnitsNo=1,"m³/h",IF(UnitsNo=2,"CFM"))&"]" -> Průtok vzduchu [m³/h] | O15: ="Výfuková teplota vzduchu top. ["&IF(UnitsNo=1,"°C",IF(UnitsNo=2,"°F"))&"]" -> Výfuková teplota vzduchu top. [°C] | P15: ="Výfuková teplota vzduchu chlaz. ["&IF(UnitsNo=1,"°C",IF(UnitsNo=2,"°F"))&"]" -> Výfuková teplota vzduchu chlaz. [°C]
B16: =cal!$X$1&" "&$T$16&", "&ROUND(cal!X22,1)&IF(UnitsNo=1," cm",IF(UnitsNo=2," in"))& ", "&$T$17&" "&ROUND(cal!Z22,1)&IF(UnitsNo=1," cm",IF(UnitsNo=2," in"))&", "&$T$18&" "&ROUND(cal!AB22,1)&IF(UnitsNo=1," cm",IF(UnitsNo=2," in"))&" (Typ 1)" -> Briza Net Zero M H42 2P Výška, 42 cm, Šířka 14 cm, Délka 75 cm (Typ 1) | R16: Teploty | T16: Výška
R17: topení! | T17: Šířka
R18: chlazení! | T18: Délka
B22: =cal!$X$1&" "&$T$16&" "&ROUND(cal!X28,1)&IF(UnitsNo=1," cm",IF(UnitsNo=2," in"))& " "&$T$17&" "&ROUND(cal!Z28,1)&IF(UnitsNo=1," cm",IF(UnitsNo=2," in"))&" "&$T$18&" "&ROUND(cal!AB28,1)&IF(UnitsNo=1," cm",IF(UnitsNo=2," in"))&" (Typ 2)" -> Briza Net Zero M H42 2P Výška 42 cm Šířka 14 cm Délka 95 cm (Typ 2)
B28: =cal!$X$1&" "&$T$16&" "&ROUND(cal!X34,1)&IF(UnitsNo=1," cm",IF(UnitsNo=2," in"))& " "&$T$17&" "&ROUND(cal!Z34,1)&IF(UnitsNo=1," cm",IF(UnitsNo=2," in"))&" "&$T$18&" "&ROUND(cal!AB34,1)&IF(UnitsNo=1," cm",IF(UnitsNo=2," in"))&" (Typ 3)" -> Briza Net Zero M H42 2P Výška 42 cm Šířka 14 cm Délka 125 cm (Typ 3)
B34: =cal!$X$1&" "&$T$16&" "&ROUND(cal!X40,1)&IF(UnitsNo=1," cm",IF(UnitsNo=2," in"))& " "&$T$17&" "&ROUND(cal!Z40,1)&IF(UnitsNo=1," cm",IF(UnitsNo=2," in"))&" "&$T$18&" "&ROUND(cal!AB40,1)&IF(UnitsNo=1," cm",IF(UnitsNo=2," in"))&" (Typ 4)" -> Briza Net Zero M H42 2P Výška 42 cm Šířka 14 cm Délka 145 cm (Typ 4)
B40: *Akustický tlak podle ISO 3741:2010 | N40: =cal!P46 -> v2023-10-02
B41: **Akustický výkon s předpokládaným útlumem místnosti 8 dB (A).

Sheet RU (hidden)
B3: Formulary
H4: Hydraulic mix: | I4: 0 | J4: 0 | K4: 0
B5: Conditions | H5: Device - Ventilator - Utilization: | I5: 0 | J5: 0 | K5: 0
B7: Температура | Q7: Скопировать подбор
B8: Обогрев: | G8: Охлаждение: | Q8: Система СИ
B9: Темп.подачи | E9: =cal!E9 -> 95 | G9: =B9 -> Темп.подачи | K9: =cal!K9 -> 7 | M9: Единицы измерения | Q9: Английская система мер
B10: Темп.обратная | E10: =cal!E10 -> 70 | G10: =B10 -> Темп.обратная | K10: =cal!K10 -> 12
B11: Темп.воздуха | E11: =cal!E11 -> 20 | G11: =B11 -> Темп.воздуха | K11: =cal!K11 -> 20
G12: Влажность | K12: =cal!K12 -> 50%
B15: Скорость вентилятора | C15: Управляющий сигнал [V] | D15: =CONCATENATE("Мощность отпление ",ROUND(E9,0),"/",ROUND(E10,0),"/",ROUND(E11,0)," ["&IF(cal!$W$4=1,"W",IF(cal!$W$4=2,"Btu/h"))&"]") -> Мощность отпление 95/70/20 [W] | E15: ="Расход теплоносителя, отопление ["&IF(cal!$W$4=1,"l/h",IF(cal!$W$4=2,"GPM"))&"]" -> Расход теплоносителя, отопление [l/h] | F15: ="Потери давления жидкости ["&IF(cal!$W$4=1,"kPa",IF(cal!$W$4=2,"inH2O"))&"]" -> Потери давления жидкости [kPa] | G15: =CONCATENATE("Ощущ. мощность, охлаждение ",ROUND(K9,0),"/",ROUND(K10,0),"/",ROUND(K11,0)," ["&IF(cal!$W$4=1,"W",IF(cal!$W$4=2,"Btu/h"))&"]") -> Ощущ. мощность, охлаждение 7/12/20 [W] | H15: =CONCATENATE("Общая мощность , охлаждение ",ROUND(K9,0),"/",ROUND(K10,0),"/",ROUND(K11,0)," ["&IF(cal!$W$4=1,"W",IF(cal!$W$4=2,"Btu/h"))&"]") -> Общая мощность , охлаждение 7/12/20 [W] | I15: ="Расход теплоносителя, охлаждение ["&IF(cal!$W$4=1,"l/h",IF(cal!$W$4=2,"GPM"))&"]" -> Расход теплоносителя, охлаждение [l/h] | J15: ="Потери давления жидкости ["&IF(cal!$W$4=1,"kPa",IF(cal!$W$4=2,"inH2O"))&"]" -> Потери давления жидкости [kPa] | K15: Звуковое давление ** [dB(A)] | L15: Звуковая мощность * [dB(A)] | M15: Потребляемая мощность [W] | N15: ="Расход воздуха ["&IF(cal!$W$4=1,"m³/h",IF(cal!$W$4=2,"CFM"))&"]" -> Расход воздуха [m³/h] | O15: ="Темп. воздуха на выходе. отопление ["&IF(cal!$W$4=1,"°C",IF(cal!$W$4=2,"°F"))&"]" -> Темп. воздуха на выходе. отопление [°C] | P15: ="Темп.воздуха на выходе. охлаждение ["&IF(cal!$W$4=1,"°C",IF(cal!$W$4=2,"°F"))&"]" -> Темп.воздуха на выходе. охлаждение [°C]
B16: =cal!$X$1&" "&$T$16&" "&ROUND(cal!X22,1)&IF(UnitsNo=1," cm",IF(UnitsNo=2," in"))& " "&$T$17&" "&ROUND(cal!Z22,1)&IF(UnitsNo=1," cm",IF(UnitsNo=2," in"))&" "&$T$18&" "&ROUND(cal!AB22,1)&IF(UnitsNo=1," cm",IF(UnitsNo=2," in"))&" (Тип 1)" -> Briza Net Zero M H42 2P Высота 42 cm Ширина 14 cm Длина 75 cm (Тип 1) | R16: Темп. | T16: Высота
R17: Обогрев! | T17: Ширина
R18: Охлаждение! | T18: Длина
B22: =cal!$X$1&" "&$T$16&" "&ROUND(cal!X28,1)&IF(UnitsNo=1," cm",IF(UnitsNo=2," in"))& " "&$T$17&" "&ROUND(cal!Z28,1)&IF(UnitsNo=1," cm",IF(UnitsNo=2," in"))&" "&$T$18&" "&ROUND(cal!AB28,1)&IF(UnitsNo=1," cm",IF(UnitsNo=2," in"))&" (Тип 2)" -> Briza Net Zero M H42 2P Высота 42 cm Ширина 14 cm Длина 95 cm (Тип 2)
B28: =cal!$X$1&" "&$T$16&" "&ROUND(cal!X34,1)&IF(UnitsNo=1," cm",IF(UnitsNo=2," in"))& " "&$T$17&" "&ROUND(cal!Z34,1)&IF(UnitsNo=1," cm",IF(UnitsNo=2," in"))&" "&$T$18&" "&ROUND(cal!AB34,1)&IF(UnitsNo=1," cm",IF(UnitsNo=2," in"))&" (Тип 3)" -> Briza Net Zero M H42 2P Высота 42 cm Ширина 14 cm Длина 125 cm (Тип 3)
B34: =cal!$X$1&" "&$T$16&" "&ROUND(cal!X40,1)&IF(UnitsNo=1," cm",IF(UnitsNo=2," in"))& " "&$T$17&" "&ROUND(cal!Z40,1)&IF(UnitsNo=1," cm",IF(UnitsNo=2," in"))&" "&$T$18&" "&ROUND(cal!AB40,1)&IF(UnitsNo=1," cm",IF(UnitsNo=2," in"))&" (Тип 4)" -> Briza Net Zero M H42 2P Высота 42 cm Ширина 14 cm Длина 145 cm (Тип 4)
B40: *Звуковая мощность определена по ISO 3741:2010 | N40: =cal!P46 -> v2023-10-02
B41: ***Уровень звукового давления (при постоянной помещения 8 дБ(A))

Sheet ExtraTaal2 (hidden)
B3: Formulary
H4: Hydraulic mix: | I4: 0 | J4: 0 | K4: 0
B5: Conditions | H5: Device - Ventilator - Utilization: | I5: 0 | J5: 0 | K5: 0
B7: Temperatures | Q7: Copy all data
B8: Heating: | G8: Cooling: | Q8: SI-units
B9: Supply water | E9: =cal!E9 -> 95 | G9: =B9 -> Supply water | K9: =cal!K9 -> 7 | M9: Unit conversion | Q9: Imperial-units
B10: Return water | E10: =cal!E10 -> 70 | G10: =B10 -> Return water | K10: =cal!K10 -> 12
B11: Entering air | E11: =cal!E11 -> 20 | G11: =B11 -> Entering air | K11: =cal!K11 -> 20
G12: Relative humidity | K12: =cal!K12 -> 50%
B15: Speed level | C15: Control voltage [V] | D15: =CONCATENATE("Heat output ",ROUND(E9,0),"/",ROUND(E10,0),"/",ROUND(E11,0)," ["&IF(cal!$W$4=1,"W",IF(cal!$W$4=2,"Btu/h"))&"]") -> Heat output 95/70/20 [W] | E15: ="Water flowrate, heating ["&IF(cal!$W$4=1,"l/h",IF(cal!$W$4=2,"GPM"))&"]" -> Water flowrate, heating [l/h] | F15: ="Watersided pressure loss ["&IF(cal!$W$4=1,"kPa",IF(cal!$W$4=2,"inH2O"))&"]" -> Watersided pressure loss [kPa] | G15: =CONCATENATE("Sens. cooling capacity ",ROUND(K9,0),"/",ROUND(K10,0),"/",ROUND(K11,0)," ["&IF(cal!$W$4=1,"W",IF(cal!$W$4=2,"Btu/h"))&"]") -> Sens. cooling capacity 7/12/20 [W] | H15: =CONCATENATE("Tot. cooling capacity ",ROUND(K9,0),"/",ROUND(K10,0),"/",ROUND(K11,0)," ["&IF(cal!$W$4=1,"W",IF(cal!$W$4=2,"Btu/h"))&"]") -> Tot. cooling capacity 7/12/20 [W] | I15: ="Water flowrate, cooling ["&IF(cal!$W$4=1,"l/h",IF(cal!$W$4=2,"GPM"))&"]" -> Water flowrate, cooling [l/h] | J15: ="Watersided pressure loss ["&IF(cal!$W$4=1,"kPa",IF(cal!$W$4=2,"inH2O"))&"]" -> Watersided pressure loss [kPa] | K15: Sound pressure ** [dB(A)] | L15: Sound power * [dB(A)] | M15: Electrical power [W] | N15: ="Air flowrate ["&IF(cal!$W$4=1,"m³/h",IF(cal!$W$4=2,"CFM"))&"]" -> Air flowrate [m³/h] | O15: ="Air exhaust temp. heating ["&IF(cal!$W$4=1,"°C",IF(cal!$W$4=2,"°F"))&"]" -> Air exhaust temp. heating [°C] | P15: ="Air exhaust temp. cooling ["&IF(cal!$W$4=1,"°C",IF(cal!$W$4=2,"°F"))&"]" -> Air exhaust temp. cooling [°C]
B16: =cal!$X$1&" "&$T$16&" "&ROUND(cal!X22,1)&IF(UnitsNo=1," cm",IF(UnitsNo=2," in"))& " "&$T$17&" "&ROUND(cal!Z22,1)&IF(UnitsNo=1," cm",IF(UnitsNo=2," in"))&" "&$T$18&" "&ROUND(cal!AB22,1)&IF(UnitsNo=1," cm",IF(UnitsNo=2," in"))&" (Type 1)" -> Briza Net Zero M H42 2P height 42 cm width 14 cm length 75 cm (Type 1) | R16: Temp. | T16: height
R17: heating! | T17: width
R18: cooling! | T18: length
B22: =cal!$X$1&" "&$T$16&" "&ROUND(cal!X28,1)&IF(UnitsNo=1," cm",IF(UnitsNo=2," in"))& " "&$T$17&" "&ROUND(cal!Z28,1)&IF(UnitsNo=1," cm",IF(UnitsNo=2," in"))&" "&$T$18&" "&ROUND(cal!AB28,1)&IF(UnitsNo=1," cm",IF(UnitsNo=2," in"))&" (Type 2)" -> Briza Net Zero M H42 2P height 42 cm width 14 cm length 95 cm (Type 2)
B28: =cal!$X$1&" "&$T$16&" "&ROUND(cal!X34,1)&IF(UnitsNo=1," cm",IF(UnitsNo=2," in"))& " "&$T$17&" "&ROUND(cal!Z34,1)&IF(UnitsNo=1," cm",IF(UnitsNo=2," in"))&" "&$T$18&" "&ROUND(cal!AB34,1)&IF(UnitsNo=1," cm",IF(UnitsNo=2," in"))&" (Type 3)" -> Briza Net Zero M H42 2P height 42 cm width 14 cm length 125 cm (Type 3)
B34: =cal!$X$1&" "&$T$16&" "&ROUND(cal!X40,1)&IF(UnitsNo=1," cm",IF(UnitsNo=2," in"))& " "&$T$17&" "&ROUND(cal!Z40,1)&IF(UnitsNo=1," cm",IF(UnitsNo=2," in"))&" "&$T$18&" "&ROUND(cal!AB40,1)&IF(UnitsNo=1," cm",IF(UnitsNo=2," in"))&" (Type 4)" -> Briza Net Zero M H42 2P height 42 cm width 14 cm length 145 cm (Type 4)
B40: *Sound power according to ISO 3741:2010 | N40: =cal!P46 -> v2023-10-02
B41: **Sound pressure with an assumed room damping of 8dB(A)

Sheet ExtraTaal3 (hidden)
B3: Formulary
H4: Hydraulic mix: | I4: 0 | J4: 0 | K4: 0
B5: Conditions | H5: Device - Ventilator - Utilization: | I5: 0 | J5: 0 | K5: 0
B7: Temperatures | Q7: Copy all data
B8: Heating: | G8: Cooling: | Q8: SI-units
B9: Supply water | E9: =cal!E9 -> 95 | G9: =B9 -> Supply water | K9: =cal!K9 -> 7 | M9: Unit conversion | Q9: Imperial-units
B10: Return water | E10: =cal!E10 -> 70 | G10: =B10 -> Return water | K10: =cal!K10 -> 12
B11: Entering air | E11: =cal!E11 -> 20 | G11: =B11 -> Entering air | K11: =cal!K11 -> 20
G12: Relative humidity | K12: =cal!K12 -> 50%
B15: Speed level | C15: Control voltage [V] | D15: =CONCATENATE("Heat output ",ROUND(E9,0),"/",ROUND(E10,0),"/",ROUND(E11,0)," ["&IF(cal!$W$4=1,"W",IF(cal!$W$4=2,"Btu/h"))&"]") -> Heat output 95/70/20 [W] | E15: ="Water flowrate, heating ["&IF(cal!$W$4=1,"l/h",IF(cal!$W$4=2,"GPM"))&"]" -> Water flowrate, heating [l/h] | F15: ="Watersided pressure loss ["&IF(cal!$W$4=1,"kPa",IF(cal!$W$4=2,"inH2O"))&"]" -> Watersided pressure loss [kPa] | G15: =CONCATENATE("Sens. cooling capacity ",ROUND(K9,0),"/",ROUND(K10,0),"/",ROUND(K11,0)," ["&IF(cal!$W$4=1,"W",IF(cal!$W$4=2,"Btu/h"))&"]") -> Sens. cooling capacity 7/12/20 [W] | H15: =CONCATENATE("Tot. cooling capacity ",ROUND(K9,0),"/",ROUND(K10,0),"/",ROUND(K11,0)," ["&IF(cal!$W$4=1,"W",IF(cal!$W$4=2,"Btu/h"))&"]") -> Tot. cooling capacity 7/12/20 [W] | I15: ="Water flowrate, cooling ["&IF(cal!$W$4=1,"l/h",IF(cal!$W$4=2,"GPM"))&"]" -> Water flowrate, cooling [l/h] | J15: ="Watersided pressure loss ["&IF(cal!$W$4=1,"kPa",IF(cal!$W$4=2,"inH2O"))&"]" -> Watersided pressure loss [kPa] | K15: Sound pressure ** [dB(A)] | L15: Sound power * [dB(A)] | M15: Electrical power [W] | N15: ="Air flowrate ["&IF(cal!$W$4=1,"m³/h",IF(cal!$W$4=2,"CFM"))&"]" -> Air flowrate [m³/h] | O15: ="Air exhaust temp. heating ["&IF(cal!$W$4=1,"°C",IF(cal!$W$4=2,"°F"))&"]" -> Air exhaust temp. heating [°C] | P15: ="Air exhaust temp. cooling ["&IF(cal!$W$4=1,"°C",IF(cal!$W$4=2,"°F"))&"]" -> Air exhaust temp. cooling [°C]
B16: =cal!$X$1&" "&$T$16&" "&ROUND(cal!X22,1)&IF(UnitsNo=1," cm",IF(UnitsNo=2," in"))& " "&$T$17&" "&ROUND(cal!Z22,1)&IF(UnitsNo=1," cm",IF(UnitsNo=2," in"))&" "&$T$18&" "&ROUND(cal!AB22,1)&IF(UnitsNo=1," cm",IF(UnitsNo=2," in"))&" (Type 1)" -> Briza Net Zero M H42 2P height 42 cm width 14 cm length 75 cm (Type 1) | R16: Temp. | T16: height
R17: heating! | T17: width
R18: cooling! | T18: length
B22: =cal!$X$1&" "&$T$16&" "&ROUND(cal!X28,1)&IF(UnitsNo=1," cm",IF(UnitsNo=2," in"))& " "&$T$17&" "&ROUND(cal!Z28,1)&IF(UnitsNo=1," cm",IF(UnitsNo=2," in"))&" "&$T$18&" "&ROUND(cal!AB28,1)&IF(UnitsNo=1," cm",IF(UnitsNo=2," in"))&" (Type 2)" -> Briza Net Zero M H42 2P height 42 cm width 14 cm length 95 cm (Type 2)
B28: =cal!$X$1&" "&$T$16&" "&ROUND(cal!X34,1)&IF(UnitsNo=1," cm",IF(UnitsNo=2," in"))& " "&$T$17&" "&ROUND(cal!Z34,1)&IF(UnitsNo=1," cm",IF(UnitsNo=2," in"))&" "&$T$18&" "&ROUND(cal!AB34,1)&IF(UnitsNo=1," cm",IF(UnitsNo=2," in"))&" (Type 3)" -> Briza Net Zero M H42 2P height 42 cm width 14 cm length 125 cm (Type 3)
B34: =cal!$X$1&" "&$T$16&" "&ROUND(cal!X40,1)&IF(UnitsNo=1," cm",IF(UnitsNo=2," in"))& " "&$T$17&" "&ROUND(cal!Z40,1)&IF(UnitsNo=1," cm",IF(UnitsNo=2," in"))&" "&$T$18&" "&ROUND(cal!AB40,1)&IF(UnitsNo=1," cm",IF(UnitsNo=2," in"))&" (Type 4)" -> Briza Net Zero M H42 2P height 42 cm width 14 cm length 145 cm (Type 4)
B40: *Sound power according to ISO 3741:2010 | N40: =cal!P46 -> v2023-10-02
B41: **Sound pressure with an assumed room damping of 8dB(A)
